Organisation Name,Organisation Code,Unique Ref No,Effective Date,Directorate  where expenditure incurred,Supplier name ,Payment Date,Net Amount,Purpose of Spend,Procurement Classification (Higher Level),Procurement Classification (Lower Level),Capital/Revenue
Walsall Council,http://opendatacommunities.org/id/metropolitan-district-council/walsall,WC64-1,31/01/2016,Childrens,11KBW,27/01/2016,"1,500.00",73014-LEGAL FEES-PRIV CONTRACTOR FEES,GENERAL MANAGEMENT SUPPORT (INC LEGAL),Third Party Payments,Revenue
Walsall Council,http://opendatacommunities.org/id/metropolitan-district-council/walsall,WC64-2,31/01/2016,Childrens,247 CARS (WILLENHALL) LIMITED,01/01/2016,"-1,698.40",52000-WITH DRIVER-HIRE OF VEHICLES,SCHOOL TRANSPORT,Transport,Revenue
Walsall Council,http://opendatacommunities.org/id/metropolitan-district-council/walsall,WC64-3,31/01/2016,Childrens,247 CARS (WILLENHALL) LIMITED,26/01/2016,"6,069.00",52000-WITH DRIVER-HIRE OF VEHICLES,SCHOOL TRANSPORT,Transport,Revenue
Walsall Council,http://opendatacommunities.org/id/metropolitan-district-council/walsall,WC64-4,31/01/2016,Childrens,247 MONITORED SECURITY,12/01/2016,480.00,60008-MAINTENANCE-FURNITURE & EQUIPMENT,ROSEHILL YOUTH PROJECT,Supplies & Services,Revenue
Walsall Council,http://opendatacommunities.org/id/metropolitan-district-council/walsall,WC64-5,31/01/2016,Change and Governance,2D WORKWEAR LTD,26/01/2016,8.49,61500-CLOTHING & LAUNDRY,SCH CL RUSHALL JMI,Supplies & Services,Revenue
Walsall Council,http://opendatacommunities.org/id/metropolitan-district-council/walsall,WC64-6,31/01/2016,Change and Governance,2D WORKWEAR LTD,26/01/2016,56.94,61500-CLOTHING & LAUNDRY,REDUNDANT BUILDINGS,Supplies & Services,Revenue
Walsall Council,http://opendatacommunities.org/id/metropolitan-district-council/walsall,WC64-7,31/01/2016,Change and Governance,2D WORKWEAR LTD,26/01/2016,107.91,61502-PROTECTIVE CLOTHING & UNIFORM,CT ADMIN,Supplies & Services,Revenue
Walsall Council,http://opendatacommunities.org/id/metropolitan-district-council/walsall,WC64-8,31/01/2016,Change and Governance,2D WORKWEAR LTD,26/01/2016,297.15,61502-PROTECTIVE CLOTHING & UNIFORM,CL ADMIN,Supplies & Services,Revenue
Walsall Council,http://opendatacommunities.org/id/metropolitan-district-council/walsall,WC64-9,31/01/2016,Economy & Environment,383 PROJECT LIMITED,27/01/2016,"1,800.00",63000-PROFESSIONAL FEES AND SERVICES,GRANTS-BLACK COUNTRY INVEST TEAM,Supplies & Services,Revenue
Walsall Council,http://opendatacommunities.org/id/metropolitan-district-council/walsall,WC64-10,31/01/2016,Economy & Environment,3D DISPLAYS LIMITED,13/01/2016,215.10,60006-NEW-FURNITURE & EQUIPMENT,NAG - REFURBISHMENTS,Supplies & Services,Revenue
Walsall Council,http://opendatacommunities.org/id/metropolitan-district-council/walsall,WC64-11,31/01/2016,Childrens,5 CARE SERVICES LTD,01/01/2016,"-1,344.00",63000-PROFESSIONAL FEES AND SERVICES,DIRECTLY COMMISSIONED NURSING SERVICES,Supplies & Services,Revenue
Walsall Council,http://opendatacommunities.org/id/metropolitan-district-council/walsall,WC64-12,31/01/2016,Social Care & Inclusion,5 CARE SERVICES LTD,11/01/2016,309.60,73372-DOMICILIARY CARE,OP COMMISSIONING,Third Party Payments,Revenue
Walsall Council,http://opendatacommunities.org/id/metropolitan-district-council/walsall,WC64-13,31/01/2016,Social Care & Inclusion,5 CARE SERVICES LTD,07/01/2016,329.76,73372-DOMICILIARY CARE,OP COMMISSIONING,Third Party Payments,Revenue
Walsall Council,http://opendatacommunities.org/id/metropolitan-district-council/walsall,WC64-14,31/01/2016,Social Care & Inclusion,5 CARE SERVICES LTD,11/01/2016,397.08,73372-DOMICILIARY CARE,OP COMMISSIONING,Third Party Payments,Revenue
Walsall Council,http://opendatacommunities.org/id/metropolitan-district-council/walsall,WC64-15,31/01/2016,Social Care & Inclusion,5 CARE SERVICES LTD,11/01/2016,452.08,73372-DOMICILIARY CARE,OP COMMISSIONING,Third Party Payments,Revenue
Walsall Council,http://opendatacommunities.org/id/metropolitan-district-council/walsall,WC64-16,31/01/2016,Social Care & Inclusion,5 CARE SERVICES LTD,07/01/2016,485.40,73372-DOMICILIARY CARE,OP COMMISSIONING,Third Party Payments,Revenue
Walsall Council,http://opendatacommunities.org/id/metropolitan-district-council/walsall,WC64-17,31/01/2016,Social Care & Inclusion,5 CARE SERVICES LTD,11/01/2016,729.20,73372-DOMICILIARY CARE,OP COMMISSIONING,Third Party Payments,Revenue
Walsall Council,http://opendatacommunities.org/id/metropolitan-district-council/walsall,WC64-18,31/01/2016,Childrens,5 CARE SERVICES LTD,20/01/2016,906.00,63000-PROFESSIONAL FEES AND SERVICES,DIRECTLY COMMISSIONED NURSING SERVICES,Supplies & Services,Revenue
Walsall Council,http://opendatacommunities.org/id/metropolitan-district-council/walsall,WC64-19,31/01/2016,Childrens,5 CARE SERVICES LTD,26/01/2016,"1,307.00",63000-PROFESSIONAL FEES AND SERVICES,DIRECTLY COMMISSIONED NURSING SERVICES,Supplies & Services,Revenue
Walsall Council,http://opendatacommunities.org/id/metropolitan-district-council/walsall,WC64-20,31/01/2016,Childrens,5 CARE SERVICES LTD,20/01/2016,"1,672.50",63000-PROFESSIONAL FEES AND SERVICES,DIRECTLY COMMISSIONED NURSING SERVICES,Supplies & Services,Revenue
Walsall Council,http://opendatacommunities.org/id/metropolitan-district-council/walsall,WC64-21,31/01/2016,Social Care & Inclusion,5 CARE SERVICES LTD,05/01/2016,"29,318.21",73372-DOMICILIARY CARE,OP COMMISSIONING,Third Party Payments,Revenue
Walsall Council,http://opendatacommunities.org/id/metropolitan-district-council/walsall,WC64-22,31/01/2016,Economy & Environment,REDACTED,25/01/2016,744.10,60500-GENERAL MATERIALS,COMMUNITY LIAISON,Supplies & Services,Revenue
Walsall Council,http://opendatacommunities.org/id/metropolitan-district-council/walsall,WC64-23,31/01/2016,Economy & Environment,A D T FIRE AND SECURITY PLC,01/01/2016,341.94,60008-MAINTENANCE-FURNITURE & EQUIPMENT,LIBRARY OPERATIONS CENTRAL,Supplies & Services,Revenue
Walsall Council,http://opendatacommunities.org/id/metropolitan-district-council/walsall,WC64-24,31/01/2016,Change and Governance,A D T FIRE AND SECURITY PLC,27/01/2016,416.00,60008-MAINTENANCE-FURNITURE & EQUIPMENT,ACCOMMODATION SERVICES MANAGEMENT,Supplies & Services,Revenue
Walsall Council,http://opendatacommunities.org/id/metropolitan-district-council/walsall,WC64-25,31/01/2016,Social Care & Inclusion,A F BLAKEMORE & SON LTD,15/01/2016,240.19,61016-FOOD AND BEVERAGES-PROVISIONS,BROADWAY NORTH RECOVERY COLLEGE,Supplies & Services,Revenue
Walsall Council,http://opendatacommunities.org/id/metropolitan-district-council/walsall,WC64-26,31/01/2016,Social Care & Inclusion,A F BLAKEMORE & SON LTD,26/01/2016,336.51,61016-FOOD AND BEVERAGES-PROVISIONS,REABLEMENT TEAM - HOLLY BANK,Supplies & Services,Revenue
Walsall Council,http://opendatacommunities.org/id/metropolitan-district-council/walsall,WC64-27,31/01/2016,Economy & Environment,A F BLAKEMORE & SON LTD,22/01/2016,484.96,61008-CONFECTIONERY/SNACKS-PROVISIONS,OAK PARK,Supplies & Services,Revenue
Walsall Council,http://opendatacommunities.org/id/metropolitan-district-council/walsall,WC64-28,31/01/2016,Social Care & Inclusion,A F BLAKEMORE & SON LTD,13/01/2016,520.69,61016-FOOD AND BEVERAGES-PROVISIONS,REABLEMENT TEAM - HOLLY BANK,Supplies & Services,Revenue
Walsall Council,http://opendatacommunities.org/id/metropolitan-district-council/walsall,WC64-29,31/01/2016,Economy & Environment,A F BLAKEMORE & SON LTD,13/01/2016,707.40,61008-CONFECTIONERY/SNACKS-PROVISIONS,OAK PARK,Supplies & Services,Revenue
Walsall Council,http://opendatacommunities.org/id/metropolitan-district-council/walsall,WC64-30,31/01/2016,Social Care & Inclusion,A F BLAKEMORE & SON LTD,25/01/2016,790.39,61016-FOOD AND BEVERAGES-PROVISIONS,REABLEMENT TEAM - HOLLY BANK,Supplies & Services,Revenue
Walsall Council,http://opendatacommunities.org/id/metropolitan-district-council/walsall,WC64-31,31/01/2016,Change and Governance,A F BLAKEMORE & SON LTD,12/01/2016,"1,130.09",61016-FOOD AND BEVERAGES-PROVISIONS,WALSALL TOWN HALL,Supplies & Services,Revenue
Walsall Council,http://opendatacommunities.org/id/metropolitan-district-council/walsall,WC64-32,31/01/2016,Childrens,REDACTED,18/01/2016,349.76,74006-HOLIDAY/CHRISTMAS ALLOWANCE-FOSTER CARERS-OTH AGENCY PROVISION,INTERNAL FOSTER CARE PROVISION,Third Party Payments,Revenue
Walsall Council,http://opendatacommunities.org/id/metropolitan-district-council/walsall,WC64-33,31/01/2016,Economy & Environment,A KARIMS CHUCKERY PHARMACY,11/01/2016,88.50,63000-PROFESSIONAL FEES AND SERVICES,SEXUAL HEALTH,Supplies & Services,Revenue
Walsall Council,http://opendatacommunities.org/id/metropolitan-district-council/walsall,WC64-34,31/01/2016,Economy & Environment,A KARIMS CHUCKERY PHARMACY,11/01/2016,"1,039.41",71007-CONTRIBUTION TO PCT,PUBLIC HEALTH BUSINESS SUPPORT,Third Party Payments,Revenue
Walsall Council,http://opendatacommunities.org/id/metropolitan-district-council/walsall,WC64-35,31/01/2016,Childrens,REDACTED,05/01/2016,464.00,76000-TRANSFER PAYMENTS - SOCIAL SERVICES CLIENTS,TRANSITION AND LEAVING CARE,Transfer Payments,Revenue
Walsall Council,http://opendatacommunities.org/id/metropolitan-district-council/walsall,WC64-36,31/01/2016,Childrens,REDACTED,19/01/2016,464.00,76000-TRANSFER PAYMENTS - SOCIAL SERVICES CLIENTS,TRANSITION AND LEAVING CARE,Transfer Payments,Revenue
Walsall Council,http://opendatacommunities.org/id/metropolitan-district-council/walsall,WC64-37,31/01/2016,Childrens,A1 EXPRESS TAXIS,25/01/2016,640.00,52001-HIRE OF VEHICLES,CHILDRENS TAXI BUDGET,Transport,Revenue
Walsall Council,http://opendatacommunities.org/id/metropolitan-district-council/walsall,WC64-38,31/01/2016,Childrens,A1 EXPRESS TAXIS,25/01/2016,686.00,52001-HIRE OF VEHICLES,CHILDRENS TAXI BUDGET,Transport,Revenue
Walsall Council,http://opendatacommunities.org/id/metropolitan-district-council/walsall,WC64-39,31/01/2016,Childrens,A1 EXPRESS TAXIS,25/01/2016,"1,863.00",52001-HIRE OF VEHICLES,CHILDRENS TAXI BUDGET,Transport,Revenue
Walsall Council,http://opendatacommunities.org/id/metropolitan-district-council/walsall,WC64-40,31/01/2016,Childrens,REDACTED,11/01/2016,345.24,76422-DIRECT PAYMENTS TO SOCIAL SERVICES CLIENTS,FAMILY SUPPORT - DIRECT PAYMENTS,Transfer Payments,Revenue
Walsall Council,http://opendatacommunities.org/id/metropolitan-district-council/walsall,WC64-41,31/01/2016,Childrens,ABACUS FOSTERING LTD,11/01/2016,"4,207.14",74037-INDEPENDENT FOSTER CARE-OTH AGENCY PROVISION,EXTERNAL FOSTER CARE PROVISION,Third Party Payments,Revenue
Walsall Council,http://opendatacommunities.org/id/metropolitan-district-council/walsall,WC64-42,31/01/2016,Childrens,REDACTED,18/01/2016,650.92,74006-HOLIDAY/CHRISTMAS ALLOWANCE-FOSTER CARERS-OTH AGENCY PROVISION,INTERNAL FOSTER CARE PROVISION,Third Party Payments,Revenue
Walsall Council,http://opendatacommunities.org/id/metropolitan-district-council/walsall,WC64-43,31/01/2016,Social Care & Inclusion,ABBEY COURT NURSING & RESIDEN,26/01/2016,"1,654.07",73373-RESIDENTIAL & NURSING CARE PLACEMENTS,OP COMMISSIONING,Third Party Payments,Revenue
Walsall Council,http://opendatacommunities.org/id/metropolitan-district-council/walsall,WC64-44,31/01/2016,Social Care & Inclusion,ABBEY HEALTHCARE HOMES LTD,20/01/2016,"1,699.28",73373-RESIDENTIAL & NURSING CARE PLACEMENTS,YADS COMMISSIONING,Third Party Payments,Revenue
Walsall Council,http://opendatacommunities.org/id/metropolitan-district-council/walsall,WC64-45,31/01/2016,Social Care & Inclusion,ABBEY HEALTHCARE HOMES LTD,20/01/2016,"2,294.08",73373-RESIDENTIAL & NURSING CARE PLACEMENTS,YADS COMMISSIONING,Third Party Payments,Revenue
Walsall Council,http://opendatacommunities.org/id/metropolitan-district-council/walsall,WC64-46,31/01/2016,Childrens,ABC CHILDRENS HOME,15/01/2016,"13,285.71",74036-EXTERNAL RESIDENTIAL CARE-OTH AGENCY PROVISION,INDEPENDENT RESIDENTIAL HOMES,Third Party Payments,Revenue
Walsall Council,http://opendatacommunities.org/id/metropolitan-district-council/walsall,WC64-47,31/01/2016,Childrens,ABC CHILDRENS HOME,27/01/2016,"13,285.71",74036-EXTERNAL RESIDENTIAL CARE-OTH AGENCY PROVISION,INDEPENDENT RESIDENTIAL HOMES,Third Party Payments,Revenue
Walsall Council,http://opendatacommunities.org/id/metropolitan-district-council/walsall,WC64-48,31/01/2016,Childrens,ABC DAY NURSERY (WILLENHALL) LIMITED,08/01/2016,"12,990.29",66505-OTHER-GRANTS TO OTHER ORGS,EARLY YEARS - 2 YR OLDS,Third Party Payments,Revenue
Walsall Council,http://opendatacommunities.org/id/metropolitan-district-council/walsall,WC64-49,31/01/2016,Childrens,ABC DAY NURSERY (WILLENHALL) LIMITED,07/01/2016,"25,626.23",66505-OTHER-GRANTS TO OTHER ORGS,EARLY YEARS - 3 YR OLDS,Third Party Payments,Revenue
Walsall Council,http://opendatacommunities.org/id/metropolitan-district-council/walsall,WC64-50,31/01/2016,Childrens,ABC FOSTERING,11/01/2016,"2,884.20",74037-INDEPENDENT FOSTER CARE-OTH AGENCY PROVISION,EXTERNAL FOSTER CARE PROVISION,Third Party Payments,Revenue
Walsall Council,http://opendatacommunities.org/id/metropolitan-district-council/walsall,WC64-51,31/01/2016,Childrens,ABC FOSTERING,01/01/2016,"3,073.92",74037-INDEPENDENT FOSTER CARE-OTH AGENCY PROVISION,EXTERNAL FOSTER CARE PROVISION,Third Party Payments,Revenue
Walsall Council,http://opendatacommunities.org/id/metropolitan-district-council/walsall,WC64-52,31/01/2016,Childrens,ABC FOSTERING,01/01/2016,"3,135.00",74037-INDEPENDENT FOSTER CARE-OTH AGENCY PROVISION,EXTERNAL FOSTER CARE PROVISION,Third Party Payments,Revenue
Walsall Council,http://opendatacommunities.org/id/metropolitan-district-council/walsall,WC64-53,31/01/2016,Childrens,ABC FOSTERING,05/01/2016,"3,142.96",74037-INDEPENDENT FOSTER CARE-OTH AGENCY PROVISION,EXTERNAL FOSTER CARE PROVISION,Third Party Payments,Revenue
Walsall Council,http://opendatacommunities.org/id/metropolitan-district-council/walsall,WC64-54,31/01/2016,Childrens,ABC FOSTERING,05/01/2016,"3,142.96",74037-INDEPENDENT FOSTER CARE-OTH AGENCY PROVISION,EXTERNAL FOSTER CARE PROVISION,Third Party Payments,Revenue
Walsall Council,http://opendatacommunities.org/id/metropolitan-district-council/walsall,WC64-55,31/01/2016,Childrens,ABC FOSTERING,01/01/2016,"3,235.71",74037-INDEPENDENT FOSTER CARE-OTH AGENCY PROVISION,EXTERNAL FOSTER CARE PROVISION,Third Party Payments,Revenue
Walsall Council,http://opendatacommunities.org/id/metropolitan-district-council/walsall,WC64-56,31/01/2016,Childrens,ABC FOSTERING,11/01/2016,"3,300.00",74037-INDEPENDENT FOSTER CARE-OTH AGENCY PROVISION,EXTERNAL FOSTER CARE PROVISION,Third Party Payments,Revenue
Walsall Council,http://opendatacommunities.org/id/metropolitan-district-council/walsall,WC64-57,31/01/2016,Childrens,ABC FOSTERING,01/01/2016,"3,410.00",74037-INDEPENDENT FOSTER CARE-OTH AGENCY PROVISION,EXTERNAL FOSTER CARE PROVISION,Third Party Payments,Revenue
Walsall Council,http://opendatacommunities.org/id/metropolitan-district-council/walsall,WC64-58,31/01/2016,Childrens,ABC TEACHERS LIMITED,20/01/2016,461.98,34305-AGENCY STAFF-EMPLOYEES,ACCESS TEAM,Employees,Revenue
Walsall Council,http://opendatacommunities.org/id/metropolitan-district-council/walsall,WC64-59,31/01/2016,Childrens,ABC TEACHERS LIMITED,26/01/2016,692.97,34305-AGENCY STAFF-EMPLOYEES,ACCESS TEAM,Employees,Revenue
Walsall Council,http://opendatacommunities.org/id/metropolitan-district-council/walsall,WC64-60,31/01/2016,Change and Governance,ABEL ALARM CO LTD,18/01/2016,781.00,73002-SECURITY-PRIV CONTRACTOR FEES,CENTRALISED MAINTENANCE,Third Party Payments,Revenue
Walsall Council,http://opendatacommunities.org/id/metropolitan-district-council/walsall,WC64-61,31/01/2016,Social Care & Inclusion,REDACTED,11/01/2016,"2,357.99",76422-DIRECT PAYMENTS TO SOCIAL SERVICES CLIENTS,LD COMMISSIONING,Transfer Payments,Revenue
Walsall Council,http://opendatacommunities.org/id/metropolitan-district-council/walsall,WC64-62,31/01/2016,Childrens,ABLEWELL CARS,20/01/2016,795.00,52000-WITH DRIVER-HIRE OF VEHICLES,SCHOOL TRANSPORT,Transport,Revenue
Walsall Council,http://opendatacommunities.org/id/metropolitan-district-council/walsall,WC64-63,31/01/2016,Childrens,ABU BAKR NURSERY,08/01/2016,"6,212.75",66505-OTHER-GRANTS TO OTHER ORGS,EARLY YEARS - 2 YR OLDS,Third Party Payments,Revenue
Walsall Council,http://opendatacommunities.org/id/metropolitan-district-council/walsall,WC64-64,31/01/2016,Childrens,ABU BAKR NURSERY,07/01/2016,"22,804.30",66505-OTHER-GRANTS TO OTHER ORGS,EARLY YEARS - 3 YR OLDS,Third Party Payments,Revenue
Walsall Council,http://opendatacommunities.org/id/metropolitan-district-council/walsall,WC64-65,31/01/2016,Childrens,AC EDUCATION,12/01/2016,"4,255.00",30030-EXTERNAL TRAINING,FAMILY PLACEMENTS,Employees,Revenue
Walsall Council,http://opendatacommunities.org/id/metropolitan-district-council/walsall,WC64-66,31/01/2016,Social Care & Inclusion,ACCORD HOUSING ASSOCIATION LTD#135,27/01/2016,255.39,73374-SUPPORTED & OTHER ACCOMMODATION,MH COMMISSIONING,Third Party Payments,Revenue
Walsall Council,http://opendatacommunities.org/id/metropolitan-district-council/walsall,WC64-67,31/01/2016,Social Care & Inclusion,ACCORD HOUSING ASSOCIATION LTD#135,27/01/2016,276.67,73374-SUPPORTED & OTHER ACCOMMODATION,MH COMMISSIONING,Third Party Payments,Revenue
Walsall Council,http://opendatacommunities.org/id/metropolitan-district-council/walsall,WC64-68,31/01/2016,Social Care & Inclusion,ACCORD HOUSING ASSOCIATION LTD#135,27/01/2016,347.45,73374-SUPPORTED & OTHER ACCOMMODATION,MH COMMISSIONING,Third Party Payments,Revenue
Walsall Council,http://opendatacommunities.org/id/metropolitan-district-council/walsall,WC64-69,31/01/2016,Social Care & Inclusion,ACCORD HOUSING ASSOCIATION LTD#135,27/01/2016,347.45,73374-SUPPORTED & OTHER ACCOMMODATION,MH COMMISSIONING,Third Party Payments,Revenue
Walsall Council,http://opendatacommunities.org/id/metropolitan-district-council/walsall,WC64-70,31/01/2016,Social Care & Inclusion,ACCORD HOUSING ASSOCIATION LTD#135,27/01/2016,347.45,73374-SUPPORTED & OTHER ACCOMMODATION,MH COMMISSIONING,Third Party Payments,Revenue
Walsall Council,http://opendatacommunities.org/id/metropolitan-district-council/walsall,WC64-71,31/01/2016,Social Care & Inclusion,ACCORD HOUSING ASSOCIATION LTD#135,05/01/2016,348.79,73374-SUPPORTED & OTHER ACCOMMODATION,LD COMMISSIONING,Third Party Payments,Revenue
Walsall Council,http://opendatacommunities.org/id/metropolitan-district-council/walsall,WC64-72,31/01/2016,Social Care & Inclusion,ACCORD HOUSING ASSOCIATION LTD#135,06/01/2016,476.94,73373-RESIDENTIAL & NURSING CARE PLACEMENTS,OP COMMISSIONING,Third Party Payments,Revenue
Walsall Council,http://opendatacommunities.org/id/metropolitan-district-council/walsall,WC64-73,31/01/2016,Social Care & Inclusion,ACCORD HOUSING ASSOCIATION LTD#135,06/01/2016,635.92,73373-RESIDENTIAL & NURSING CARE PLACEMENTS,OP COMMISSIONING,Third Party Payments,Revenue
Walsall Council,http://opendatacommunities.org/id/metropolitan-district-council/walsall,WC64-74,31/01/2016,Social Care & Inclusion,ACCORD HOUSING ASSOCIATION LTD#135,06/01/2016,953.88,73373-RESIDENTIAL & NURSING CARE PLACEMENTS,OP COMMISSIONING,Third Party Payments,Revenue
Walsall Council,http://opendatacommunities.org/id/metropolitan-district-council/walsall,WC64-75,31/01/2016,Social Care & Inclusion,ACCORD HOUSING ASSOCIATION LTD#135,06/01/2016,"1,112.86",73373-RESIDENTIAL & NURSING CARE PLACEMENTS,OP COMMISSIONING,Third Party Payments,Revenue
Walsall Council,http://opendatacommunities.org/id/metropolitan-district-council/walsall,WC64-76,31/01/2016,Change and Governance,ACCORD HOUSING ASSOCIATION LTD#135,13/01/2016,"1,150.00",73047-CONSULTANTS FEES,HOMELESSNESS PREVENTION STRATEGY,Supplies & Services,Revenue
Walsall Council,http://opendatacommunities.org/id/metropolitan-district-council/walsall,WC64-77,31/01/2016,Social Care & Inclusion,ACCORD HOUSING ASSOCIATION LTD#135,12/01/2016,"4,744.90",73373-RESIDENTIAL & NURSING CARE PLACEMENTS,LD COMMISSIONING,Third Party Payments,Revenue
Walsall Council,http://opendatacommunities.org/id/metropolitan-district-council/walsall,WC64-78,31/01/2016,Social Care & Inclusion,ACCORD HOUSING ASSOCIATION LTD#135,12/01/2016,"4,744.90",73373-RESIDENTIAL & NURSING CARE PLACEMENTS,LD COMMISSIONING,Third Party Payments,Revenue
Walsall Council,http://opendatacommunities.org/id/metropolitan-district-council/walsall,WC64-79,31/01/2016,Social Care & Inclusion,ACCORD HOUSING ASSOCIATION LTD#135,12/01/2016,"4,744.90",73373-RESIDENTIAL & NURSING CARE PLACEMENTS,LD COMMISSIONING,Third Party Payments,Revenue
Walsall Council,http://opendatacommunities.org/id/metropolitan-district-council/walsall,WC64-80,31/01/2016,Social Care & Inclusion,ACCORD HOUSING ASSOCIATION LTD#135,20/01/2016,"4,744.90",73373-RESIDENTIAL & NURSING CARE PLACEMENTS,LD COMMISSIONING,Third Party Payments,Revenue
Walsall Council,http://opendatacommunities.org/id/metropolitan-district-council/walsall,WC64-81,31/01/2016,Social Care & Inclusion,ACCORD HOUSING ASSOCIATION LTD#135,12/01/2016,"6,622.35",73373-RESIDENTIAL & NURSING CARE PLACEMENTS,LD COMMISSIONING,Third Party Payments,Revenue
Walsall Council,http://opendatacommunities.org/id/metropolitan-district-council/walsall,WC64-82,31/01/2016,Social Care & Inclusion,ACCORD HOUSING ASSOCIATION LTD#135,12/01/2016,"6,622.35",73373-RESIDENTIAL & NURSING CARE PLACEMENTS,LD COMMISSIONING,Third Party Payments,Revenue
Walsall Council,http://opendatacommunities.org/id/metropolitan-district-council/walsall,WC64-83,31/01/2016,Social Care & Inclusion,ACCORD HOUSING ASSOCIATION LTD#135,12/01/2016,"6,622.35",73373-RESIDENTIAL & NURSING CARE PLACEMENTS,LD COMMISSIONING,Third Party Payments,Revenue
Walsall Council,http://opendatacommunities.org/id/metropolitan-district-council/walsall,WC64-84,31/01/2016,Social Care & Inclusion,ACCORD HOUSING ASSOCIATION LTD#135,05/01/2016,"7,994.03",73372-DOMICILIARY CARE,OP COMMISSIONING,Third Party Payments,Revenue
Walsall Council,http://opendatacommunities.org/id/metropolitan-district-council/walsall,WC64-85,31/01/2016,Social Care & Inclusion,ACCORD HOUSING ASSOCIATION LTD#135,22/01/2016,"11,164.00",73365-BLOCK GROSS-SUPPORTING PEOPLE,EXTERNAL SP,Third Party Payments,Revenue
Walsall Council,http://opendatacommunities.org/id/metropolitan-district-council/walsall,WC64-86,31/01/2016,Social Care & Inclusion,ACCORD HOUSING ASSOCIATION LTD#135,05/01/2016,"29,128.12",73372-DOMICILIARY CARE,OP COMMISSIONING,Third Party Payments,Revenue
Walsall Council,http://opendatacommunities.org/id/metropolitan-district-council/walsall,WC64-87,31/01/2016,Social Care & Inclusion,ACCORD HOUSING ASSOCIATION LTD#135,22/01/2016,"29,330.75",73365-BLOCK GROSS-SUPPORTING PEOPLE,EXTERNAL SP,Third Party Payments,Revenue
Walsall Council,http://opendatacommunities.org/id/metropolitan-district-council/walsall,WC64-88,31/01/2016,Social Care & Inclusion,ACE CARE AGENCY,26/01/2016,526.11,73372-DOMICILIARY CARE,MH COMMISSIONING,Third Party Payments,Revenue
Walsall Council,http://opendatacommunities.org/id/metropolitan-district-council/walsall,WC64-89,31/01/2016,Social Care & Inclusion,ACE CARE AGENCY,19/01/2016,647.52,73372-DOMICILIARY CARE,MH COMMISSIONING,Third Party Payments,Revenue
Walsall Council,http://opendatacommunities.org/id/metropolitan-district-council/walsall,WC64-90,31/01/2016,Social Care & Inclusion,ACE CARE AGENCY,26/01/2016,"1,015.93",73372-DOMICILIARY CARE,OP COMMISSIONING,Third Party Payments,Revenue
Walsall Council,http://opendatacommunities.org/id/metropolitan-district-council/walsall,WC64-91,31/01/2016,Social Care & Inclusion,ACE CARE AGENCY,19/01/2016,"1,019.76",73372-DOMICILIARY CARE,OP COMMISSIONING,Third Party Payments,Revenue
Walsall Council,http://opendatacommunities.org/id/metropolitan-district-council/walsall,WC64-92,31/01/2016,Childrens,ACE RADIO CARS,20/01/2016,"1,366.68",52000-WITH DRIVER-HIRE OF VEHICLES,SCHOOL TRANSPORT,Transport,Revenue
Walsall Council,http://opendatacommunities.org/id/metropolitan-district-council/walsall,WC64-93,31/01/2016,Childrens,ACE RADIO CARS,12/01/2016,"1,952.42",52000-WITH DRIVER-HIRE OF VEHICLES,SCHOOL TRANSPORT,Transport,Revenue
Walsall Council,http://opendatacommunities.org/id/metropolitan-district-council/walsall,WC64-94,31/01/2016,Social Care & Inclusion,ACEPAY LTD (COTTAGE NUR HOME),20/01/2016,"1,975.60",73373-RESIDENTIAL & NURSING CARE PLACEMENTS,OP COMMISSIONING,Third Party Payments,Revenue
Walsall Council,http://opendatacommunities.org/id/metropolitan-district-council/walsall,WC64-95,31/01/2016,Social Care & Inclusion,ACEPAY LTD (COTTAGE NUR HOME),20/01/2016,"1,975.60",73373-RESIDENTIAL & NURSING CARE PLACEMENTS,OP COMMISSIONING,Third Party Payments,Revenue
Walsall Council,http://opendatacommunities.org/id/metropolitan-district-council/walsall,WC64-96,31/01/2016,Social Care & Inclusion,ACEPAY LTD (COTTAGE NUR HOME),20/01/2016,"1,975.60",73373-RESIDENTIAL & NURSING CARE PLACEMENTS,OP COMMISSIONING,Third Party Payments,Revenue
Walsall Council,http://opendatacommunities.org/id/metropolitan-district-council/walsall,WC64-97,31/01/2016,Social Care & Inclusion,ACEPAY LTD (COTTAGE NUR HOME),20/01/2016,"2,018.20",73373-RESIDENTIAL & NURSING CARE PLACEMENTS,OP COMMISSIONING,Third Party Payments,Revenue
Walsall Council,http://opendatacommunities.org/id/metropolitan-district-council/walsall,WC64-98,31/01/2016,Social Care & Inclusion,ACEPAY LTD (COTTAGE NUR HOME),20/01/2016,"2,018.20",73373-RESIDENTIAL & NURSING CARE PLACEMENTS,OP COMMISSIONING,Third Party Payments,Revenue
Walsall Council,http://opendatacommunities.org/id/metropolitan-district-council/walsall,WC64-99,31/01/2016,Social Care & Inclusion,ACEPAY LTD (COTTAGE NUR HOME),20/01/2016,"2,018.20",73373-RESIDENTIAL & NURSING CARE PLACEMENTS,OP COMMISSIONING,Third Party Payments,Revenue
Walsall Council,http://opendatacommunities.org/id/metropolitan-district-council/walsall,WC64-100,31/01/2016,Childrens,ACORN FOSTERING SERVICES LTD,11/01/2016,"3,428.83",74037-INDEPENDENT FOSTER CARE-OTH AGENCY PROVISION,EXTERNAL FOSTER CARE PROVISION,Third Party Payments,Revenue
Walsall Council,http://opendatacommunities.org/id/metropolitan-district-council/walsall,WC64-101,31/01/2016,Social Care & Inclusion,ACORN REST HOME,20/01/2016,"1,493.24",73373-RESIDENTIAL & NURSING CARE PLACEMENTS,OP COMMISSIONING,Third Party Payments,Revenue
Walsall Council,http://opendatacommunities.org/id/metropolitan-district-council/walsall,WC64-102,31/01/2016,Social Care & Inclusion,ACORN REST HOME,20/01/2016,"1,493.24",73373-RESIDENTIAL & NURSING CARE PLACEMENTS,OP COMMISSIONING,Third Party Payments,Revenue
Walsall Council,http://opendatacommunities.org/id/metropolitan-district-council/walsall,WC64-103,31/01/2016,Childrens,ACORNS CHILDRENS HOSPICE TRUST,22/01/2016,750.00,63000-PROFESSIONAL FEES AND SERVICES,DIRECTLY COMMISSIONED NURSING SERVICES,Supplies & Services,Revenue
Walsall Council,http://opendatacommunities.org/id/metropolitan-district-council/walsall,WC64-104,31/01/2016,Childrens,ACOUSTIC CONSULTANTS LTD,22/01/2016,500.00,01005-ARCHITECTS INSTRUCTION,CFR 929 KING CHARLES PRIMARY SIGNIFICANT ENLARGEMENT,Capital,Capital
Walsall Council,http://opendatacommunities.org/id/metropolitan-district-council/walsall,WC64-105,31/01/2016,Childrens,ACTION FOR CHILDREN,13/01/2016,"3,518.85",74037-INDEPENDENT FOSTER CARE-OTH AGENCY PROVISION,EXTERNAL FOSTER CARE PROVISION,Third Party Payments,Revenue
Walsall Council,http://opendatacommunities.org/id/metropolitan-district-council/walsall,WC64-106,31/01/2016,Social Care & Inclusion,ACTION ON HEARING LOSS,18/01/2016,229.95,63606-TELEPHONES PAGERS-TELEPHONES,SENSORY/DEAF SERVICES,Supplies & Services,Revenue
Walsall Council,http://opendatacommunities.org/id/metropolitan-district-council/walsall,WC64-107,31/01/2016,Childrens,REDACTED,11/01/2016,487.60,76422-DIRECT PAYMENTS TO SOCIAL SERVICES CLIENTS,FAMILY SUPPORT - DIRECT PAYMENTS,Transfer Payments,Revenue
Walsall Council,http://opendatacommunities.org/id/metropolitan-district-council/walsall,WC64-108,31/01/2016,Social Care & Inclusion,REDACTED,11/01/2016,417.48,76422-DIRECT PAYMENTS TO SOCIAL SERVICES CLIENTS,LD COMMISSIONING,Transfer Payments,Revenue
Walsall Council,http://opendatacommunities.org/id/metropolitan-district-council/walsall,WC64-109,31/01/2016,Social Care & Inclusion,REDACTED,11/01/2016,860.00,76422-DIRECT PAYMENTS TO SOCIAL SERVICES CLIENTS,OP COMMISSIONING,Transfer Payments,Revenue
Walsall Council,http://opendatacommunities.org/id/metropolitan-district-council/walsall,WC64-110,31/01/2016,Change and Governance,ADMIRAL SELF STORAGE LTD,20/01/2016,419.32,63000-PROFESSIONAL FEES AND SERVICES,FINANCE ADMIN,Supplies & Services,Revenue
Walsall Council,http://opendatacommunities.org/id/metropolitan-district-council/walsall,WC64-111,31/01/2016,Childrens,REDACTED,18/01/2016,728.32,74006-HOLIDAY/CHRISTMAS ALLOWANCE-FOSTER CARERS-OTH AGENCY PROVISION,INTERNAL FOSTER CARE PROVISION,Third Party Payments,Revenue
Walsall Council,http://opendatacommunities.org/id/metropolitan-district-council/walsall,WC64-112,31/01/2016,Economy & Environment,ADS ELECTRICAL & HIGHWAY SERVICES LTD,15/01/2016,248.00,60534-VEHICLE TESTING STATION-MATERIALS,GROUNDS,Supplies & Services,Revenue
Walsall Council,http://opendatacommunities.org/id/metropolitan-district-council/walsall,WC64-113,31/01/2016,Economy & Environment,ADS ELECTRICAL & HIGHWAY SERVICES LTD,01/01/2016,370.00,"40000-REPAIRS,ALTERATIONS & MAINTENANCE-PREM",BLOXWICH DISTRICT CENTRE,Premises,Revenue
Walsall Council,http://opendatacommunities.org/id/metropolitan-district-council/walsall,WC64-114,31/01/2016,Economy & Environment,ADS ELECTRICAL & HIGHWAY SERVICES LTD,15/01/2016,538.00,60534-VEHICLE TESTING STATION-MATERIALS,GROUNDS,Supplies & Services,Revenue
Walsall Council,http://opendatacommunities.org/id/metropolitan-district-council/walsall,WC64-115,31/01/2016,Economy & Environment,ADS ELECTRICAL & HIGHWAY SERVICES LTD,01/01/2016,"3,745.00",60534-VEHICLE TESTING STATION-MATERIALS,GROUNDS,Supplies & Services,Revenue
Walsall Council,http://opendatacommunities.org/id/metropolitan-district-council/walsall,WC64-116,31/01/2016,Economy & Environment,ADS ELECTRICAL & HIGHWAY SERVICES LTD,01/01/2016,"9,340.00",63000-PROFESSIONAL FEES AND SERVICES,FESTIVE DECORATIONS,Supplies & Services,Revenue
Walsall Council,http://opendatacommunities.org/id/metropolitan-district-council/walsall,WC64-117,31/01/2016,Social Care & Inclusion,ADVANCE HEALTH CARE (UK) LTD,13/01/2016,511.32,73372-DOMICILIARY CARE,OP COMMISSIONING,Third Party Payments,Revenue
Walsall Council,http://opendatacommunities.org/id/metropolitan-district-council/walsall,WC64-118,31/01/2016,Social Care & Inclusion,ADVANCE HEALTH CARE (UK) LTD,22/01/2016,"3,930.00",34305-AGENCY STAFF-EMPLOYEES,COMMUNITY INTERMEDIATE CARE,Employees,Revenue
Walsall Council,http://opendatacommunities.org/id/metropolitan-district-council/walsall,WC64-119,31/01/2016,Social Care & Inclusion,ADVANCE HEALTH CARE (UK) LTD,27/01/2016,"3,930.00",34305-AGENCY STAFF-EMPLOYEES,COMMUNITY INTERMEDIATE CARE,Employees,Revenue
Walsall Council,http://opendatacommunities.org/id/metropolitan-district-council/walsall,WC64-120,31/01/2016,Social Care & Inclusion,ADVANCE HEALTH CARE (UK) LTD,27/01/2016,"3,930.00",34305-AGENCY STAFF-EMPLOYEES,COMMUNITY INTERMEDIATE CARE,Employees,Revenue
Walsall Council,http://opendatacommunities.org/id/metropolitan-district-council/walsall,WC64-121,31/01/2016,Social Care & Inclusion,ADVANCE HEALTH CARE (UK) LTD,05/01/2016,"42,077.11",73372-DOMICILIARY CARE,OP COMMISSIONING,Third Party Payments,Revenue
Walsall Council,http://opendatacommunities.org/id/metropolitan-district-council/walsall,WC64-122,31/01/2016,Childrens,ADVENTURELAND DAY NURSERY,06/01/2016,"9,879.77",66505-OTHER-GRANTS TO OTHER ORGS,EARLY YEARS - 3 YR OLDS,Third Party Payments,Revenue
Walsall Council,http://opendatacommunities.org/id/metropolitan-district-council/walsall,WC64-123,31/01/2016,Childrens,ADVENTURELAND DAY NURSERY,06/01/2016,"10,731.11",66505-OTHER-GRANTS TO OTHER ORGS,EARLY YEARS - 2 YR OLDS,Third Party Payments,Revenue
Walsall Council,http://opendatacommunities.org/id/metropolitan-district-council/walsall,WC64-124,31/01/2016,Social Care & Inclusion,ADVOCACY MATTERS LIMITED,05/01/2016,"13,429.00",70000-SOCIAL SERVICES-FEES TO VOLUNTARY BODIES,YADS SLA,Third Party Payments,Revenue
Walsall Council,http://opendatacommunities.org/id/metropolitan-district-council/walsall,WC64-125,31/01/2016,Social Care & Inclusion,ADVOCACY MATTERS LIMITED,05/01/2016,"20,120.00",70000-SOCIAL SERVICES-FEES TO VOLUNTARY BODIES,YADS SLA,Third Party Payments,Revenue
Walsall Council,http://opendatacommunities.org/id/metropolitan-district-council/walsall,WC64-126,31/01/2016,Social Care & Inclusion,ADVOCACY MATTERS LIMITED,05/01/2016,"22,560.75",70000-SOCIAL SERVICES-FEES TO VOLUNTARY BODIES,OP SLA,Third Party Payments,Revenue
Walsall Council,http://opendatacommunities.org/id/metropolitan-district-council/walsall,WC64-127,31/01/2016,Social Care & Inclusion,AGE UK WALSALL,13/01/2016,"7,060.00",76423-DIRECT PAYMENTS SUPPORT,INDIVIDUAL BUDGET - SUPPORT,Transfer Payments,Revenue
Walsall Council,http://opendatacommunities.org/id/metropolitan-district-council/walsall,WC64-128,31/01/2016,Economy & Environment,AGE UK WALSALL,25/01/2016,"11,250.00",63000-PROFESSIONAL FEES AND SERVICES,FALLS PREVENTION,Supplies & Services,Revenue
Walsall Council,http://opendatacommunities.org/id/metropolitan-district-council/walsall,WC64-129,31/01/2016,Social Care & Inclusion,REDACTED,11/01/2016,"1,882.00",76422-DIRECT PAYMENTS TO SOCIAL SERVICES CLIENTS,LD COMMISSIONING,Transfer Payments,Revenue
Walsall Council,http://opendatacommunities.org/id/metropolitan-district-council/walsall,WC64-130,31/01/2016,Economy & Environment,AIR MONITORS LIMITED,13/01/2016,"2,015.00",60008-MAINTENANCE-FURNITURE & EQUIPMENT,POLLUTION DIVISION,Supplies & Services,Revenue
Walsall Council,http://opendatacommunities.org/id/metropolitan-district-council/walsall,WC64-131,31/01/2016,Social Care & Inclusion,REDACTED,11/01/2016,936.52,76422-DIRECT PAYMENTS TO SOCIAL SERVICES CLIENTS,OP COMMISSIONING,Transfer Payments,Revenue
Walsall Council,http://opendatacommunities.org/id/metropolitan-district-council/walsall,WC64-132,31/01/2016,Childrens,AJK TRAVEL,12/01/2016,938.70,52000-WITH DRIVER-HIRE OF VEHICLES,SCHOOL TRANSPORT,Transport,Revenue
Walsall Council,http://opendatacommunities.org/id/metropolitan-district-council/walsall,WC64-133,31/01/2016,Social Care & Inclusion,ALAN CRITCHLEY ASSOCIATES,21/01/2016,"1,500.00",32000-MISC FEES AND EXPENSES,SENIOR MANAGEMENT TEAM,Employees,Revenue
Walsall Council,http://opendatacommunities.org/id/metropolitan-district-council/walsall,WC64-134,31/01/2016,Childrens,ALAN CRITCHLEY ASSOCIATES,20/01/2016,"1,800.00",63102-CONSULTANTS FEES - CORPORATE,SAFEGUARDING BOARD,Supplies & Services,Revenue
Walsall Council,http://opendatacommunities.org/id/metropolitan-district-council/walsall,WC64-135,31/01/2016,Childrens,ALBERT PRITCHARD INFANT AND WOOD GREEN JUNIOR FEDERATED SCHOOLS,01/01/2016,450.00,77300-ISB-FORMULA ALLOCATION,OUT OF BOROUGH SCHOOLS,Transfer Payments,Revenue
Walsall Council,http://opendatacommunities.org/id/metropolitan-district-council/walsall,WC64-136,31/01/2016,Childrens,ALBERT PRITCHARD INFANT AND WOOD GREEN JUNIOR FEDERATED SCHOOLS,12/01/2016,"1,000.00",77300-ISB-FORMULA ALLOCATION,OUT OF BOROUGH SCHOOLS,Transfer Payments,Revenue
Walsall Council,http://opendatacommunities.org/id/metropolitan-district-council/walsall,WC64-137,31/01/2016,Economy & Environment,ALCIUM SOFTWARE,25/01/2016,"4,431.25",63114-OTHER FEES & LICENCES-SERVICES-FEES,UNCAPITALISED SPEND,Supplies & Services,Revenue
Walsall Council,http://opendatacommunities.org/id/metropolitan-district-council/walsall,WC64-138,31/01/2016,Economy & Environment,ALCIUM SOFTWARE,25/01/2016,"4,431.25",73025-PROFESSIONAL SERVICES-PRIV CONTRACTOR & OTHER AGENCIES,MS-HEAD OF STRATEGIC REGENERATION,Third Party Payments,Revenue
Walsall Council,http://opendatacommunities.org/id/metropolitan-district-council/walsall,WC64-139,31/01/2016,Social Care & Inclusion,ALDERGROVE MANOR CARE HOME,06/01/2016,"1,839.68",73373-RESIDENTIAL & NURSING CARE PLACEMENTS,MH COMMISSIONING,Third Party Payments,Revenue
Walsall Council,http://opendatacommunities.org/id/metropolitan-district-council/walsall,WC64-140,31/01/2016,Childrens,ALDRIDGE & BARONS LIMITED,25/01/2016,"3,111.48",52001-HIRE OF VEHICLES,CHILDRENS TAXI BUDGET,Transport,Revenue
Walsall Council,http://opendatacommunities.org/id/metropolitan-district-council/walsall,WC64-141,31/01/2016,Childrens,ALDRIDGE & BARONS LIMITED,11/01/2016,"11,456.45",52000-WITH DRIVER-HIRE OF VEHICLES,SCHOOL TRANSPORT,Transport,Revenue
Walsall Council,http://opendatacommunities.org/id/metropolitan-district-council/walsall,WC64-142,31/01/2016,Childrens,ALDRIDGE & BARONS LIMITED,11/01/2016,"18,117.90",52000-WITH DRIVER-HIRE OF VEHICLES,SCHOOL TRANSPORT,Transport,Revenue
Walsall Council,http://opendatacommunities.org/id/metropolitan-district-council/walsall,WC64-143,31/01/2016,Childrens,ALDRIDGE SCHOOL A SCIENCE COLLEGE.,22/01/2016,"1,500.00",77300-ISB-FORMULA ALLOCATION,ALDRIDGE SCHOOL SCIENCE COLLEGE (ACADEMY),Transfer Payments,Revenue
Walsall Council,http://opendatacommunities.org/id/metropolitan-district-council/walsall,WC64-144,31/01/2016,Social Care & Inclusion,REDACTED,11/01/2016,"1,204.00",76422-DIRECT PAYMENTS TO SOCIAL SERVICES CLIENTS,YADS COMMISSIONING,Transfer Payments,Revenue
Walsall Council,http://opendatacommunities.org/id/metropolitan-district-council/walsall,WC64-145,31/01/2016,Social Care & Inclusion,ALEXANDRA HOUSE CARE SERVICES LTD T/A STONEBRIDGE NURSING HOME,26/01/2016,"7,117.44",73373-RESIDENTIAL & NURSING CARE PLACEMENTS,OP COMMISSIONING,Third Party Payments,Revenue
Walsall Council,http://opendatacommunities.org/id/metropolitan-district-council/walsall,WC64-146,31/01/2016,Childrens,REDACTED,11/01/2016,582.66,76422-DIRECT PAYMENTS TO SOCIAL SERVICES CLIENTS,FAMILY SUPPORT - DIRECT PAYMENTS,Transfer Payments,Revenue
Walsall Council,http://opendatacommunities.org/id/metropolitan-district-council/walsall,WC64-147,31/01/2016,Childrens,ALFORD PRIMARY SCHOOL,13/01/2016,"1,256.00",77300-ISB-FORMULA ALLOCATION,OUT OF BOROUGH SCHOOLS,Transfer Payments,Revenue
Walsall Council,http://opendatacommunities.org/id/metropolitan-district-council/walsall,WC64-148,31/01/2016,Social Care & Inclusion,REDACTED,11/01/2016,854.00,76422-DIRECT PAYMENTS TO SOCIAL SERVICES CLIENTS,YADS COMMISSIONING,Transfer Payments,Revenue
Walsall Council,http://opendatacommunities.org/id/metropolitan-district-council/walsall,WC64-149,31/01/2016,Change and Governance,ALIGNED ASSETS LTD,22/01/2016,"3,572.41",63820-RECHARGE FOR MAINTENANCE/APPLICATION COSTS-COMPUTER,APPLICATIONS,Supplies & Services,Revenue
Walsall Council,http://opendatacommunities.org/id/metropolitan-district-council/walsall,WC64-150,31/01/2016,Social Care & Inclusion,REDACTED,11/01/2016,578.00,76422-DIRECT PAYMENTS TO SOCIAL SERVICES CLIENTS,OP COMMISSIONING,Transfer Payments,Revenue
Walsall Council,http://opendatacommunities.org/id/metropolitan-district-council/walsall,WC64-151,31/01/2016,Childrens,REDACTED,04/01/2016,506.76,62515-MISCELLANEOUS SUPPLIES,INTERNAL FOSTER CARE PROVISION,Supplies & Services,Revenue
Walsall Council,http://opendatacommunities.org/id/metropolitan-district-council/walsall,WC64-152,31/01/2016,Childrens,REDACTED,04/01/2016,985.76,74006-HOLIDAY/CHRISTMAS ALLOWANCE-FOSTER CARERS-OTH AGENCY PROVISION,INTERNAL FOSTER CARE PROVISION,Third Party Payments,Revenue
Walsall Council,http://opendatacommunities.org/id/metropolitan-district-council/walsall,WC64-153,31/01/2016,Childrens,REDACTED,18/01/2016,552.96,74006-HOLIDAY/CHRISTMAS ALLOWANCE-FOSTER CARERS-OTH AGENCY PROVISION,INTERNAL FOSTER CARE PROVISION,Third Party Payments,Revenue
Walsall Council,http://opendatacommunities.org/id/metropolitan-district-council/walsall,WC64-154,31/01/2016,Change and Governance,ALLSORTS OFFICE SUPPLIES LTD,01/01/2016,"1,856.00",63800-COMPUTER EQUIPMENT AND SUPPLIES,RECHARGEABLE EQUIPMENT,Supplies & Services,Revenue
Walsall Council,http://opendatacommunities.org/id/metropolitan-district-council/walsall,WC64-155,31/01/2016,Social Care & Inclusion,ALMA COURT,26/01/2016,"6,113.10",73373-RESIDENTIAL & NURSING CARE PLACEMENTS,MH COMMISSIONING,Third Party Payments,Revenue
Walsall Council,http://opendatacommunities.org/id/metropolitan-district-council/walsall,WC64-156,31/01/2016,Social Care & Inclusion,ALMA COURT,26/01/2016,"6,113.10",73373-RESIDENTIAL & NURSING CARE PLACEMENTS,MH COMMISSIONING,Third Party Payments,Revenue
Walsall Council,http://opendatacommunities.org/id/metropolitan-district-council/walsall,WC64-157,31/01/2016,Social Care & Inclusion,ALMA COURT,26/01/2016,"6,113.10",73373-RESIDENTIAL & NURSING CARE PLACEMENTS,MH COMMISSIONING,Third Party Payments,Revenue
Walsall Council,http://opendatacommunities.org/id/metropolitan-district-council/walsall,WC64-158,31/01/2016,Social Care & Inclusion,ALMA COURT,20/01/2016,"6,316.87",73373-RESIDENTIAL & NURSING CARE PLACEMENTS,OP COMMISSIONING,Third Party Payments,Revenue
Walsall Council,http://opendatacommunities.org/id/metropolitan-district-council/walsall,WC64-159,31/01/2016,Social Care & Inclusion,ALMA COURT,20/01/2016,"6,316.87",73373-RESIDENTIAL & NURSING CARE PLACEMENTS,OP COMMISSIONING,Third Party Payments,Revenue
Walsall Council,http://opendatacommunities.org/id/metropolitan-district-council/walsall,WC64-160,31/01/2016,Social Care & Inclusion,ALMA COURT,26/01/2016,"6,316.87",73373-RESIDENTIAL & NURSING CARE PLACEMENTS,MH COMMISSIONING,Third Party Payments,Revenue
Walsall Council,http://opendatacommunities.org/id/metropolitan-district-council/walsall,WC64-161,31/01/2016,Social Care & Inclusion,ALMA COURT,26/01/2016,"6,316.87",73373-RESIDENTIAL & NURSING CARE PLACEMENTS,MH COMMISSIONING,Third Party Payments,Revenue
Walsall Council,http://opendatacommunities.org/id/metropolitan-district-council/walsall,WC64-162,31/01/2016,Social Care & Inclusion,ALMA COURT,26/01/2016,"6,316.87",73373-RESIDENTIAL & NURSING CARE PLACEMENTS,MH COMMISSIONING,Third Party Payments,Revenue
Walsall Council,http://opendatacommunities.org/id/metropolitan-district-council/walsall,WC64-163,31/01/2016,Childrens,ALMOZENE NURSERY & CHILDRENS CENTRE,08/01/2016,"4,518.36",66505-OTHER-GRANTS TO OTHER ORGS,EARLY YEARS - 2 YR OLDS,Third Party Payments,Revenue
Walsall Council,http://opendatacommunities.org/id/metropolitan-district-council/walsall,WC64-164,31/01/2016,Childrens,ALMOZENE NURSERY & CHILDRENS CENTRE,07/01/2016,"8,980.11",66505-OTHER-GRANTS TO OTHER ORGS,EARLY YEARS - 3 YR OLDS,Third Party Payments,Revenue
Walsall Council,http://opendatacommunities.org/id/metropolitan-district-council/walsall,WC64-165,31/01/2016,Social Care & Inclusion,ALPHA HEALTH CARE LTD,12/01/2016,-368.00,73373-RESIDENTIAL & NURSING CARE PLACEMENTS,OP COMMISSIONING,Third Party Payments,Revenue
Walsall Council,http://opendatacommunities.org/id/metropolitan-district-council/walsall,WC64-166,31/01/2016,Social Care & Inclusion,ALPHA HEALTH CARE LTD,26/01/2016,"1,406.56",73373-RESIDENTIAL & NURSING CARE PLACEMENTS,OP COMMISSIONING,Third Party Payments,Revenue
Walsall Council,http://opendatacommunities.org/id/metropolitan-district-council/walsall,WC64-167,31/01/2016,Social Care & Inclusion,ALPHA HEALTH CARE LTD,26/01/2016,"1,413.08",73373-RESIDENTIAL & NURSING CARE PLACEMENTS,OP COMMISSIONING,Third Party Payments,Revenue
Walsall Council,http://opendatacommunities.org/id/metropolitan-district-council/walsall,WC64-168,31/01/2016,Social Care & Inclusion,ALPHA HEALTH CARE LTD,26/01/2016,"1,493.24",73373-RESIDENTIAL & NURSING CARE PLACEMENTS,OP COMMISSIONING,Third Party Payments,Revenue
Walsall Council,http://opendatacommunities.org/id/metropolitan-district-council/walsall,WC64-169,31/01/2016,Social Care & Inclusion,ALPHA HEALTH CARE LTD,26/01/2016,"1,510.08",73373-RESIDENTIAL & NURSING CARE PLACEMENTS,OP COMMISSIONING,Third Party Payments,Revenue
Walsall Council,http://opendatacommunities.org/id/metropolitan-district-council/walsall,WC64-170,31/01/2016,Social Care & Inclusion,ALPHA HEALTH CARE LTD,26/01/2016,"1,510.08",73373-RESIDENTIAL & NURSING CARE PLACEMENTS,OP COMMISSIONING,Third Party Payments,Revenue
Walsall Council,http://opendatacommunities.org/id/metropolitan-district-council/walsall,WC64-171,31/01/2016,Social Care & Inclusion,ALPHA HEALTH CARE LTD,12/01/2016,"1,527.60",73373-RESIDENTIAL & NURSING CARE PLACEMENTS,OP COMMISSIONING,Third Party Payments,Revenue
Walsall Council,http://opendatacommunities.org/id/metropolitan-district-council/walsall,WC64-172,31/01/2016,Social Care & Inclusion,ALPHA HEALTH CARE LTD,26/01/2016,"1,527.60",73373-RESIDENTIAL & NURSING CARE PLACEMENTS,OP COMMISSIONING,Third Party Payments,Revenue
Walsall Council,http://opendatacommunities.org/id/metropolitan-district-council/walsall,WC64-173,31/01/2016,Social Care & Inclusion,ALPHA HEALTH CARE LTD,26/01/2016,"1,527.60",73373-RESIDENTIAL & NURSING CARE PLACEMENTS,OP COMMISSIONING,Third Party Payments,Revenue
Walsall Council,http://opendatacommunities.org/id/metropolitan-district-council/walsall,WC64-174,31/01/2016,Social Care & Inclusion,ALPHA HEALTH CARE LTD,26/01/2016,"1,527.60",73373-RESIDENTIAL & NURSING CARE PLACEMENTS,OP COMMISSIONING,Third Party Payments,Revenue
Walsall Council,http://opendatacommunities.org/id/metropolitan-district-council/walsall,WC64-175,31/01/2016,Social Care & Inclusion,ALPHA HEALTH CARE LTD,26/01/2016,"1,527.60",73373-RESIDENTIAL & NURSING CARE PLACEMENTS,OP COMMISSIONING,Third Party Payments,Revenue
Walsall Council,http://opendatacommunities.org/id/metropolitan-district-council/walsall,WC64-176,31/01/2016,Social Care & Inclusion,ALPHA HEALTH CARE LTD,26/01/2016,"1,527.60",73373-RESIDENTIAL & NURSING CARE PLACEMENTS,OP COMMISSIONING,Third Party Payments,Revenue
Walsall Council,http://opendatacommunities.org/id/metropolitan-district-council/walsall,WC64-177,31/01/2016,Social Care & Inclusion,ALPHA HEALTH CARE LTD,26/01/2016,"1,527.60",73373-RESIDENTIAL & NURSING CARE PLACEMENTS,OP COMMISSIONING,Third Party Payments,Revenue
Walsall Council,http://opendatacommunities.org/id/metropolitan-district-council/walsall,WC64-178,31/01/2016,Social Care & Inclusion,ALPHA HEALTH CARE LTD,26/01/2016,"1,527.60",73373-RESIDENTIAL & NURSING CARE PLACEMENTS,OP COMMISSIONING,Third Party Payments,Revenue
Walsall Council,http://opendatacommunities.org/id/metropolitan-district-council/walsall,WC64-179,31/01/2016,Social Care & Inclusion,ALPHA HEALTH CARE LTD,26/01/2016,"1,527.60",73373-RESIDENTIAL & NURSING CARE PLACEMENTS,OP COMMISSIONING,Third Party Payments,Revenue
Walsall Council,http://opendatacommunities.org/id/metropolitan-district-council/walsall,WC64-180,31/01/2016,Social Care & Inclusion,ALPHA HEALTH CARE LTD,26/01/2016,"1,527.60",73373-RESIDENTIAL & NURSING CARE PLACEMENTS,MH COMMISSIONING,Third Party Payments,Revenue
Walsall Council,http://opendatacommunities.org/id/metropolitan-district-council/walsall,WC64-181,31/01/2016,Social Care & Inclusion,ALPHA HEALTH CARE LTD,26/01/2016,"1,527.60",73373-RESIDENTIAL & NURSING CARE PLACEMENTS,OP COMMISSIONING,Third Party Payments,Revenue
Walsall Council,http://opendatacommunities.org/id/metropolitan-district-council/walsall,WC64-182,31/01/2016,Social Care & Inclusion,ALPHA HEALTH CARE LTD,26/01/2016,"1,527.60",73373-RESIDENTIAL & NURSING CARE PLACEMENTS,OP COMMISSIONING,Third Party Payments,Revenue
Walsall Council,http://opendatacommunities.org/id/metropolitan-district-council/walsall,WC64-183,31/01/2016,Social Care & Inclusion,ALPHA HEALTH CARE LTD,26/01/2016,"1,527.60",73373-RESIDENTIAL & NURSING CARE PLACEMENTS,OP COMMISSIONING,Third Party Payments,Revenue
Walsall Council,http://opendatacommunities.org/id/metropolitan-district-council/walsall,WC64-184,31/01/2016,Social Care & Inclusion,ALPHA HEALTH CARE LTD,26/01/2016,"1,527.60",73373-RESIDENTIAL & NURSING CARE PLACEMENTS,OP COMMISSIONING,Third Party Payments,Revenue
Walsall Council,http://opendatacommunities.org/id/metropolitan-district-council/walsall,WC64-185,31/01/2016,Social Care & Inclusion,ALPHA HEALTH CARE LTD,26/01/2016,"1,527.60",73373-RESIDENTIAL & NURSING CARE PLACEMENTS,OP COMMISSIONING,Third Party Payments,Revenue
Walsall Council,http://opendatacommunities.org/id/metropolitan-district-council/walsall,WC64-186,31/01/2016,Social Care & Inclusion,ALPHA HEALTH CARE LTD,26/01/2016,"1,527.60",73373-RESIDENTIAL & NURSING CARE PLACEMENTS,MH COMMISSIONING,Third Party Payments,Revenue
Walsall Council,http://opendatacommunities.org/id/metropolitan-district-council/walsall,WC64-187,31/01/2016,Social Care & Inclusion,ALPHA HEALTH CARE LTD,26/01/2016,"1,527.64",73373-RESIDENTIAL & NURSING CARE PLACEMENTS,OP COMMISSIONING,Third Party Payments,Revenue
Walsall Council,http://opendatacommunities.org/id/metropolitan-district-council/walsall,WC64-188,31/01/2016,Social Care & Inclusion,ALPHA HEALTH CARE LTD,26/01/2016,"1,568.64",73373-RESIDENTIAL & NURSING CARE PLACEMENTS,OP COMMISSIONING,Third Party Payments,Revenue
Walsall Council,http://opendatacommunities.org/id/metropolitan-district-council/walsall,WC64-189,31/01/2016,Social Care & Inclusion,ALPHA HEALTH CARE LTD,26/01/2016,"1,568.64",73373-RESIDENTIAL & NURSING CARE PLACEMENTS,OP COMMISSIONING,Third Party Payments,Revenue
Walsall Council,http://opendatacommunities.org/id/metropolitan-district-council/walsall,WC64-190,31/01/2016,Social Care & Inclusion,ALPHA HEALTH CARE LTD,26/01/2016,"1,568.64",73373-RESIDENTIAL & NURSING CARE PLACEMENTS,OP COMMISSIONING,Third Party Payments,Revenue
Walsall Council,http://opendatacommunities.org/id/metropolitan-district-council/walsall,WC64-191,31/01/2016,Social Care & Inclusion,ALPHA HEALTH CARE LTD,26/01/2016,"1,568.80",73373-RESIDENTIAL & NURSING CARE PLACEMENTS,OP COMMISSIONING,Third Party Payments,Revenue
Walsall Council,http://opendatacommunities.org/id/metropolitan-district-council/walsall,WC64-192,31/01/2016,Social Care & Inclusion,ALPHA HEALTH CARE LTD,26/01/2016,"1,630.60",73373-RESIDENTIAL & NURSING CARE PLACEMENTS,OP COMMISSIONING,Third Party Payments,Revenue
Walsall Council,http://opendatacommunities.org/id/metropolitan-district-council/walsall,WC64-193,31/01/2016,Social Care & Inclusion,ALPHA HEALTH CARE LTD,06/01/2016,"1,748.57",73373-RESIDENTIAL & NURSING CARE PLACEMENTS,MH COMMISSIONING,Third Party Payments,Revenue
Walsall Council,http://opendatacommunities.org/id/metropolitan-district-council/walsall,WC64-194,31/01/2016,Social Care & Inclusion,ALPHA HEALTH CARE LTD,12/01/2016,"1,975.60",73373-RESIDENTIAL & NURSING CARE PLACEMENTS,OP COMMISSIONING,Third Party Payments,Revenue
Walsall Council,http://opendatacommunities.org/id/metropolitan-district-council/walsall,WC64-195,31/01/2016,Social Care & Inclusion,ALPHA HEALTH CARE LTD,12/01/2016,"1,975.60",73373-RESIDENTIAL & NURSING CARE PLACEMENTS,OP COMMISSIONING,Third Party Payments,Revenue
Walsall Council,http://opendatacommunities.org/id/metropolitan-district-council/walsall,WC64-196,31/01/2016,Social Care & Inclusion,ALPHA HEALTH CARE LTD,26/01/2016,"2,161.40",73373-RESIDENTIAL & NURSING CARE PLACEMENTS,MH COMMISSIONING,Third Party Payments,Revenue
Walsall Council,http://opendatacommunities.org/id/metropolitan-district-council/walsall,WC64-197,31/01/2016,Social Care & Inclusion,ALPHA HEALTH CARE LTD,12/01/2016,"2,398.94",73373-RESIDENTIAL & NURSING CARE PLACEMENTS,OP COMMISSIONING,Third Party Payments,Revenue
Walsall Council,http://opendatacommunities.org/id/metropolitan-district-council/walsall,WC64-198,31/01/2016,Social Care & Inclusion,ALPHA HEALTH CARE LTD,26/01/2016,"2,521.44",73373-RESIDENTIAL & NURSING CARE PLACEMENTS,MH COMMISSIONING,Third Party Payments,Revenue
Walsall Council,http://opendatacommunities.org/id/metropolitan-district-council/walsall,WC64-199,31/01/2016,Social Care & Inclusion,ALPHA HEALTH CARE LTD,26/01/2016,"3,011.43",73373-RESIDENTIAL & NURSING CARE PLACEMENTS,MH COMMISSIONING,Third Party Payments,Revenue
Walsall Council,http://opendatacommunities.org/id/metropolitan-district-council/walsall,WC64-200,31/01/2016,Social Care & Inclusion,ALPHA HEALTH CARE LTD,26/01/2016,"3,011.43",73373-RESIDENTIAL & NURSING CARE PLACEMENTS,OP COMMISSIONING,Third Party Payments,Revenue
Walsall Council,http://opendatacommunities.org/id/metropolitan-district-council/walsall,WC64-201,31/01/2016,Social Care & Inclusion,ALPHA HEALTH CARE LTD,26/01/2016,"5,413.72",73373-RESIDENTIAL & NURSING CARE PLACEMENTS,MH COMMISSIONING,Third Party Payments,Revenue
Walsall Council,http://opendatacommunities.org/id/metropolitan-district-council/walsall,WC64-202,31/01/2016,Social Care & Inclusion,ALPHA HEALTH CARE LTD,26/01/2016,"5,553.32",73373-RESIDENTIAL & NURSING CARE PLACEMENTS,MH COMMISSIONING,Third Party Payments,Revenue
Walsall Council,http://opendatacommunities.org/id/metropolitan-district-council/walsall,WC64-203,31/01/2016,Childrens,ALPHABIOLABS,01/01/2016,216.33,73014-LEGAL FEES-PRIV CONTRACTOR FEES,GENERAL MANAGEMENT SUPPORT (INC LEGAL),Third Party Payments,Revenue
Walsall Council,http://opendatacommunities.org/id/metropolitan-district-council/walsall,WC64-204,31/01/2016,Social Care & Inclusion,ALTODIGITAL NETWORKS LTD,12/01/2016,270.75,60009-LEASING/HIRE/RENTAL-EQUIPMENT,INTEGRATED DISCHARGE TEAM,Supplies & Services,Revenue
Walsall Council,http://opendatacommunities.org/id/metropolitan-district-council/walsall,WC64-205,31/01/2016,Change and Governance,ALTODIGITAL NETWORKS LTD,12/01/2016,310.46,60006-NEW-FURNITURE & EQUIPMENT,LAW LIBRARY,Supplies & Services,Revenue
Walsall Council,http://opendatacommunities.org/id/metropolitan-district-council/walsall,WC64-206,31/01/2016,Social Care & Inclusion,ALTODIGITAL NETWORKS LTD,27/01/2016,356.54,60009-LEASING/HIRE/RENTAL-EQUIPMENT,INTEGRATED DISCHARGE TEAM,Supplies & Services,Revenue
Walsall Council,http://opendatacommunities.org/id/metropolitan-district-council/walsall,WC64-207,31/01/2016,Social Care & Inclusion,ALTODIGITAL NETWORKS LTD,12/01/2016,"1,003.73",60009-LEASING/HIRE/RENTAL-EQUIPMENT,REABLEMENT TEAM - HOLLY BANK,Supplies & Services,Revenue
Walsall Council,http://opendatacommunities.org/id/metropolitan-district-council/walsall,WC64-208,31/01/2016,Childrens,ALUMWELLIES NURSERY,05/01/2016,"1,239.00",32000-MISC FEES AND EXPENSES,EARLY HELP & RESOURCE PANEL,Employees,Revenue
Walsall Council,http://opendatacommunities.org/id/metropolitan-district-council/walsall,WC64-209,31/01/2016,Childrens,ALUMWELLIES NURSERY,05/01/2016,"1,239.00",32000-MISC FEES AND EXPENSES,EARLY HELP & RESOURCE PANEL,Employees,Revenue
Walsall Council,http://opendatacommunities.org/id/metropolitan-district-council/walsall,WC64-210,31/01/2016,Childrens,ALUMWELLIES NURSERY,05/01/2016,"1,239.00",32000-MISC FEES AND EXPENSES,EARLY HELP & RESOURCE PANEL,Employees,Revenue
Walsall Council,http://opendatacommunities.org/id/metropolitan-district-council/walsall,WC64-211,31/01/2016,Childrens,ALUMWELLIES NURSERY,05/01/2016,"1,239.00",32000-MISC FEES AND EXPENSES,EARLY HELP & RESOURCE PANEL,Employees,Revenue
Walsall Council,http://opendatacommunities.org/id/metropolitan-district-council/walsall,WC64-212,31/01/2016,Childrens,ALUMWELLIES NURSERY,05/01/2016,"2,583.00",32000-MISC FEES AND EXPENSES,EARLY HELP & RESOURCE PANEL,Employees,Revenue
Walsall Council,http://opendatacommunities.org/id/metropolitan-district-council/walsall,WC64-213,31/01/2016,Childrens,ALUMWELLIES NURSERY,07/01/2016,"6,047.96",66505-OTHER-GRANTS TO OTHER ORGS,EARLY YEARS - 3 YR OLDS,Third Party Payments,Revenue
Walsall Council,http://opendatacommunities.org/id/metropolitan-district-council/walsall,WC64-214,31/01/2016,Childrens,REDACTED,18/01/2016,"1,500.88",74006-HOLIDAY/CHRISTMAS ALLOWANCE-FOSTER CARERS-OTH AGENCY PROVISION,INTERNAL FOSTER CARE PROVISION,Third Party Payments,Revenue
Walsall Council,http://opendatacommunities.org/id/metropolitan-district-council/walsall,WC64-215,31/01/2016,Childrens,REDACTED,04/01/2016,540.20,62515-MISCELLANEOUS SUPPLIES,INTERNAL FOSTER CARE PROVISION,Supplies & Services,Revenue
Walsall Council,http://opendatacommunities.org/id/metropolitan-district-council/walsall,WC64-216,31/01/2016,Childrens,REDACTED,04/01/2016,650.92,74006-HOLIDAY/CHRISTMAS ALLOWANCE-FOSTER CARERS-OTH AGENCY PROVISION,INTERNAL FOSTER CARE PROVISION,Third Party Payments,Revenue
Walsall Council,http://opendatacommunities.org/id/metropolitan-district-council/walsall,WC64-217,31/01/2016,Childrens,REDACTED,11/01/2016,312.92,76422-DIRECT PAYMENTS TO SOCIAL SERVICES CLIENTS,FAMILY SUPPORT - DIRECT PAYMENTS,Transfer Payments,Revenue
Walsall Council,http://opendatacommunities.org/id/metropolitan-district-council/walsall,WC64-218,31/01/2016,Change and Governance,AMEY LG LIMITED,15/01/2016,35.08,60008-MAINTENANCE-FURNITURE & EQUIPMENT,AREA PARTNERSHIPS,Supplies & Services,Revenue
Walsall Council,http://opendatacommunities.org/id/metropolitan-district-council/walsall,WC64-219,31/01/2016,Change and Governance,AMEY LG LIMITED,15/01/2016,70.16,60008-MAINTENANCE-FURNITURE & EQUIPMENT,AREA 3 - NORTH WALSALL,Supplies & Services,Revenue
Walsall Council,http://opendatacommunities.org/id/metropolitan-district-council/walsall,WC64-220,31/01/2016,Change and Governance,AMEY LG LIMITED,15/01/2016,127.62,60008-MAINTENANCE-FURNITURE & EQUIPMENT,AREA 4 - WALSALL SOUTH,Supplies & Services,Revenue
Walsall Council,http://opendatacommunities.org/id/metropolitan-district-council/walsall,WC64-221,31/01/2016,Economy & Environment,AMEY LG LIMITED,15/01/2016,255.19,63000-PROFESSIONAL FEES AND SERVICES,FESTIVE DECORATIONS,Supplies & Services,Revenue
Walsall Council,http://opendatacommunities.org/id/metropolitan-district-council/walsall,WC64-222,31/01/2016,Economy & Environment,AMEY LG LIMITED,15/01/2016,475.62,01001-OTHER CONSULTANTS FEES,CFR 876 DARLASTON STATUTORY UNDERTAKERS,Capital,Capital
Walsall Council,http://opendatacommunities.org/id/metropolitan-district-council/walsall,WC64-223,31/01/2016,Economy & Environment,AMEY LG LIMITED,15/01/2016,578.63,01001-OTHER CONSULTANTS FEES,CFR 876 DARLASTON STATUTORY UNDERTAKERS,Capital,Capital
Walsall Council,http://opendatacommunities.org/id/metropolitan-district-council/walsall,WC64-224,31/01/2016,Economy & Environment,AMEY LG LIMITED,27/01/2016,"6,969.26",73025-PROFESSIONAL SERVICES-PRIV CONTRACTOR & OTHER AGENCIES,TRAFFIC MANAGEMENT,Third Party Payments,Revenue
Walsall Council,http://opendatacommunities.org/id/metropolitan-district-council/walsall,WC64-225,31/01/2016,Childrens,AMG NURSING CARE SERVICES,20/01/2016,"1,088.88",74036-EXTERNAL RESIDENTIAL CARE-OTH AGENCY PROVISION,INDEPENDENT RESIDENTIAL HOMES,Third Party Payments,Revenue
Walsall Council,http://opendatacommunities.org/id/metropolitan-district-council/walsall,WC64-226,31/01/2016,Social Care & Inclusion,AMG NURSING CARE SERVICES,22/01/2016,"1,661.75",73372-DOMICILIARY CARE,YADS COMMISSIONING,Third Party Payments,Revenue
Walsall Council,http://opendatacommunities.org/id/metropolitan-district-council/walsall,WC64-227,31/01/2016,Childrens,AMG NURSING CARE SERVICES,01/01/2016,"2,187.88",74036-EXTERNAL RESIDENTIAL CARE-OTH AGENCY PROVISION,INDEPENDENT RESIDENTIAL HOMES,Third Party Payments,Revenue
Walsall Council,http://opendatacommunities.org/id/metropolitan-district-council/walsall,WC64-228,31/01/2016,Childrens,AMG NURSING CARE SERVICES,12/01/2016,"2,229.76",74036-EXTERNAL RESIDENTIAL CARE-OTH AGENCY PROVISION,INDEPENDENT RESIDENTIAL HOMES,Third Party Payments,Revenue
Walsall Council,http://opendatacommunities.org/id/metropolitan-district-council/walsall,WC64-229,31/01/2016,Social Care & Inclusion,REDACTED,11/01/2016,"1,133.44",76422-DIRECT PAYMENTS TO SOCIAL SERVICES CLIENTS,OP COMMISSIONING,Transfer Payments,Revenue
Walsall Council,http://opendatacommunities.org/id/metropolitan-district-council/walsall,WC64-230,31/01/2016,Social Care & Inclusion,REDACTED,11/01/2016,945.00,76422-DIRECT PAYMENTS TO SOCIAL SERVICES CLIENTS,OP COMMISSIONING,Transfer Payments,Revenue
Walsall Council,http://opendatacommunities.org/id/metropolitan-district-council/walsall,WC64-231,31/01/2016,Childrens,REDACTED,18/01/2016,425.08,74006-HOLIDAY/CHRISTMAS ALLOWANCE-FOSTER CARERS-OTH AGENCY PROVISION,INTERNAL FOSTER CARE PROVISION,Third Party Payments,Revenue
Walsall Council,http://opendatacommunities.org/id/metropolitan-district-council/walsall,WC64-232,31/01/2016,Social Care & Inclusion,REDACTED,11/01/2016,544.00,76422-DIRECT PAYMENTS TO SOCIAL SERVICES CLIENTS,OP COMMISSIONING,Transfer Payments,Revenue
Walsall Council,http://opendatacommunities.org/id/metropolitan-district-council/walsall,WC64-233,31/01/2016,Social Care & Inclusion,REDACTED,11/01/2016,714.00,76422-DIRECT PAYMENTS TO SOCIAL SERVICES CLIENTS,OP COMMISSIONING,Transfer Payments,Revenue
Walsall Council,http://opendatacommunities.org/id/metropolitan-district-council/walsall,WC64-234,31/01/2016,Social Care & Inclusion,ANCHOR,20/01/2016,"1,493.24",73373-RESIDENTIAL & NURSING CARE PLACEMENTS,OP COMMISSIONING,Third Party Payments,Revenue
Walsall Council,http://opendatacommunities.org/id/metropolitan-district-council/walsall,WC64-235,31/01/2016,Social Care & Inclusion,ANCHOR,20/01/2016,"1,568.64",73373-RESIDENTIAL & NURSING CARE PLACEMENTS,OP COMMISSIONING,Third Party Payments,Revenue
Walsall Council,http://opendatacommunities.org/id/metropolitan-district-council/walsall,WC64-236,31/01/2016,Social Care & Inclusion,ANCHOR,20/01/2016,"1,568.64",73373-RESIDENTIAL & NURSING CARE PLACEMENTS,OP COMMISSIONING,Third Party Payments,Revenue
Walsall Council,http://opendatacommunities.org/id/metropolitan-district-council/walsall,WC64-237,31/01/2016,Social Care & Inclusion,ANCHOR,20/01/2016,"1,568.64",73373-RESIDENTIAL & NURSING CARE PLACEMENTS,MH COMMISSIONING,Third Party Payments,Revenue
Walsall Council,http://opendatacommunities.org/id/metropolitan-district-council/walsall,WC64-238,31/01/2016,Social Care & Inclusion,ANCHOR,20/01/2016,"1,568.64",73373-RESIDENTIAL & NURSING CARE PLACEMENTS,OP COMMISSIONING,Third Party Payments,Revenue
Walsall Council,http://opendatacommunities.org/id/metropolitan-district-council/walsall,WC64-239,31/01/2016,Social Care & Inclusion,ANCHOR,20/01/2016,"1,568.64",73373-RESIDENTIAL & NURSING CARE PLACEMENTS,OP COMMISSIONING,Third Party Payments,Revenue
Walsall Council,http://opendatacommunities.org/id/metropolitan-district-council/walsall,WC64-240,31/01/2016,Social Care & Inclusion,ANCHOR,20/01/2016,"1,568.64",73373-RESIDENTIAL & NURSING CARE PLACEMENTS,OP COMMISSIONING,Third Party Payments,Revenue
Walsall Council,http://opendatacommunities.org/id/metropolitan-district-council/walsall,WC64-241,31/01/2016,Social Care & Inclusion,ANCHOR,20/01/2016,"1,568.64",73373-RESIDENTIAL & NURSING CARE PLACEMENTS,OP COMMISSIONING,Third Party Payments,Revenue
Walsall Council,http://opendatacommunities.org/id/metropolitan-district-council/walsall,WC64-242,31/01/2016,Social Care & Inclusion,ANCHOR,20/01/2016,"1,568.64",73373-RESIDENTIAL & NURSING CARE PLACEMENTS,OP COMMISSIONING,Third Party Payments,Revenue
Walsall Council,http://opendatacommunities.org/id/metropolitan-district-council/walsall,WC64-243,31/01/2016,Social Care & Inclusion,ANCHOR,20/01/2016,"1,568.64",73373-RESIDENTIAL & NURSING CARE PLACEMENTS,OP COMMISSIONING,Third Party Payments,Revenue
Walsall Council,http://opendatacommunities.org/id/metropolitan-district-council/walsall,WC64-244,31/01/2016,Social Care & Inclusion,ANCHOR,20/01/2016,"1,568.64",73373-RESIDENTIAL & NURSING CARE PLACEMENTS,OP COMMISSIONING,Third Party Payments,Revenue
Walsall Council,http://opendatacommunities.org/id/metropolitan-district-council/walsall,WC64-245,31/01/2016,Social Care & Inclusion,ANCHOR,20/01/2016,"1,568.64",73373-RESIDENTIAL & NURSING CARE PLACEMENTS,OP COMMISSIONING,Third Party Payments,Revenue
Walsall Council,http://opendatacommunities.org/id/metropolitan-district-council/walsall,WC64-246,31/01/2016,Social Care & Inclusion,ANCHOR,20/01/2016,"1,568.64",73373-RESIDENTIAL & NURSING CARE PLACEMENTS,OP COMMISSIONING,Third Party Payments,Revenue
Walsall Council,http://opendatacommunities.org/id/metropolitan-district-council/walsall,WC64-247,31/01/2016,Social Care & Inclusion,ANCHOR,20/01/2016,"1,568.64",73373-RESIDENTIAL & NURSING CARE PLACEMENTS,OP COMMISSIONING,Third Party Payments,Revenue
Walsall Council,http://opendatacommunities.org/id/metropolitan-district-council/walsall,WC64-248,31/01/2016,Social Care & Inclusion,ANCHOR,20/01/2016,"1,568.64",73373-RESIDENTIAL & NURSING CARE PLACEMENTS,OP COMMISSIONING,Third Party Payments,Revenue
Walsall Council,http://opendatacommunities.org/id/metropolitan-district-council/walsall,WC64-249,31/01/2016,Social Care & Inclusion,ANCHOR,20/01/2016,"1,568.64",73373-RESIDENTIAL & NURSING CARE PLACEMENTS,OP COMMISSIONING,Third Party Payments,Revenue
Walsall Council,http://opendatacommunities.org/id/metropolitan-district-council/walsall,WC64-250,31/01/2016,Social Care & Inclusion,ANCHOR,20/01/2016,"1,568.64",73373-RESIDENTIAL & NURSING CARE PLACEMENTS,OP COMMISSIONING,Third Party Payments,Revenue
Walsall Council,http://opendatacommunities.org/id/metropolitan-district-council/walsall,WC64-251,31/01/2016,Social Care & Inclusion,ANCHOR,26/01/2016,"4,145.69",73373-RESIDENTIAL & NURSING CARE PLACEMENTS,OP COMMISSIONING,Third Party Payments,Revenue
Walsall Council,http://opendatacommunities.org/id/metropolitan-district-council/walsall,WC64-252,31/01/2016,Childrens,REDACTED,04/01/2016,650.92,74006-HOLIDAY/CHRISTMAS ALLOWANCE-FOSTER CARERS-OTH AGENCY PROVISION,INTERNAL FOSTER CARE PROVISION,Third Party Payments,Revenue
Walsall Council,http://opendatacommunities.org/id/metropolitan-district-council/walsall,WC64-253,31/01/2016,Childrens,REDACTED,04/01/2016,906.76,62515-MISCELLANEOUS SUPPLIES,INTERNAL FOSTER CARE PROVISION,Supplies & Services,Revenue
Walsall Council,http://opendatacommunities.org/id/metropolitan-district-council/walsall,WC64-254,31/01/2016,Social Care & Inclusion,REDACTED,11/01/2016,378.00,76422-DIRECT PAYMENTS TO SOCIAL SERVICES CLIENTS,YADS COMMISSIONING,Transfer Payments,Revenue
Walsall Council,http://opendatacommunities.org/id/metropolitan-district-council/walsall,WC64-255,31/01/2016,Childrens,ANDREWS ELECTRICAL LTD,06/01/2016,"28,498.65",01006-SITE WORKS MAIN CONTRACTORS,CFR 1017 POOL HAYES A&C SCHOOL REWIRE PHASE 2,Capital,Capital
Walsall Council,http://opendatacommunities.org/id/metropolitan-district-council/walsall,WC64-256,31/01/2016,Social Care & Inclusion,ANGEL COURT RESIDENTIAL CARE HOME,06/01/2016,"1,736.71",73373-RESIDENTIAL & NURSING CARE PLACEMENTS,OP COMMISSIONING,Third Party Payments,Revenue
Walsall Council,http://opendatacommunities.org/id/metropolitan-district-council/walsall,WC64-257,31/01/2016,Social Care & Inclusion,ANGEL COURT RESIDENTIAL CARE HOME,06/01/2016,"1,817.71",73373-RESIDENTIAL & NURSING CARE PLACEMENTS,OP COMMISSIONING,Third Party Payments,Revenue
Walsall Council,http://opendatacommunities.org/id/metropolitan-district-council/walsall,WC64-258,31/01/2016,Social Care & Inclusion,ANGEL COURT RESIDENTIAL CARE HOME,06/01/2016,"1,899.10",73373-RESIDENTIAL & NURSING CARE PLACEMENTS,OP COMMISSIONING,Third Party Payments,Revenue
Walsall Council,http://opendatacommunities.org/id/metropolitan-district-council/walsall,WC64-259,31/01/2016,Childrens,REDACTED,18/01/2016,"1,952.76",74006-HOLIDAY/CHRISTMAS ALLOWANCE-FOSTER CARERS-OTH AGENCY PROVISION,INTERNAL FOSTER CARE PROVISION,Third Party Payments,Revenue
Walsall Council,http://opendatacommunities.org/id/metropolitan-district-council/walsall,WC64-260,31/01/2016,Change and Governance,ANGLIA STAIRLIFTS LTD,20/01/2016,"1,350.00",01045-PRIVATE GRANTS,CFR 826 DISABLED FACILITIES GRANTS (SOCIAL SERVICES),Capital,Capital
Walsall Council,http://opendatacommunities.org/id/metropolitan-district-council/walsall,WC64-261,31/01/2016,Change and Governance,ANGLIA STAIRLIFTS LTD,27/01/2016,"3,665.00",01045-PRIVATE GRANTS,CFR 826 DISABLED FACILITIES GRANTS (SOCIAL SERVICES),Capital,Capital
Walsall Council,http://opendatacommunities.org/id/metropolitan-district-council/walsall,WC64-262,31/01/2016,Change and Governance,ANGLIA STAIRLIFTS LTD,27/01/2016,"3,825.00",01045-PRIVATE GRANTS,CFR 826 DISABLED FACILITIES GRANTS (SOCIAL SERVICES),Capital,Capital
Walsall Council,http://opendatacommunities.org/id/metropolitan-district-council/walsall,WC64-263,31/01/2016,Change and Governance,ANGLIA STAIRLIFTS LTD,22/01/2016,"3,885.00",01045-PRIVATE GRANTS,CFR 826 DISABLED FACILITIES GRANTS (SOCIAL SERVICES),Capital,Capital
Walsall Council,http://opendatacommunities.org/id/metropolitan-district-council/walsall,WC64-264,31/01/2016,Change and Governance,ANGLIA STAIRLIFTS LTD,01/01/2016,"4,785.00",01045-PRIVATE GRANTS,CFR 826 DISABLED FACILITIES GRANTS (SOCIAL SERVICES),Capital,Capital
Walsall Council,http://opendatacommunities.org/id/metropolitan-district-council/walsall,WC64-265,31/01/2016,Change and Governance,ANGLIA STAIRLIFTS LTD,13/01/2016,"4,895.00",01045-PRIVATE GRANTS,CFR 826 DISABLED FACILITIES GRANTS (SOCIAL SERVICES),Capital,Capital
Walsall Council,http://opendatacommunities.org/id/metropolitan-district-council/walsall,WC64-266,31/01/2016,Change and Governance,ANGLIA STAIRLIFTS LTD,20/01/2016,"4,950.00",01045-PRIVATE GRANTS,CFR 826 DISABLED FACILITIES GRANTS (SOCIAL SERVICES),Capital,Capital
Walsall Council,http://opendatacommunities.org/id/metropolitan-district-council/walsall,WC64-267,31/01/2016,Change and Governance,ANGLIA STAIRLIFTS LTD,20/01/2016,"4,965.00",01045-PRIVATE GRANTS,CFR 826 DISABLED FACILITIES GRANTS (SOCIAL SERVICES),Capital,Capital
Walsall Council,http://opendatacommunities.org/id/metropolitan-district-council/walsall,WC64-268,31/01/2016,Change and Governance,ANGLIA STAIRLIFTS LTD,01/01/2016,"5,115.00",01045-PRIVATE GRANTS,CFR 826 DISABLED FACILITIES GRANTS (SOCIAL SERVICES),Capital,Capital
Walsall Council,http://opendatacommunities.org/id/metropolitan-district-council/walsall,WC64-269,31/01/2016,Social Care & Inclusion,REDACTED,11/01/2016,344.00,76422-DIRECT PAYMENTS TO SOCIAL SERVICES CLIENTS,LD COMMISSIONING,Transfer Payments,Revenue
Walsall Council,http://opendatacommunities.org/id/metropolitan-district-council/walsall,WC64-270,31/01/2016,Childrens,REDACTED,04/01/2016,925.00,62515-MISCELLANEOUS SUPPLIES,INTERNAL FOSTER CARE PROVISION,Supplies & Services,Revenue
Walsall Council,http://opendatacommunities.org/id/metropolitan-district-council/walsall,WC64-271,31/01/2016,Childrens,REDACTED,04/01/2016,"1,461.24",74006-HOLIDAY/CHRISTMAS ALLOWANCE-FOSTER CARERS-OTH AGENCY PROVISION,INTERNAL FOSTER CARE PROVISION,Third Party Payments,Revenue
Walsall Council,http://opendatacommunities.org/id/metropolitan-district-council/walsall,WC64-272,31/01/2016,Social Care & Inclusion,REDACTED,13/01/2016,967.73,73374-SUPPORTED & OTHER ACCOMMODATION,LD COMMISSIONING,Third Party Payments,Revenue
Walsall Council,http://opendatacommunities.org/id/metropolitan-district-council/walsall,WC64-273,31/01/2016,Social Care & Inclusion,ANSON COURT RESIDENTIAL HOME,12/01/2016,784.32,73373-RESIDENTIAL & NURSING CARE PLACEMENTS,OP COMMISSIONING,Third Party Payments,Revenue
Walsall Council,http://opendatacommunities.org/id/metropolitan-district-council/walsall,WC64-274,31/01/2016,Social Care & Inclusion,ANSON COURT RESIDENTIAL HOME,12/01/2016,"1,567.00",73373-RESIDENTIAL & NURSING CARE PLACEMENTS,OP COMMISSIONING,Third Party Payments,Revenue
Walsall Council,http://opendatacommunities.org/id/metropolitan-district-council/walsall,WC64-275,31/01/2016,Social Care & Inclusion,ANSON COURT RESIDENTIAL HOME,12/01/2016,"1,568.64",73373-RESIDENTIAL & NURSING CARE PLACEMENTS,OP COMMISSIONING,Third Party Payments,Revenue
Walsall Council,http://opendatacommunities.org/id/metropolitan-district-council/walsall,WC64-276,31/01/2016,Social Care & Inclusion,ANSON COURT RESIDENTIAL HOME,12/01/2016,"1,568.64",73373-RESIDENTIAL & NURSING CARE PLACEMENTS,OP COMMISSIONING,Third Party Payments,Revenue
Walsall Council,http://opendatacommunities.org/id/metropolitan-district-council/walsall,WC64-277,31/01/2016,Social Care & Inclusion,ANSON COURT RESIDENTIAL HOME,12/01/2016,"1,568.64",73373-RESIDENTIAL & NURSING CARE PLACEMENTS,OP COMMISSIONING,Third Party Payments,Revenue
Walsall Council,http://opendatacommunities.org/id/metropolitan-district-council/walsall,WC64-278,31/01/2016,Social Care & Inclusion,ANSON COURT RESIDENTIAL HOME,12/01/2016,"1,568.64",73373-RESIDENTIAL & NURSING CARE PLACEMENTS,MH COMMISSIONING,Third Party Payments,Revenue
Walsall Council,http://opendatacommunities.org/id/metropolitan-district-council/walsall,WC64-279,31/01/2016,Social Care & Inclusion,ANSON COURT RESIDENTIAL HOME,12/01/2016,"1,568.64",73373-RESIDENTIAL & NURSING CARE PLACEMENTS,OP COMMISSIONING,Third Party Payments,Revenue
Walsall Council,http://opendatacommunities.org/id/metropolitan-district-council/walsall,WC64-280,31/01/2016,Social Care & Inclusion,ANSON COURT RESIDENTIAL HOME,12/01/2016,"1,568.64",73373-RESIDENTIAL & NURSING CARE PLACEMENTS,OP COMMISSIONING,Third Party Payments,Revenue
Walsall Council,http://opendatacommunities.org/id/metropolitan-district-council/walsall,WC64-281,31/01/2016,Social Care & Inclusion,ANSON COURT RESIDENTIAL HOME,12/01/2016,"1,568.64",73373-RESIDENTIAL & NURSING CARE PLACEMENTS,MH COMMISSIONING,Third Party Payments,Revenue
Walsall Council,http://opendatacommunities.org/id/metropolitan-district-council/walsall,WC64-282,31/01/2016,Social Care & Inclusion,ANSON COURT RESIDENTIAL HOME,12/01/2016,"1,568.64",73373-RESIDENTIAL & NURSING CARE PLACEMENTS,MH COMMISSIONING,Third Party Payments,Revenue
Walsall Council,http://opendatacommunities.org/id/metropolitan-district-council/walsall,WC64-283,31/01/2016,Social Care & Inclusion,ANSON COURT RESIDENTIAL HOME,12/01/2016,"1,568.64",73373-RESIDENTIAL & NURSING CARE PLACEMENTS,MH COMMISSIONING,Third Party Payments,Revenue
Walsall Council,http://opendatacommunities.org/id/metropolitan-district-council/walsall,WC64-284,31/01/2016,Social Care & Inclusion,ANSON COURT RESIDENTIAL HOME,12/01/2016,"1,568.64",73373-RESIDENTIAL & NURSING CARE PLACEMENTS,OP COMMISSIONING,Third Party Payments,Revenue
Walsall Council,http://opendatacommunities.org/id/metropolitan-district-council/walsall,WC64-285,31/01/2016,Social Care & Inclusion,ANSON COURT RESIDENTIAL HOME,12/01/2016,"1,568.64",73373-RESIDENTIAL & NURSING CARE PLACEMENTS,OP COMMISSIONING,Third Party Payments,Revenue
Walsall Council,http://opendatacommunities.org/id/metropolitan-district-council/walsall,WC64-286,31/01/2016,Social Care & Inclusion,ANSON COURT RESIDENTIAL HOME,12/01/2016,"1,568.64",73373-RESIDENTIAL & NURSING CARE PLACEMENTS,OP COMMISSIONING,Third Party Payments,Revenue
Walsall Council,http://opendatacommunities.org/id/metropolitan-district-council/walsall,WC64-287,31/01/2016,Social Care & Inclusion,ANSON COURT RESIDENTIAL HOME,12/01/2016,"1,568.64",73373-RESIDENTIAL & NURSING CARE PLACEMENTS,OP COMMISSIONING,Third Party Payments,Revenue
Walsall Council,http://opendatacommunities.org/id/metropolitan-district-council/walsall,WC64-288,31/01/2016,Social Care & Inclusion,ANSON COURT RESIDENTIAL HOME,12/01/2016,"1,649.20",73373-RESIDENTIAL & NURSING CARE PLACEMENTS,MH COMMISSIONING,Third Party Payments,Revenue
Walsall Council,http://opendatacommunities.org/id/metropolitan-district-council/walsall,WC64-289,31/01/2016,Social Care & Inclusion,ANSON COURT RESIDENTIAL HOME,12/01/2016,"1,650.44",73373-RESIDENTIAL & NURSING CARE PLACEMENTS,OP COMMISSIONING,Third Party Payments,Revenue
Walsall Council,http://opendatacommunities.org/id/metropolitan-district-council/walsall,WC64-290,31/01/2016,Social Care & Inclusion,ANSON COURT RESIDENTIAL HOME,12/01/2016,"1,650.44",73373-RESIDENTIAL & NURSING CARE PLACEMENTS,OP COMMISSIONING,Third Party Payments,Revenue
Walsall Council,http://opendatacommunities.org/id/metropolitan-district-council/walsall,WC64-291,31/01/2016,Social Care & Inclusion,ANSON COURT RESIDENTIAL HOME,12/01/2016,"1,651.04",73373-RESIDENTIAL & NURSING CARE PLACEMENTS,OP COMMISSIONING,Third Party Payments,Revenue
Walsall Council,http://opendatacommunities.org/id/metropolitan-district-council/walsall,WC64-292,31/01/2016,Social Care & Inclusion,ANSON COURT RESIDENTIAL HOME,12/01/2016,"1,651.04",73373-RESIDENTIAL & NURSING CARE PLACEMENTS,OP COMMISSIONING,Third Party Payments,Revenue
Walsall Council,http://opendatacommunities.org/id/metropolitan-district-council/walsall,WC64-293,31/01/2016,Social Care & Inclusion,ANSON COURT RESIDENTIAL HOME,20/01/2016,"3,081.26",73373-RESIDENTIAL & NURSING CARE PLACEMENTS,OP COMMISSIONING,Third Party Payments,Revenue
Walsall Council,http://opendatacommunities.org/id/metropolitan-district-council/walsall,WC64-294,31/01/2016,Childrens,REDACTED,18/01/2016,"1,369.84",74006-HOLIDAY/CHRISTMAS ALLOWANCE-FOSTER CARERS-OTH AGENCY PROVISION,INTERNAL FOSTER CARE PROVISION,Third Party Payments,Revenue
Walsall Council,http://opendatacommunities.org/id/metropolitan-district-council/walsall,WC64-295,31/01/2016,Childrens,REDACTED,18/01/2016,571.44,74006-HOLIDAY/CHRISTMAS ALLOWANCE-FOSTER CARERS-OTH AGENCY PROVISION,INTERNAL FOSTER CARE PROVISION,Third Party Payments,Revenue
Walsall Council,http://opendatacommunities.org/id/metropolitan-district-council/walsall,WC64-296,31/01/2016,Economy & Environment,APCOA PARKING SERVICES (UK) LTD,18/01/2016,"45,286.46",73025-PROFESSIONAL SERVICES-PRIV CONTRACTOR & OTHER AGENCIES,PARKING SERVICES,Third Party Payments,Revenue
Walsall Council,http://opendatacommunities.org/id/metropolitan-district-council/walsall,WC64-297,31/01/2016,Childrens,APPLE TRANSCRIPTION LIMITED,12/01/2016,294.00,73014-LEGAL FEES-PRIV CONTRACTOR FEES,GENERAL MANAGEMENT SUPPORT (INC LEGAL),Third Party Payments,Revenue
Walsall Council,http://opendatacommunities.org/id/metropolitan-district-council/walsall,WC64-298,31/01/2016,Economy & Environment,APSE 001,01/01/2016,229.00,30030-EXTERNAL TRAINING,COUNTRYSIDE MANAGEMENT-OTHER,Employees,Revenue
Walsall Council,http://opendatacommunities.org/id/metropolitan-district-council/walsall,WC64-299,31/01/2016,Economy & Environment,APSE 001,13/01/2016,258.00,60006-NEW-FURNITURE & EQUIPMENT,WASTE COLLECTIONS,Supplies & Services,Revenue
Walsall Council,http://opendatacommunities.org/id/metropolitan-district-council/walsall,WC64-300,31/01/2016,Social Care & Inclusion,ARBORETUM NURSING HOME.,12/01/2016,"1,975.60",73373-RESIDENTIAL & NURSING CARE PLACEMENTS,OP COMMISSIONING,Third Party Payments,Revenue
Walsall Council,http://opendatacommunities.org/id/metropolitan-district-council/walsall,WC64-301,31/01/2016,Social Care & Inclusion,ARBORETUM NURSING HOME.,12/01/2016,"1,975.60",73373-RESIDENTIAL & NURSING CARE PLACEMENTS,OP COMMISSIONING,Third Party Payments,Revenue
Walsall Council,http://opendatacommunities.org/id/metropolitan-district-council/walsall,WC64-302,31/01/2016,Social Care & Inclusion,ARBORETUM NURSING HOME.,12/01/2016,"1,975.60",73373-RESIDENTIAL & NURSING CARE PLACEMENTS,OP COMMISSIONING,Third Party Payments,Revenue
Walsall Council,http://opendatacommunities.org/id/metropolitan-district-council/walsall,WC64-303,31/01/2016,Social Care & Inclusion,ARBORETUM NURSING HOME.,12/01/2016,"1,975.60",73373-RESIDENTIAL & NURSING CARE PLACEMENTS,OP COMMISSIONING,Third Party Payments,Revenue
Walsall Council,http://opendatacommunities.org/id/metropolitan-district-council/walsall,WC64-304,31/01/2016,Social Care & Inclusion,ARBORETUM NURSING HOME.,12/01/2016,"1,975.60",73373-RESIDENTIAL & NURSING CARE PLACEMENTS,OP COMMISSIONING,Third Party Payments,Revenue
Walsall Council,http://opendatacommunities.org/id/metropolitan-district-council/walsall,WC64-305,31/01/2016,Social Care & Inclusion,ARBORETUM NURSING HOME.,12/01/2016,"2,017.16",73373-RESIDENTIAL & NURSING CARE PLACEMENTS,OP COMMISSIONING,Third Party Payments,Revenue
Walsall Council,http://opendatacommunities.org/id/metropolitan-district-council/walsall,WC64-306,31/01/2016,Social Care & Inclusion,ARBORETUM NURSING HOME.,12/01/2016,"2,030.00",73373-RESIDENTIAL & NURSING CARE PLACEMENTS,OP COMMISSIONING,Third Party Payments,Revenue
Walsall Council,http://opendatacommunities.org/id/metropolitan-district-council/walsall,WC64-307,31/01/2016,Social Care & Inclusion,ARBORETUM NURSING HOME.,12/01/2016,"2,469.50",73373-RESIDENTIAL & NURSING CARE PLACEMENTS,YADS COMMISSIONING,Third Party Payments,Revenue
Walsall Council,http://opendatacommunities.org/id/metropolitan-district-council/walsall,WC64-308,31/01/2016,Social Care & Inclusion,ARBORETUM NURSING HOME.,13/01/2016,"15,000.00",73019-PSE'S-PRIV CONTRACTOR FEES,TRANSITIONAL CARE SUPPORT TEAM,Third Party Payments,Revenue
Walsall Council,http://opendatacommunities.org/id/metropolitan-district-council/walsall,WC64-309,31/01/2016,Social Care & Inclusion,ARBORETUM NURSING HOME.,25/01/2016,"15,000.00",73019-PSE'S-PRIV CONTRACTOR FEES,TRANSITIONAL CARE SUPPORT TEAM,Third Party Payments,Revenue
Walsall Council,http://opendatacommunities.org/id/metropolitan-district-council/walsall,WC64-310,31/01/2016,Economy & Environment,ARCADE FINE ARTS LLP,05/01/2016,750.00,63000-PROFESSIONAL FEES AND SERVICES,GARMAN RYAN,Supplies & Services,Revenue
Walsall Council,http://opendatacommunities.org/id/metropolitan-district-council/walsall,WC64-311,31/01/2016,Social Care & Inclusion,ASH GRANGE CARE HOME,06/01/2016,"-1,124.04",73373-RESIDENTIAL & NURSING CARE PLACEMENTS,MH COMMISSIONING,Third Party Payments,Revenue
Walsall Council,http://opendatacommunities.org/id/metropolitan-district-council/walsall,WC64-312,31/01/2016,Social Care & Inclusion,ASH GRANGE CARE HOME,12/01/2016,497.05,73373-RESIDENTIAL & NURSING CARE PLACEMENTS,OP COMMISSIONING,Third Party Payments,Revenue
Walsall Council,http://opendatacommunities.org/id/metropolitan-district-council/walsall,WC64-313,31/01/2016,Social Care & Inclusion,ASH GRANGE CARE HOME,06/01/2016,639.06,73373-RESIDENTIAL & NURSING CARE PLACEMENTS,OP COMMISSIONING,Third Party Payments,Revenue
Walsall Council,http://opendatacommunities.org/id/metropolitan-district-council/walsall,WC64-314,31/01/2016,Social Care & Inclusion,ASH GRANGE CARE HOME,12/01/2016,639.06,73373-RESIDENTIAL & NURSING CARE PLACEMENTS,OP COMMISSIONING,Third Party Payments,Revenue
Walsall Council,http://opendatacommunities.org/id/metropolitan-district-council/walsall,WC64-315,31/01/2016,Social Care & Inclusion,ASH GRANGE CARE HOME,20/01/2016,"1,044.58",73373-RESIDENTIAL & NURSING CARE PLACEMENTS,MH COMMISSIONING,Third Party Payments,Revenue
Walsall Council,http://opendatacommunities.org/id/metropolitan-district-council/walsall,WC64-316,31/01/2016,Social Care & Inclusion,ASH GRANGE CARE HOME,06/01/2016,"1,505.56",73373-RESIDENTIAL & NURSING CARE PLACEMENTS,OP COMMISSIONING,Third Party Payments,Revenue
Walsall Council,http://opendatacommunities.org/id/metropolitan-district-council/walsall,WC64-317,31/01/2016,Social Care & Inclusion,ASH GRANGE CARE HOME,06/01/2016,"1,988.20",73373-RESIDENTIAL & NURSING CARE PLACEMENTS,OP COMMISSIONING,Third Party Payments,Revenue
Walsall Council,http://opendatacommunities.org/id/metropolitan-district-council/walsall,WC64-318,31/01/2016,Social Care & Inclusion,ASH GRANGE CARE HOME,06/01/2016,"1,988.20",73373-RESIDENTIAL & NURSING CARE PLACEMENTS,OP COMMISSIONING,Third Party Payments,Revenue
Walsall Council,http://opendatacommunities.org/id/metropolitan-district-council/walsall,WC64-319,31/01/2016,Social Care & Inclusion,ASH GRANGE CARE HOME,06/01/2016,"1,988.20",73373-RESIDENTIAL & NURSING CARE PLACEMENTS,OP COMMISSIONING,Third Party Payments,Revenue
Walsall Council,http://opendatacommunities.org/id/metropolitan-district-council/walsall,WC64-320,31/01/2016,Social Care & Inclusion,ASH GRANGE CARE HOME,06/01/2016,"1,988.20",73373-RESIDENTIAL & NURSING CARE PLACEMENTS,OP COMMISSIONING,Third Party Payments,Revenue
Walsall Council,http://opendatacommunities.org/id/metropolitan-district-council/walsall,WC64-321,31/01/2016,Social Care & Inclusion,ASH GRANGE CARE HOME,06/01/2016,"1,988.20",73373-RESIDENTIAL & NURSING CARE PLACEMENTS,MH COMMISSIONING,Third Party Payments,Revenue
Walsall Council,http://opendatacommunities.org/id/metropolitan-district-council/walsall,WC64-322,31/01/2016,Social Care & Inclusion,ASH GRANGE CARE HOME,06/01/2016,"1,988.20",73373-RESIDENTIAL & NURSING CARE PLACEMENTS,OP COMMISSIONING,Third Party Payments,Revenue
Walsall Council,http://opendatacommunities.org/id/metropolitan-district-council/walsall,WC64-323,31/01/2016,Social Care & Inclusion,ASH GRANGE CARE HOME,06/01/2016,"1,988.20",73373-RESIDENTIAL & NURSING CARE PLACEMENTS,OP COMMISSIONING,Third Party Payments,Revenue
Walsall Council,http://opendatacommunities.org/id/metropolitan-district-council/walsall,WC64-324,31/01/2016,Social Care & Inclusion,ASH GRANGE CARE HOME,06/01/2016,"1,988.20",73373-RESIDENTIAL & NURSING CARE PLACEMENTS,OP COMMISSIONING,Third Party Payments,Revenue
Walsall Council,http://opendatacommunities.org/id/metropolitan-district-council/walsall,WC64-325,31/01/2016,Social Care & Inclusion,ASH GRANGE CARE HOME,06/01/2016,"1,988.20",73373-RESIDENTIAL & NURSING CARE PLACEMENTS,OP COMMISSIONING,Third Party Payments,Revenue
Walsall Council,http://opendatacommunities.org/id/metropolitan-district-council/walsall,WC64-326,31/01/2016,Social Care & Inclusion,ASH GRANGE CARE HOME,06/01/2016,"1,988.20",73373-RESIDENTIAL & NURSING CARE PLACEMENTS,OP COMMISSIONING,Third Party Payments,Revenue
Walsall Council,http://opendatacommunities.org/id/metropolitan-district-council/walsall,WC64-327,31/01/2016,Social Care & Inclusion,ASH GRANGE CARE HOME,06/01/2016,"1,988.20",73373-RESIDENTIAL & NURSING CARE PLACEMENTS,OP COMMISSIONING,Third Party Payments,Revenue
Walsall Council,http://opendatacommunities.org/id/metropolitan-district-council/walsall,WC64-328,31/01/2016,Social Care & Inclusion,ASH GRANGE CARE HOME,06/01/2016,"1,988.20",73373-RESIDENTIAL & NURSING CARE PLACEMENTS,OP COMMISSIONING,Third Party Payments,Revenue
Walsall Council,http://opendatacommunities.org/id/metropolitan-district-council/walsall,WC64-329,31/01/2016,Social Care & Inclusion,ASH GRANGE CARE HOME,06/01/2016,"1,988.20",73373-RESIDENTIAL & NURSING CARE PLACEMENTS,OP COMMISSIONING,Third Party Payments,Revenue
Walsall Council,http://opendatacommunities.org/id/metropolitan-district-council/walsall,WC64-330,31/01/2016,Social Care & Inclusion,ASH GRANGE CARE HOME,06/01/2016,"1,988.20",73373-RESIDENTIAL & NURSING CARE PLACEMENTS,OP COMMISSIONING,Third Party Payments,Revenue
Walsall Council,http://opendatacommunities.org/id/metropolitan-district-council/walsall,WC64-331,31/01/2016,Social Care & Inclusion,ASH GRANGE CARE HOME,06/01/2016,"2,065.64",73373-RESIDENTIAL & NURSING CARE PLACEMENTS,OP COMMISSIONING,Third Party Payments,Revenue
Walsall Council,http://opendatacommunities.org/id/metropolitan-district-council/walsall,WC64-332,31/01/2016,Social Care & Inclusion,ASH GRANGE CARE HOME,06/01/2016,"2,201.22",73373-RESIDENTIAL & NURSING CARE PLACEMENTS,OP COMMISSIONING,Third Party Payments,Revenue
Walsall Council,http://opendatacommunities.org/id/metropolitan-district-council/walsall,WC64-333,31/01/2016,Social Care & Inclusion,ASH GRANGE CARE HOME,06/01/2016,"2,416.06",73373-RESIDENTIAL & NURSING CARE PLACEMENTS,MH COMMISSIONING,Third Party Payments,Revenue
Walsall Council,http://opendatacommunities.org/id/metropolitan-district-council/walsall,WC64-334,31/01/2016,Social Care & Inclusion,ASH GRANGE CARE HOME,06/01/2016,"2,943.72",73373-RESIDENTIAL & NURSING CARE PLACEMENTS,OP COMMISSIONING,Third Party Payments,Revenue
Walsall Council,http://opendatacommunities.org/id/metropolitan-district-council/walsall,WC64-335,31/01/2016,Social Care & Inclusion,ASH GRANGE CARE HOME,15/01/2016,"14,700.00",73019-PSE'S-PRIV CONTRACTOR FEES,TRANSITIONAL CARE SUPPORT TEAM,Third Party Payments,Revenue
Walsall Council,http://opendatacommunities.org/id/metropolitan-district-council/walsall,WC64-336,31/01/2016,Social Care & Inclusion,ASHBOURNE LODGE,20/01/2016,-0.02,73373-RESIDENTIAL & NURSING CARE PLACEMENTS,OP COMMISSIONING,Third Party Payments,Revenue
Walsall Council,http://opendatacommunities.org/id/metropolitan-district-council/walsall,WC64-337,31/01/2016,Social Care & Inclusion,ASHBOURNE LODGE,12/01/2016,"2,173.99",73373-RESIDENTIAL & NURSING CARE PLACEMENTS,OP COMMISSIONING,Third Party Payments,Revenue
Walsall Council,http://opendatacommunities.org/id/metropolitan-district-council/walsall,WC64-338,31/01/2016,Economy & Environment,ASKEWS AND HOLTS LIBRARY SERVICES LTD,20/01/2016,280.24,60501-LIBRARY BOOKS,LIBRARY STOCK AND PERFORMANCE,Supplies & Services,Revenue
Walsall Council,http://opendatacommunities.org/id/metropolitan-district-council/walsall,WC64-339,31/01/2016,Economy & Environment,ASKEWS AND HOLTS LIBRARY SERVICES LTD,27/01/2016,301.94,60501-LIBRARY BOOKS,LIBRARY STOCK AND PERFORMANCE,Supplies & Services,Revenue
Walsall Council,http://opendatacommunities.org/id/metropolitan-district-council/walsall,WC64-340,31/01/2016,Economy & Environment,ASKEWS AND HOLTS LIBRARY SERVICES LTD,12/01/2016,309.54,60501-LIBRARY BOOKS,LIBRARY STOCK AND PERFORMANCE,Supplies & Services,Revenue
Walsall Council,http://opendatacommunities.org/id/metropolitan-district-council/walsall,WC64-341,31/01/2016,Economy & Environment,ASKEWS AND HOLTS LIBRARY SERVICES LTD,20/01/2016,325.24,60501-LIBRARY BOOKS,LIBRARY STOCK AND PERFORMANCE,Supplies & Services,Revenue
Walsall Council,http://opendatacommunities.org/id/metropolitan-district-council/walsall,WC64-342,31/01/2016,Economy & Environment,ASKEWS AND HOLTS LIBRARY SERVICES LTD,20/01/2016,525.48,60501-LIBRARY BOOKS,LIBRARY STOCK AND PERFORMANCE,Supplies & Services,Revenue
Walsall Council,http://opendatacommunities.org/id/metropolitan-district-council/walsall,WC64-343,31/01/2016,Economy & Environment,ASKEWS AND HOLTS LIBRARY SERVICES LTD,27/01/2016,530.23,60501-LIBRARY BOOKS,LIBRARY STOCK AND PERFORMANCE,Supplies & Services,Revenue
Walsall Council,http://opendatacommunities.org/id/metropolitan-district-council/walsall,WC64-344,31/01/2016,Economy & Environment,ASKEWS AND HOLTS LIBRARY SERVICES LTD,05/01/2016,584.47,60501-LIBRARY BOOKS,LIBRARY STOCK AND PERFORMANCE,Supplies & Services,Revenue
Walsall Council,http://opendatacommunities.org/id/metropolitan-district-council/walsall,WC64-345,31/01/2016,Economy & Environment,ASKEWS AND HOLTS LIBRARY SERVICES LTD,08/01/2016,722.52,60501-LIBRARY BOOKS,LIBRARY STOCK AND PERFORMANCE,Supplies & Services,Revenue
Walsall Council,http://opendatacommunities.org/id/metropolitan-district-council/walsall,WC64-346,31/01/2016,Economy & Environment,ASKEWS AND HOLTS LIBRARY SERVICES LTD,08/01/2016,777.20,60501-LIBRARY BOOKS,LIBRARY STOCK AND PERFORMANCE,Supplies & Services,Revenue
Walsall Council,http://opendatacommunities.org/id/metropolitan-district-council/walsall,WC64-347,31/01/2016,Economy & Environment,ASKEWS AND HOLTS LIBRARY SERVICES LTD,20/01/2016,"1,492.54",60501-LIBRARY BOOKS,LIBRARY STOCK AND PERFORMANCE,Supplies & Services,Revenue
Walsall Council,http://opendatacommunities.org/id/metropolitan-district-council/walsall,WC64-348,31/01/2016,Social Care & Inclusion,REDACTED,11/01/2016,493.00,76422-DIRECT PAYMENTS TO SOCIAL SERVICES CLIENTS,YADS COMMISSIONING,Transfer Payments,Revenue
Walsall Council,http://opendatacommunities.org/id/metropolitan-district-council/walsall,WC64-349,31/01/2016,Change and Governance,ASTUN TECHNOLOGY LIMITED,27/01/2016,"3,875.00",63800-COMPUTER EQUIPMENT AND SUPPLIES,RECHARGEABLE EQUIPMENT,Supplies & Services,Revenue
Walsall Council,http://opendatacommunities.org/id/metropolitan-district-council/walsall,WC64-350,31/01/2016,Economy & Environment,ATHWAL NEWS LTD,11/01/2016,559.86,60501-LIBRARY BOOKS,LIBRARY STOCK AND PERFORMANCE,Supplies & Services,Revenue
Walsall Council,http://opendatacommunities.org/id/metropolitan-district-council/walsall,WC64-351,31/01/2016,Economy & Environment,ATOM,01/01/2016,"1,200.00",60501-LIBRARY BOOKS,LIBRARY STOCK AND PERFORMANCE,Supplies & Services,Revenue
Walsall Council,http://opendatacommunities.org/id/metropolitan-district-council/walsall,WC64-352,31/01/2016,Change and Governance,AURORA GRAPHICS & DISPLAYS LTD,20/01/2016,332.95,62008-OUTWORK-PRINT ROOM,PRINTING SERVICES,Supplies & Services,Revenue
Walsall Council,http://opendatacommunities.org/id/metropolitan-district-council/walsall,WC64-353,31/01/2016,Social Care & Inclusion,AUTISM WEST MIDLANDS,12/01/2016,"7,479.01",73373-RESIDENTIAL & NURSING CARE PLACEMENTS,LD COMMISSIONING,Third Party Payments,Revenue
Walsall Council,http://opendatacommunities.org/id/metropolitan-district-council/walsall,WC64-354,31/01/2016,Social Care & Inclusion,AUTISM WEST MIDLANDS,05/01/2016,"21,666.50",70000-SOCIAL SERVICES-FEES TO VOLUNTARY BODIES,YADS SLA,Third Party Payments,Revenue
Walsall Council,http://opendatacommunities.org/id/metropolitan-district-council/walsall,WC64-355,31/01/2016,Social Care & Inclusion,AUTISM WEST MIDLANDS 001,06/01/2016,"4,999.33",73373-RESIDENTIAL & NURSING CARE PLACEMENTS,LD COMMISSIONING,Third Party Payments,Revenue
Walsall Council,http://opendatacommunities.org/id/metropolitan-district-council/walsall,WC64-356,31/01/2016,Social Care & Inclusion,REDACTED,11/01/2016,777.00,76422-DIRECT PAYMENTS TO SOCIAL SERVICES CLIENTS,OP COMMISSIONING,Transfer Payments,Revenue
Walsall Council,http://opendatacommunities.org/id/metropolitan-district-council/walsall,WC64-357,31/01/2016,Economy & Environment,AXIELL LIMITED,20/01/2016,581.49,63000-PROFESSIONAL FEES AND SERVICES,LIBRARY STOCK AND PERFORMANCE,Supplies & Services,Revenue
Walsall Council,http://opendatacommunities.org/id/metropolitan-district-council/walsall,WC64-358,31/01/2016,Economy & Environment,AXIELL LIMITED,06/01/2016,601.65,63000-PROFESSIONAL FEES AND SERVICES,LIBRARY STOCK AND PERFORMANCE,Supplies & Services,Revenue
Walsall Council,http://opendatacommunities.org/id/metropolitan-district-council/walsall,WC64-359,31/01/2016,Economy & Environment,AXIELL LIMITED,14/01/2016,611.73,63000-PROFESSIONAL FEES AND SERVICES,LIBRARY STOCK AND PERFORMANCE,Supplies & Services,Revenue
Walsall Council,http://opendatacommunities.org/id/metropolitan-district-council/walsall,WC64-360,31/01/2016,Economy & Environment,AXIELL LIMITED,14/01/2016,"16,830.75",63800-COMPUTER EQUIPMENT AND SUPPLIES,NETWORK SUPPORT,Supplies & Services,Revenue
Walsall Council,http://opendatacommunities.org/id/metropolitan-district-council/walsall,WC64-361,31/01/2016,Childrens,REDACTED,11/01/2016,"1,284.00",76422-DIRECT PAYMENTS TO SOCIAL SERVICES CLIENTS,FAMILY SUPPORT - DIRECT PAYMENTS,Transfer Payments,Revenue
Walsall Council,http://opendatacommunities.org/id/metropolitan-district-council/walsall,WC64-362,31/01/2016,Social Care & Inclusion,REDACTED,11/01/2016,"2,652.00",76422-DIRECT PAYMENTS TO SOCIAL SERVICES CLIENTS,LD COMMISSIONING,Transfer Payments,Revenue
Walsall Council,http://opendatacommunities.org/id/metropolitan-district-council/walsall,WC64-363,31/01/2016,Childrens,REDACTED,04/01/2016,906.76,62515-MISCELLANEOUS SUPPLIES,INTERNAL FOSTER CARE PROVISION,Supplies & Services,Revenue
Walsall Council,http://opendatacommunities.org/id/metropolitan-district-council/walsall,WC64-364,31/01/2016,Childrens,REDACTED,04/01/2016,985.76,74006-HOLIDAY/CHRISTMAS ALLOWANCE-FOSTER CARERS-OTH AGENCY PROVISION,INTERNAL FOSTER CARE PROVISION,Third Party Payments,Revenue
Walsall Council,http://opendatacommunities.org/id/metropolitan-district-council/walsall,WC64-365,31/01/2016,Childrens,REDACTED,04/01/2016,"1,445.32",62515-MISCELLANEOUS SUPPLIES,INTERNAL FOSTER CARE PROVISION,Supplies & Services,Revenue
Walsall Council,http://opendatacommunities.org/id/metropolitan-district-council/walsall,WC64-366,31/01/2016,Childrens,REDACTED,04/01/2016,"1,971.52",74006-HOLIDAY/CHRISTMAS ALLOWANCE-FOSTER CARERS-OTH AGENCY PROVISION,INTERNAL FOSTER CARE PROVISION,Third Party Payments,Revenue
Walsall Council,http://opendatacommunities.org/id/metropolitan-district-council/walsall,WC64-367,31/01/2016,Social Care & Inclusion,REDACTED,11/01/2016,863.20,76422-DIRECT PAYMENTS TO SOCIAL SERVICES CLIENTS,OP COMMISSIONING,Transfer Payments,Revenue
Walsall Council,http://opendatacommunities.org/id/metropolitan-district-council/walsall,WC64-368,31/01/2016,Economy & Environment,BAKER HALL PARTNERSHIP,20/01/2016,782.25,63248-SURVEYS & PROF SERVICES-PAYMENT TO CONTRACTOR,BUILDING CONTROL REVENUE FUNDED,Supplies & Services,Revenue
Walsall Council,http://opendatacommunities.org/id/metropolitan-district-council/walsall,WC64-369,31/01/2016,Economy & Environment,BAKER HALL PARTNERSHIP,01/01/2016,808.50,63248-SURVEYS & PROF SERVICES-PAYMENT TO CONTRACTOR,BUILDING CONTROL REVENUE FUNDED,Supplies & Services,Revenue
Walsall Council,http://opendatacommunities.org/id/metropolitan-district-council/walsall,WC64-370,31/01/2016,Economy & Environment,BAKER HALL PARTNERSHIP,14/01/2016,"1,149.75",63248-SURVEYS & PROF SERVICES-PAYMENT TO CONTRACTOR,BUILDING CONTROL REVENUE FUNDED,Supplies & Services,Revenue
Walsall Council,http://opendatacommunities.org/id/metropolitan-district-council/walsall,WC64-371,31/01/2016,Childrens,BAKER SMALL SOLICITORS,12/01/2016,400.00,63102-CONSULTANTS FEES - CORPORATE,EDUCATIONAL PSYCHOLOGISTS,Supplies & Services,Revenue
Walsall Council,http://opendatacommunities.org/id/metropolitan-district-council/walsall,WC64-372,31/01/2016,Social Care & Inclusion,REDACTED,11/01/2016,"2,849.92",76422-DIRECT PAYMENTS TO SOCIAL SERVICES CLIENTS,LD COMMISSIONING,Transfer Payments,Revenue
Walsall Council,http://opendatacommunities.org/id/metropolitan-district-council/walsall,WC64-373,31/01/2016,Social Care & Inclusion,REDACTED,11/01/2016,"1,080.00",76422-DIRECT PAYMENTS TO SOCIAL SERVICES CLIENTS,OP COMMISSIONING,Transfer Payments,Revenue
Walsall Council,http://opendatacommunities.org/id/metropolitan-district-council/walsall,WC64-374,31/01/2016,Social Care & Inclusion,REDACTED,11/01/2016,"1,046.50",76422-DIRECT PAYMENTS TO SOCIAL SERVICES CLIENTS,OP COMMISSIONING,Transfer Payments,Revenue
Walsall Council,http://opendatacommunities.org/id/metropolitan-district-council/walsall,WC64-375,31/01/2016,Social Care & Inclusion,REDACTED,11/01/2016,"1,582.86",76422-DIRECT PAYMENTS TO SOCIAL SERVICES CLIENTS,YADS COMMISSIONING,Transfer Payments,Revenue
Walsall Council,http://opendatacommunities.org/id/metropolitan-district-council/walsall,WC64-376,31/01/2016,Social Care & Inclusion,REDACTED,11/01/2016,"1,536.08",76422-DIRECT PAYMENTS TO SOCIAL SERVICES CLIENTS,YADS COMMISSIONING,Transfer Payments,Revenue
Walsall Council,http://opendatacommunities.org/id/metropolitan-district-council/walsall,WC64-377,31/01/2016,Social Care & Inclusion,REDACTED,11/01/2016,632.52,76422-DIRECT PAYMENTS TO SOCIAL SERVICES CLIENTS,OP COMMISSIONING,Transfer Payments,Revenue
Walsall Council,http://opendatacommunities.org/id/metropolitan-district-council/walsall,WC64-378,31/01/2016,Childrens,BARNARDOS SERVICES LTD,12/01/2016,"4,884.00",63000-PROFESSIONAL FEES AND SERVICES,DIRECTLY COMMISSIONED NURSING SERVICES,Supplies & Services,Revenue
Walsall Council,http://opendatacommunities.org/id/metropolitan-district-council/walsall,WC64-379,31/01/2016,Change and Governance,BARONS COURT HOTEL,27/01/2016,564.92,75501-BED & BREAKFAST PAYMENTS,BED & BREAKFAST PAYMENTS,Third Party Payments,Revenue
Walsall Council,http://opendatacommunities.org/id/metropolitan-district-council/walsall,WC64-380,31/01/2016,Change and Governance,BARONS COURT HOTEL,27/01/2016,565.00,75501-BED & BREAKFAST PAYMENTS,BED & BREAKFAST PAYMENTS,Third Party Payments,Revenue
Walsall Council,http://opendatacommunities.org/id/metropolitan-district-council/walsall,WC64-381,31/01/2016,Childrens,BARONS COURT HOTEL,22/01/2016,"2,275.00",76010-ACCOMMODATION AND RELATED COSTS-ASSISTANCE TO S/S CLIENTS,SAFEGUARDING & FAMILY SUPPORT,Transfer Payments,Revenue
Walsall Council,http://opendatacommunities.org/id/metropolitan-district-council/walsall,WC64-382,31/01/2016,Economy & Environment,BASEMAP LTD,15/01/2016,750.00,63114-OTHER FEES & LICENCES-SERVICES-FEES,HEALTH & WELLBEING/CHILDREN,Supplies & Services,Revenue
Walsall Council,http://opendatacommunities.org/id/metropolitan-district-council/walsall,WC64-383,31/01/2016,Childrens,REDACTED,04/01/2016,925.00,62515-MISCELLANEOUS SUPPLIES,INTERNAL FOSTER CARE PROVISION,Supplies & Services,Revenue
Walsall Council,http://opendatacommunities.org/id/metropolitan-district-council/walsall,WC64-384,31/01/2016,Childrens,REDACTED,04/01/2016,"1,464.58",74006-HOLIDAY/CHRISTMAS ALLOWANCE-FOSTER CARERS-OTH AGENCY PROVISION,INTERNAL FOSTER CARE PROVISION,Third Party Payments,Revenue
Walsall Council,http://opendatacommunities.org/id/metropolitan-district-council/walsall,WC64-385,31/01/2016,Social Care & Inclusion,BEARWOOD NURSING HOME LTD,20/01/2016,"1,527.60",73373-RESIDENTIAL & NURSING CARE PLACEMENTS,OP COMMISSIONING,Third Party Payments,Revenue
Walsall Council,http://opendatacommunities.org/id/metropolitan-district-council/walsall,WC64-386,31/01/2016,Social Care & Inclusion,REDACTED,11/01/2016,641.76,76422-DIRECT PAYMENTS TO SOCIAL SERVICES CLIENTS,OP COMMISSIONING,Transfer Payments,Revenue
Walsall Council,http://opendatacommunities.org/id/metropolitan-district-council/walsall,WC64-387,31/01/2016,Childrens,REDACTED,08/01/2016,"1,694.39",66505-OTHER-GRANTS TO OTHER ORGS,EARLY YEARS - 2 YR OLDS,Third Party Payments,Revenue
Walsall Council,http://opendatacommunities.org/id/metropolitan-district-council/walsall,WC64-388,31/01/2016,Childrens,REDACTED,04/01/2016,354.48,62515-MISCELLANEOUS SUPPLIES,INTERNAL FOSTER CARE PROVISION,Supplies & Services,Revenue
Walsall Council,http://opendatacommunities.org/id/metropolitan-district-council/walsall,WC64-389,31/01/2016,Childrens,REDACTED,04/01/2016,571.44,74006-HOLIDAY/CHRISTMAS ALLOWANCE-FOSTER CARERS-OTH AGENCY PROVISION,INTERNAL FOSTER CARE PROVISION,Third Party Payments,Revenue
Walsall Council,http://opendatacommunities.org/id/metropolitan-district-council/walsall,WC64-390,31/01/2016,Social Care & Inclusion,BELLEVUE COURT CARE HOME,06/01/2016,"1,532.96",73373-RESIDENTIAL & NURSING CARE PLACEMENTS,MH COMMISSIONING,Third Party Payments,Revenue
Walsall Council,http://opendatacommunities.org/id/metropolitan-district-council/walsall,WC64-391,31/01/2016,Social Care & Inclusion,BELLEVUE COURT CARE HOME,06/01/2016,"1,577.52",73373-RESIDENTIAL & NURSING CARE PLACEMENTS,MH COMMISSIONING,Third Party Payments,Revenue
Walsall Council,http://opendatacommunities.org/id/metropolitan-district-council/walsall,WC64-392,31/01/2016,Social Care & Inclusion,REDACTED,11/01/2016,"2,205.00",76422-DIRECT PAYMENTS TO SOCIAL SERVICES CLIENTS,LD COMMISSIONING,Transfer Payments,Revenue
Walsall Council,http://opendatacommunities.org/id/metropolitan-district-council/walsall,WC64-393,31/01/2016,Social Care & Inclusion,REDACTED,11/01/2016,912.00,76422-DIRECT PAYMENTS TO SOCIAL SERVICES CLIENTS,OP COMMISSIONING,Transfer Payments,Revenue
Walsall Council,http://opendatacommunities.org/id/metropolitan-district-council/walsall,WC64-394,31/01/2016,Childrens,REDACTED,04/01/2016,"1,214.31",74006-HOLIDAY/CHRISTMAS ALLOWANCE-FOSTER CARERS-OTH AGENCY PROVISION,INTERNAL FOSTER CARE PROVISION,Third Party Payments,Revenue
Walsall Council,http://opendatacommunities.org/id/metropolitan-district-council/walsall,WC64-395,31/01/2016,Childrens,REDACTED,04/01/2016,"1,358.87",62515-MISCELLANEOUS SUPPLIES,INTERNAL FOSTER CARE PROVISION,Supplies & Services,Revenue
Walsall Council,http://opendatacommunities.org/id/metropolitan-district-council/walsall,WC64-396,31/01/2016,Social Care & Inclusion,REDACTED,11/01/2016,968.00,76422-DIRECT PAYMENTS TO SOCIAL SERVICES CLIENTS,OP COMMISSIONING,Transfer Payments,Revenue
Walsall Council,http://opendatacommunities.org/id/metropolitan-district-council/walsall,WC64-397,31/01/2016,Social Care & Inclusion,BESCOT LODGE RESIDENTIAL CARE HOME,12/01/2016,504.21,73373-RESIDENTIAL & NURSING CARE PLACEMENTS,OP COMMISSIONING,Third Party Payments,Revenue
Walsall Council,http://opendatacommunities.org/id/metropolitan-district-council/walsall,WC64-398,31/01/2016,Social Care & Inclusion,BESCOT LODGE RESIDENTIAL CARE HOME,12/01/2016,"1,176.48",73373-RESIDENTIAL & NURSING CARE PLACEMENTS,OP COMMISSIONING,Third Party Payments,Revenue
Walsall Council,http://opendatacommunities.org/id/metropolitan-district-council/walsall,WC64-399,31/01/2016,Social Care & Inclusion,BESCOT LODGE RESIDENTIAL CARE HOME,12/01/2016,"1,653.23",73373-RESIDENTIAL & NURSING CARE PLACEMENTS,OP COMMISSIONING,Third Party Payments,Revenue
Walsall Council,http://opendatacommunities.org/id/metropolitan-district-council/walsall,WC64-400,31/01/2016,Social Care & Inclusion,BESCOT LODGE RESIDENTIAL CARE HOME,12/01/2016,"1,653.23",73373-RESIDENTIAL & NURSING CARE PLACEMENTS,OP COMMISSIONING,Third Party Payments,Revenue
Walsall Council,http://opendatacommunities.org/id/metropolitan-district-council/walsall,WC64-401,31/01/2016,Social Care & Inclusion,BESCOT LODGE RESIDENTIAL CARE HOME,12/01/2016,"1,653.23",73373-RESIDENTIAL & NURSING CARE PLACEMENTS,OP COMMISSIONING,Third Party Payments,Revenue
Walsall Council,http://opendatacommunities.org/id/metropolitan-district-council/walsall,WC64-402,31/01/2016,Social Care & Inclusion,BESCOT LODGE RESIDENTIAL CARE HOME,12/01/2016,"1,653.23",73373-RESIDENTIAL & NURSING CARE PLACEMENTS,OP COMMISSIONING,Third Party Payments,Revenue
Walsall Council,http://opendatacommunities.org/id/metropolitan-district-council/walsall,WC64-403,31/01/2016,Social Care & Inclusion,BESCOT LODGE RESIDENTIAL CARE HOME,12/01/2016,"1,680.69",73373-RESIDENTIAL & NURSING CARE PLACEMENTS,OP COMMISSIONING,Third Party Payments,Revenue
Walsall Council,http://opendatacommunities.org/id/metropolitan-district-council/walsall,WC64-404,31/01/2016,Social Care & Inclusion,BESCOT LODGE RESIDENTIAL CARE HOME,12/01/2016,"1,736.70",73373-RESIDENTIAL & NURSING CARE PLACEMENTS,OP COMMISSIONING,Third Party Payments,Revenue
Walsall Council,http://opendatacommunities.org/id/metropolitan-district-council/walsall,WC64-405,31/01/2016,Social Care & Inclusion,BESCOT LODGE RESIDENTIAL CARE HOME,12/01/2016,"1,736.71",73373-RESIDENTIAL & NURSING CARE PLACEMENTS,OP COMMISSIONING,Third Party Payments,Revenue
Walsall Council,http://opendatacommunities.org/id/metropolitan-district-council/walsall,WC64-406,31/01/2016,Social Care & Inclusion,BESCOT LODGE RESIDENTIAL CARE HOME,12/01/2016,"1,736.71",73373-RESIDENTIAL & NURSING CARE PLACEMENTS,MH COMMISSIONING,Third Party Payments,Revenue
Walsall Council,http://opendatacommunities.org/id/metropolitan-district-council/walsall,WC64-407,31/01/2016,Social Care & Inclusion,BESCOT LODGE RESIDENTIAL CARE HOME,12/01/2016,"1,736.71",73373-RESIDENTIAL & NURSING CARE PLACEMENTS,OP COMMISSIONING,Third Party Payments,Revenue
Walsall Council,http://opendatacommunities.org/id/metropolitan-district-council/walsall,WC64-408,31/01/2016,Social Care & Inclusion,BESCOT LODGE RESIDENTIAL CARE HOME,12/01/2016,"1,736.71",73373-RESIDENTIAL & NURSING CARE PLACEMENTS,OP COMMISSIONING,Third Party Payments,Revenue
Walsall Council,http://opendatacommunities.org/id/metropolitan-district-council/walsall,WC64-409,31/01/2016,Social Care & Inclusion,BESCOT LODGE RESIDENTIAL CARE HOME,12/01/2016,"1,736.71",73373-RESIDENTIAL & NURSING CARE PLACEMENTS,OP COMMISSIONING,Third Party Payments,Revenue
Walsall Council,http://opendatacommunities.org/id/metropolitan-district-council/walsall,WC64-410,31/01/2016,Social Care & Inclusion,BESCOT LODGE RESIDENTIAL CARE HOME,12/01/2016,"1,755.35",73373-RESIDENTIAL & NURSING CARE PLACEMENTS,OP COMMISSIONING,Third Party Payments,Revenue
Walsall Council,http://opendatacommunities.org/id/metropolitan-district-council/walsall,WC64-411,31/01/2016,Social Care & Inclusion,BESCOT LODGE RESIDENTIAL CARE HOME,26/01/2016,"2,352.96",73373-RESIDENTIAL & NURSING CARE PLACEMENTS,MH COMMISSIONING,Third Party Payments,Revenue
Walsall Council,http://opendatacommunities.org/id/metropolitan-district-council/walsall,WC64-412,31/01/2016,Economy & Environment,BESCOT STADIUM SUNDAY MARKET LTD,11/01/2016,"2,800.00",73025-PROFESSIONAL SERVICES-PRIV CONTRACTOR & OTHER AGENCIES,WILLENHALL MARKET,Third Party Payments,Revenue
Walsall Council,http://opendatacommunities.org/id/metropolitan-district-council/walsall,WC64-413,31/01/2016,Economy & Environment,BESCOT STADIUM SUNDAY MARKET LTD,22/01/2016,"2,800.00",73025-PROFESSIONAL SERVICES-PRIV CONTRACTOR & OTHER AGENCIES,WILLENHALL MARKET,Third Party Payments,Revenue
Walsall Council,http://opendatacommunities.org/id/metropolitan-district-council/walsall,WC64-414,31/01/2016,Social Care & Inclusion,BETHPHAGE.,12/01/2016,812.50,73374-SUPPORTED & OTHER ACCOMMODATION,LD COMMISSIONING,Third Party Payments,Revenue
Walsall Council,http://opendatacommunities.org/id/metropolitan-district-council/walsall,WC64-415,31/01/2016,Social Care & Inclusion,BETHPHAGE.,19/01/2016,"1,728.49",73374-SUPPORTED & OTHER ACCOMMODATION,LD COMMISSIONING,Third Party Payments,Revenue
Walsall Council,http://opendatacommunities.org/id/metropolitan-district-council/walsall,WC64-416,31/01/2016,Social Care & Inclusion,BETHPHAGE.,12/01/2016,"1,799.05",73374-SUPPORTED & OTHER ACCOMMODATION,LD COMMISSIONING,Third Party Payments,Revenue
Walsall Council,http://opendatacommunities.org/id/metropolitan-district-council/walsall,WC64-417,31/01/2016,Social Care & Inclusion,BETHPHAGE.,19/01/2016,"2,210.00",73374-SUPPORTED & OTHER ACCOMMODATION,LD COMMISSIONING,Third Party Payments,Revenue
Walsall Council,http://opendatacommunities.org/id/metropolitan-district-council/walsall,WC64-418,31/01/2016,Social Care & Inclusion,BETHPHAGE.,19/01/2016,"4,789.90",73374-SUPPORTED & OTHER ACCOMMODATION,LD COMMISSIONING,Third Party Payments,Revenue
Walsall Council,http://opendatacommunities.org/id/metropolitan-district-council/walsall,WC64-419,31/01/2016,Social Care & Inclusion,REDACTED,11/01/2016,949.52,76422-DIRECT PAYMENTS TO SOCIAL SERVICES CLIENTS,MH COMMISSIONING,Transfer Payments,Revenue
Walsall Council,http://opendatacommunities.org/id/metropolitan-district-council/walsall,WC64-420,31/01/2016,Social Care & Inclusion,REDACTED,11/01/2016,"1,813.00",76422-DIRECT PAYMENTS TO SOCIAL SERVICES CLIENTS,OP COMMISSIONING,Transfer Payments,Revenue
Walsall Council,http://opendatacommunities.org/id/metropolitan-district-council/walsall,WC64-421,31/01/2016,Change and Governance,BFA SAFETY TRAINING,01/01/2016,595.00,30030-EXTERNAL TRAINING,HEALTH & SAFETY (TRADED),Employees,Revenue
Walsall Council,http://opendatacommunities.org/id/metropolitan-district-council/walsall,WC64-422,31/01/2016,Change and Governance,BFA SAFETY TRAINING,20/01/2016,795.00,30030-EXTERNAL TRAINING,HEALTH & SAFETY (TRADED),Employees,Revenue
Walsall Council,http://opendatacommunities.org/id/metropolitan-district-council/walsall,WC64-423,31/01/2016,Economy & Environment,BIFFA WASTE SERVICES LTD,25/01/2016,658.33,73005-LANDFILL PTYS-PRIV CONTRACTOR FEES,WASTE DISPOSAL - RESIDUAL,Third Party Payments,Revenue
Walsall Council,http://opendatacommunities.org/id/metropolitan-district-council/walsall,WC64-424,31/01/2016,Economy & Environment,BIFFA WASTE SERVICES LTD,01/01/2016,"1,243.88",73005-LANDFILL PTYS-PRIV CONTRACTOR FEES,WASTE DISPOSAL - RESIDUAL,Third Party Payments,Revenue
Walsall Council,http://opendatacommunities.org/id/metropolitan-district-council/walsall,WC64-425,31/01/2016,Economy & Environment,BIFFA WASTE SERVICES LTD,11/01/2016,"1,348.93",73005-LANDFILL PTYS-PRIV CONTRACTOR FEES,WASTE DISPOSAL - RESIDUAL,Third Party Payments,Revenue
Walsall Council,http://opendatacommunities.org/id/metropolitan-district-council/walsall,WC64-426,31/01/2016,Economy & Environment,BIFFA WASTE SERVICES LTD,01/01/2016,"1,377.24",73005-LANDFILL PTYS-PRIV CONTRACTOR FEES,WASTE DISPOSAL - RESIDUAL,Third Party Payments,Revenue
Walsall Council,http://opendatacommunities.org/id/metropolitan-district-council/walsall,WC64-427,31/01/2016,Economy & Environment,BIFFA WASTE SERVICES LTD,20/01/2016,"2,126.57",73005-LANDFILL PTYS-PRIV CONTRACTOR FEES,WASTE DISPOSAL - RESIDUAL,Third Party Payments,Revenue
Walsall Council,http://opendatacommunities.org/id/metropolitan-district-council/walsall,WC64-428,31/01/2016,Economy & Environment,BIFFA WASTE SERVICES LTD,25/01/2016,"4,110.17",73039-LANDFILL TAX-PRIV CONTRACTOR FEES,WASTE DISPOSAL - RESIDUAL,Third Party Payments,Revenue
Walsall Council,http://opendatacommunities.org/id/metropolitan-district-council/walsall,WC64-429,31/01/2016,Economy & Environment,BIFFA WASTE SERVICES LTD,25/01/2016,"4,976.07",73005-LANDFILL PTYS-PRIV CONTRACTOR FEES,WASTE DISPOSAL - RESIDUAL,Third Party Payments,Revenue
Walsall Council,http://opendatacommunities.org/id/metropolitan-district-council/walsall,WC64-430,31/01/2016,Economy & Environment,BIFFA WASTE SERVICES LTD,01/01/2016,"7,766.06",73039-LANDFILL TAX-PRIV CONTRACTOR FEES,WASTE DISPOSAL - RESIDUAL,Third Party Payments,Revenue
Walsall Council,http://opendatacommunities.org/id/metropolitan-district-council/walsall,WC64-431,31/01/2016,Economy & Environment,BIFFA WASTE SERVICES LTD,11/01/2016,"8,421.90",73039-LANDFILL TAX-PRIV CONTRACTOR FEES,WASTE DISPOSAL - RESIDUAL,Third Party Payments,Revenue
Walsall Council,http://opendatacommunities.org/id/metropolitan-district-council/walsall,WC64-432,31/01/2016,Economy & Environment,BIFFA WASTE SERVICES LTD,01/01/2016,"8,598.66",73039-LANDFILL TAX-PRIV CONTRACTOR FEES,WASTE DISPOSAL - RESIDUAL,Third Party Payments,Revenue
Walsall Council,http://opendatacommunities.org/id/metropolitan-district-council/walsall,WC64-433,31/01/2016,Economy & Environment,BIFFA WASTE SERVICES LTD,20/01/2016,"13,277.14",73039-LANDFILL TAX-PRIV CONTRACTOR FEES,WASTE DISPOSAL - RESIDUAL,Third Party Payments,Revenue
Walsall Council,http://opendatacommunities.org/id/metropolitan-district-council/walsall,WC64-434,31/01/2016,Economy & Environment,BIFFA WASTE SERVICES LTD,25/01/2016,"31,067.51",73039-LANDFILL TAX-PRIV CONTRACTOR FEES,WASTE DISPOSAL - RESIDUAL,Third Party Payments,Revenue
Walsall Council,http://opendatacommunities.org/id/metropolitan-district-council/walsall,WC64-435,31/01/2016,Childrens,REDACTED,11/01/2016,487.72,76422-DIRECT PAYMENTS TO SOCIAL SERVICES CLIENTS,FAMILY SUPPORT - DIRECT PAYMENTS,Transfer Payments,Revenue
Walsall Council,http://opendatacommunities.org/id/metropolitan-district-council/walsall,WC64-436,31/01/2016,Childrens,REDACTED,11/01/2016,537.20,76422-DIRECT PAYMENTS TO SOCIAL SERVICES CLIENTS,FAMILY SUPPORT - DIRECT PAYMENTS,Transfer Payments,Revenue
Walsall Council,http://opendatacommunities.org/id/metropolitan-district-council/walsall,WC64-437,31/01/2016,Economy & Environment,BIOGAS TECHNOLOGY LIMITED,01/01/2016,349.50,60008-MAINTENANCE-FURNITURE & EQUIPMENT,POLLUTION DIVISION,Supplies & Services,Revenue
Walsall Council,http://opendatacommunities.org/id/metropolitan-district-council/walsall,WC64-438,31/01/2016,Childrens,BIRCHILLS C OF E COMMUNITY ACADEMY,13/01/2016,"1,000.00",77300-ISB-FORMULA ALLOCATION,BIRCHILLS CE COMMUNITY ACADEMY,Transfer Payments,Revenue
Walsall Council,http://opendatacommunities.org/id/metropolitan-district-council/walsall,WC64-439,31/01/2016,Childrens,BIRCHILLS C OF E COMMUNITY ACADEMY,13/01/2016,"9,412.12",66505-OTHER-GRANTS TO OTHER ORGS,EARLY YEARS - 3 YR OLDS,Third Party Payments,Revenue
Walsall Council,http://opendatacommunities.org/id/metropolitan-district-council/walsall,WC64-440,31/01/2016,Economy & Environment,BIRMINGHAM CITY COUNCIL PARKS & NURSERIES,14/01/2016,403.16,62515-MISCELLANEOUS SUPPLIES,ALDRIDGE DISTRICT CENTRE,Supplies & Services,Revenue
Walsall Council,http://opendatacommunities.org/id/metropolitan-district-council/walsall,WC64-441,31/01/2016,Childrens,BIRMINGHAM CITY UNIVERSITY,27/01/2016,550.00,63000-PROFESSIONAL FEES AND SERVICES,PRACTICE DEVELOPMENT,Supplies & Services,Revenue
Walsall Council,http://opendatacommunities.org/id/metropolitan-district-council/walsall,WC64-442,31/01/2016,Childrens,BIRMINGHAM CITY UNIVERSITY,27/01/2016,550.00,63000-PROFESSIONAL FEES AND SERVICES,PRACTICE DEVELOPMENT,Supplies & Services,Revenue
Walsall Council,http://opendatacommunities.org/id/metropolitan-district-council/walsall,WC64-443,31/01/2016,Childrens,BIRMINGHAM CITY UNIVERSITY,27/01/2016,550.00,63000-PROFESSIONAL FEES AND SERVICES,PRACTICE DEVELOPMENT,Supplies & Services,Revenue
Walsall Council,http://opendatacommunities.org/id/metropolitan-district-council/walsall,WC64-444,31/01/2016,Childrens,BIRMINGHAM CITY UNIVERSITY,27/01/2016,550.00,63000-PROFESSIONAL FEES AND SERVICES,PRACTICE DEVELOPMENT,Supplies & Services,Revenue
Walsall Council,http://opendatacommunities.org/id/metropolitan-district-council/walsall,WC64-445,31/01/2016,Childrens,BIRMINGHAM CITY UNIVERSITY,27/01/2016,550.00,63000-PROFESSIONAL FEES AND SERVICES,PRACTICE DEVELOPMENT,Supplies & Services,Revenue
Walsall Council,http://opendatacommunities.org/id/metropolitan-district-council/walsall,WC64-446,31/01/2016,Childrens,BIRMINGHAM CITY UNIVERSITY,27/01/2016,550.00,63000-PROFESSIONAL FEES AND SERVICES,PRACTICE DEVELOPMENT,Supplies & Services,Revenue
Walsall Council,http://opendatacommunities.org/id/metropolitan-district-council/walsall,WC64-447,31/01/2016,Economy & Environment,BLACK COUNTRY CONSORTIUM LIMITED,22/01/2016,517.86,63102-CONSULTANTS FEES - CORPORATE,ERDF-AUTHORITY PARTNERS/TECHNICAL ASSISTANCE PROGRAMME,Supplies & Services,Revenue
Walsall Council,http://opendatacommunities.org/id/metropolitan-district-council/walsall,WC64-448,31/01/2016,Economy & Environment,BLACK COUNTRY CONSORTIUM LIMITED,11/01/2016,"2,444.36",63000-PROFESSIONAL FEES AND SERVICES,GRANTS-BLACK COUNTRY INVEST TEAM,Supplies & Services,Revenue
Walsall Council,http://opendatacommunities.org/id/metropolitan-district-council/walsall,WC64-449,31/01/2016,Economy & Environment,BLACK COUNTRY CONSORTIUM LIMITED,11/01/2016,"3,033.08",63000-PROFESSIONAL FEES AND SERVICES,GRANTS-BLACK COUNTRY INVEST TEAM,Supplies & Services,Revenue
Walsall Council,http://opendatacommunities.org/id/metropolitan-district-council/walsall,WC64-450,31/01/2016,Economy & Environment,BLACK COUNTRY CONSORTIUM LIMITED,01/01/2016,"47,079.67",01045-PRIVATE GRANTS,CFR 1072 FAB KIT,Capital,Capital
Walsall Council,http://opendatacommunities.org/id/metropolitan-district-council/walsall,WC64-451,31/01/2016,Change and Governance,BLACK COUNTRY KITCHENS,22/01/2016,"8,769.00",01045-PRIVATE GRANTS,CFR 826 DISABLED FACILITIES GRANTS (SOCIAL SERVICES),Capital,Capital
Walsall Council,http://opendatacommunities.org/id/metropolitan-district-council/walsall,WC64-452,31/01/2016,Social Care & Inclusion,BLACK COUNTRY PARTNERSHIP NHS,21/01/2016,"18,000.00",73375-IN PATIENT BEDS,LD COMMISSIONING,Third Party Payments,Revenue
Walsall Council,http://opendatacommunities.org/id/metropolitan-district-council/walsall,WC64-453,31/01/2016,Childrens,BLAKENALL HEATH JMI SCHOOL,07/01/2016,"88,933.93",77300-ISB-FORMULA ALLOCATION,BLAKENALL HEATH JUNIOR SCHOOL,Transfer Payments,Revenue
Walsall Council,http://opendatacommunities.org/id/metropolitan-district-council/walsall,WC64-454,31/01/2016,Childrens,BLOXWICH ACADEMY,13/01/2016,"10,322.06",66505-OTHER-GRANTS TO OTHER ORGS,EARLY YEARS - 3 YR OLDS,Third Party Payments,Revenue
Walsall Council,http://opendatacommunities.org/id/metropolitan-district-council/walsall,WC64-455,31/01/2016,Social Care & Inclusion,BLOXWICH COMMUNITY PARTNERSHIP.,27/01/2016,320.00,73374-SUPPORTED & OTHER ACCOMMODATION,MH COMMISSIONING,Third Party Payments,Revenue
Walsall Council,http://opendatacommunities.org/id/metropolitan-district-council/walsall,WC64-456,31/01/2016,Change and Governance,BLOXWICH COMMUNITY PARTNERSHIP.,04/01/2016,"10,000.02",66500-GRANTS TO OTHER ORGS,BLOXWICH COMMUNITY PARTNERSHIP,Third Party Payments,Revenue
Walsall Council,http://opendatacommunities.org/id/metropolitan-district-council/walsall,WC64-457,31/01/2016,Childrens,BLUE GIRAFFE CHILDCARE,08/01/2016,"5,647.95",66505-OTHER-GRANTS TO OTHER ORGS,EARLY YEARS - 2 YR OLDS,Third Party Payments,Revenue
Walsall Council,http://opendatacommunities.org/id/metropolitan-district-council/walsall,WC64-458,31/01/2016,Childrens,BLUE GIRAFFE CHILDCARE,07/01/2016,"7,285.71",66505-OTHER-GRANTS TO OTHER ORGS,EARLY YEARS - 3 YR OLDS,Third Party Payments,Revenue
Walsall Council,http://opendatacommunities.org/id/metropolitan-district-council/walsall,WC64-459,31/01/2016,Childrens,BLUEBELLS #1,14/01/2016,12.90,63000-PROFESSIONAL FEES AND SERVICES,BLUEBELLS,Supplies & Services,Revenue
Walsall Council,http://opendatacommunities.org/id/metropolitan-district-council/walsall,WC64-460,31/01/2016,Childrens,BLUEBELLS #1,14/01/2016,15.48,46000-EQUIP NEW-CLEANING,BLUEBELLS,Premises,Revenue
Walsall Council,http://opendatacommunities.org/id/metropolitan-district-council/walsall,WC64-461,31/01/2016,Childrens,BLUEBELLS #1,14/01/2016,18.90,50100-VEHICLES-REPAIR & MTCE,BLUEBELLS,Transport,Revenue
Walsall Council,http://opendatacommunities.org/id/metropolitan-district-council/walsall,WC64-462,31/01/2016,Childrens,BLUEBELLS #1,14/01/2016,69.48,"40000-REPAIRS,ALTERATIONS & MAINTENANCE-PREM",BLUEBELLS,Premises,Revenue
Walsall Council,http://opendatacommunities.org/id/metropolitan-district-council/walsall,WC64-463,31/01/2016,Childrens,BLUEBELLS #1,14/01/2016,221.48,60006-NEW-FURNITURE & EQUIPMENT,BLUEBELLS,Supplies & Services,Revenue
Walsall Council,http://opendatacommunities.org/id/metropolitan-district-council/walsall,WC64-464,31/01/2016,Childrens,BLUEBELLS #1,14/01/2016,234.42,61016-FOOD AND BEVERAGES-PROVISIONS,BLUEBELLS,Supplies & Services,Revenue
Walsall Council,http://opendatacommunities.org/id/metropolitan-district-council/walsall,WC64-465,31/01/2016,Childrens,BLUEBELLS #1,14/01/2016,341.25,76000-TRANSFER PAYMENTS - SOCIAL SERVICES CLIENTS,BLUEBELLS,Transfer Payments,Revenue
Walsall Council,http://opendatacommunities.org/id/metropolitan-district-council/walsall,WC64-466,31/01/2016,Economy & Environment,BME UNITED LTD,26/01/2016,"7,962.00",63000-PROFESSIONAL FEES AND SERVICES,SMOKING CESSATION,Supplies & Services,Revenue
Walsall Council,http://opendatacommunities.org/id/metropolitan-district-council/walsall,WC64-467,31/01/2016,Economy & Environment,BME UNITED LTD,14/01/2016,"8,724.00",63000-PROFESSIONAL FEES AND SERVICES,SMOKING CESSATION,Supplies & Services,Revenue
Walsall Council,http://opendatacommunities.org/id/metropolitan-district-council/walsall,WC64-468,31/01/2016,Social Care & Inclusion,BOLDMERE COURT CARE HOME,12/01/2016,"1,691.27",73373-RESIDENTIAL & NURSING CARE PLACEMENTS,OP COMMISSIONING,Third Party Payments,Revenue
Walsall Council,http://opendatacommunities.org/id/metropolitan-district-council/walsall,WC64-469,31/01/2016,Social Care & Inclusion,BOLDMERE COURT CARE HOME,12/01/2016,"1,691.27",73373-RESIDENTIAL & NURSING CARE PLACEMENTS,OP COMMISSIONING,Third Party Payments,Revenue
Walsall Council,http://opendatacommunities.org/id/metropolitan-district-council/walsall,WC64-470,31/01/2016,Social Care & Inclusion,BOLDMERE COURT CARE HOME,12/01/2016,"1,691.27",73373-RESIDENTIAL & NURSING CARE PLACEMENTS,OP COMMISSIONING,Third Party Payments,Revenue
Walsall Council,http://opendatacommunities.org/id/metropolitan-district-council/walsall,WC64-471,31/01/2016,Economy & Environment,BOLINDA UK LTD,05/01/2016,377.49,60501-LIBRARY BOOKS,LIBRARY STOCK AND PERFORMANCE,Supplies & Services,Revenue
Walsall Council,http://opendatacommunities.org/id/metropolitan-district-council/walsall,WC64-472,31/01/2016,Economy & Environment,BOLINDA UK LTD,06/01/2016,759.84,60501-LIBRARY BOOKS,LIBRARY STOCK AND PERFORMANCE,Supplies & Services,Revenue
Walsall Council,http://opendatacommunities.org/id/metropolitan-district-council/walsall,WC64-473,31/01/2016,Social Care & Inclusion,BONEHILL LODGE (OAKTREES HEALTHCARE LTD),12/01/2016,"1,736.71",73373-RESIDENTIAL & NURSING CARE PLACEMENTS,OP COMMISSIONING,Third Party Payments,Revenue
Walsall Council,http://opendatacommunities.org/id/metropolitan-district-council/walsall,WC64-474,31/01/2016,Childrens,BOOSTERS OUT OF SCHOOL CLUB,21/01/2016,477.00,63120-CRECHE FACILITIES-SERVICES-FEES,FOSTERING SUPPORT TEAM,Supplies & Services,Revenue
Walsall Council,http://opendatacommunities.org/id/metropolitan-district-council/walsall,WC64-475,31/01/2016,Childrens,BOULTON TRAVEL LIMITED,12/01/2016,"1,469.00",52000-WITH DRIVER-HIRE OF VEHICLES,SCHOOL TRANSPORT,Transport,Revenue
Walsall Council,http://opendatacommunities.org/id/metropolitan-district-council/walsall,WC64-476,31/01/2016,Childrens,BOULTON TRAVEL LIMITED,12/01/2016,"1,708.00",52000-WITH DRIVER-HIRE OF VEHICLES,SCHOOL TRANSPORT,Transport,Revenue
Walsall Council,http://opendatacommunities.org/id/metropolitan-district-council/walsall,WC64-477,31/01/2016,Social Care & Inclusion,BOWDEN DERRA PARK,20/01/2016,"10,502.76",73373-RESIDENTIAL & NURSING CARE PLACEMENTS,LD COMMISSIONING,Third Party Payments,Revenue
Walsall Council,http://opendatacommunities.org/id/metropolitan-district-council/walsall,WC64-478,31/01/2016,Economy & Environment,BRADVALE LTD T/A INSPIRE HEALTHCARE SERVICES,21/01/2016,398.58,60500-GENERAL MATERIALS,DEPOT,Supplies & Services,Revenue
Walsall Council,http://opendatacommunities.org/id/metropolitan-district-council/walsall,WC64-479,31/01/2016,Economy & Environment,BRADVALE LTD T/A INSPIRE HEALTHCARE SERVICES,01/01/2016,529.13,60520-HEALTH & SAFETY-MATERIALS,ARBORETUM,Supplies & Services,Revenue
Walsall Council,http://opendatacommunities.org/id/metropolitan-district-council/walsall,WC64-480,31/01/2016,Economy & Environment,BRADVALE LTD T/A INSPIRE HEALTHCARE SERVICES,27/01/2016,529.13,60520-HEALTH & SAFETY-MATERIALS,ARBORETUM,Supplies & Services,Revenue
Walsall Council,http://opendatacommunities.org/id/metropolitan-district-council/walsall,WC64-481,31/01/2016,Change and Governance,BRAMBLE HUB LIMITED,11/01/2016,770.00,01002-PROJECT FEES,CFR 637 FINANCE DIRECT PROGRAMME,Capital,Capital
Walsall Council,http://opendatacommunities.org/id/metropolitan-district-council/walsall,WC64-482,31/01/2016,Change and Governance,BRELMAYNE LTD,05/01/2016,508.19,"40000-REPAIRS,ALTERATIONS & MAINTENANCE-PREM",CENTRALISED MAINTENANCE,Premises,Revenue
Walsall Council,http://opendatacommunities.org/id/metropolitan-district-council/walsall,WC64-483,31/01/2016,Social Care & Inclusion,REDACTED,11/01/2016,440.00,76422-DIRECT PAYMENTS TO SOCIAL SERVICES CLIENTS,LD COMMISSIONING,Transfer Payments,Revenue
Walsall Council,http://opendatacommunities.org/id/metropolitan-district-council/walsall,WC64-484,31/01/2016,Childrens,REDACTED,04/01/2016,"1,301.84",74006-HOLIDAY/CHRISTMAS ALLOWANCE-FOSTER CARERS-OTH AGENCY PROVISION,INTERNAL FOSTER CARE PROVISION,Third Party Payments,Revenue
Walsall Council,http://opendatacommunities.org/id/metropolitan-district-council/walsall,WC64-485,31/01/2016,Childrens,REDACTED,04/01/2016,"1,582.59",62515-MISCELLANEOUS SUPPLIES,INTERNAL FOSTER CARE PROVISION,Supplies & Services,Revenue
Walsall Council,http://opendatacommunities.org/id/metropolitan-district-council/walsall,WC64-486,31/01/2016,Change and Governance,BREWOOD RINGERS,11/01/2016,839.71,62515-MISCELLANEOUS SUPPLIES,AREA 2 - ALDRIDGE/STREETLY/PHEASEY,Supplies & Services,Revenue
Walsall Council,http://opendatacommunities.org/id/metropolitan-district-council/walsall,WC64-487,31/01/2016,Social Care & Inclusion,REDACTED,01/01/2016,"2,935.24",73374-SUPPORTED & OTHER ACCOMMODATION,LD COMMISSIONING,Third Party Payments,Revenue
Walsall Council,http://opendatacommunities.org/id/metropolitan-district-council/walsall,WC64-488,31/01/2016,Social Care & Inclusion,REDACTED,21/01/2016,"2,935.24",73374-SUPPORTED & OTHER ACCOMMODATION,LD COMMISSIONING,Third Party Payments,Revenue
Walsall Council,http://opendatacommunities.org/id/metropolitan-district-council/walsall,WC64-489,31/01/2016,Social Care & Inclusion,REDACTED,11/01/2016,493.20,76422-DIRECT PAYMENTS TO SOCIAL SERVICES CLIENTS,LD COMMISSIONING,Transfer Payments,Revenue
Walsall Council,http://opendatacommunities.org/id/metropolitan-district-council/walsall,WC64-490,31/01/2016,Social Care & Inclusion,REDACTED,11/01/2016,"1,294.80",76422-DIRECT PAYMENTS TO SOCIAL SERVICES CLIENTS,OP COMMISSIONING,Transfer Payments,Revenue
Walsall Council,http://opendatacommunities.org/id/metropolitan-district-council/walsall,WC64-491,31/01/2016,Social Care & Inclusion,REDACTED,11/01/2016,697.00,76422-DIRECT PAYMENTS TO SOCIAL SERVICES CLIENTS,OP COMMISSIONING,Transfer Payments,Revenue
Walsall Council,http://opendatacommunities.org/id/metropolitan-district-council/walsall,WC64-492,31/01/2016,Social Care & Inclusion,BRIDGEWOOD HEALTH CARE LTD,20/01/2016,"5,513.72",73373-RESIDENTIAL & NURSING CARE PLACEMENTS,YADS COMMISSIONING,Third Party Payments,Revenue
Walsall Council,http://opendatacommunities.org/id/metropolitan-district-council/walsall,WC64-493,31/01/2016,Childrens,BRIGHT HORIZONS (WISHING WILLOW),25/01/2016,528.67,63120-CRECHE FACILITIES-SERVICES-FEES,RECRUITMENT TEAM,Supplies & Services,Revenue
Walsall Council,http://opendatacommunities.org/id/metropolitan-district-council/walsall,WC64-494,31/01/2016,Change and Governance,BRISTOW & SUTOR,15/01/2016,231.09,63102-CONSULTANTS FEES - CORPORATE,REVENUES,Supplies & Services,Revenue
Walsall Council,http://opendatacommunities.org/id/metropolitan-district-council/walsall,WC64-495,31/01/2016,Change and Governance,BRISTOW & SUTOR,15/01/2016,500.34,63102-CONSULTANTS FEES - CORPORATE,REVENUES,Supplies & Services,Revenue
Walsall Council,http://opendatacommunities.org/id/metropolitan-district-council/walsall,WC64-496,31/01/2016,Change and Governance,BRISTOW & SUTOR,01/01/2016,524.39,63102-CONSULTANTS FEES - CORPORATE,REVENUES,Supplies & Services,Revenue
Walsall Council,http://opendatacommunities.org/id/metropolitan-district-council/walsall,WC64-497,31/01/2016,Change and Governance,BRISTOW & SUTOR,01/01/2016,568.82,63102-CONSULTANTS FEES - CORPORATE,REVENUES,Supplies & Services,Revenue
Walsall Council,http://opendatacommunities.org/id/metropolitan-district-council/walsall,WC64-498,31/01/2016,Change and Governance,BRISTOW & SUTOR,25/01/2016,761.69,63102-CONSULTANTS FEES - CORPORATE,REVENUES,Supplies & Services,Revenue
Walsall Council,http://opendatacommunities.org/id/metropolitan-district-council/walsall,WC64-499,31/01/2016,Change and Governance,BRISTOW & SUTOR,20/01/2016,926.61,63102-CONSULTANTS FEES - CORPORATE,REVENUES,Supplies & Services,Revenue
Walsall Council,http://opendatacommunities.org/id/metropolitan-district-council/walsall,WC64-500,31/01/2016,Economy & Environment,BRITANNIA APPRENTICESHIPS LTD,01/01/2016,"3,000.00",66500-GRANTS TO OTHER ORGS,RES-WALSALL WORKS,Third Party Payments,Revenue
Walsall Council,http://opendatacommunities.org/id/metropolitan-district-council/walsall,WC64-501,31/01/2016,Change and Governance,BRITISH GAS BUSINESS,14/01/2016,233.44,45000-WATER CHARGES,CENTRALISED ENERGY,Premises,Revenue
Walsall Council,http://opendatacommunities.org/id/metropolitan-district-council/walsall,WC64-502,31/01/2016,Childrens,BRITISH GAS BUSINESS,21/01/2016,236.24,42000-GAS-ENERGY COSTS,BLOXWICH CHILDRENS CENTRE,Premises,Revenue
Walsall Council,http://opendatacommunities.org/id/metropolitan-district-council/walsall,WC64-503,31/01/2016,Change and Governance,BRITISH GAS BUSINESS,07/01/2016,359.55,42000-GAS-ENERGY COSTS,CENTRALISED ENERGY,Premises,Revenue
Walsall Council,http://opendatacommunities.org/id/metropolitan-district-council/walsall,WC64-504,31/01/2016,Childrens,BRITISH GAS BUSINESS,21/01/2016,368.15,42000-GAS-ENERGY COSTS,BIRCHILLS CHILDREN CENTRE,Premises,Revenue
Walsall Council,http://opendatacommunities.org/id/metropolitan-district-council/walsall,WC64-505,31/01/2016,Childrens,BRITISH GAS BUSINESS,14/01/2016,393.84,42000-GAS-ENERGY COSTS,BLAKENALL CHILDREN CENTRE,Premises,Revenue
Walsall Council,http://opendatacommunities.org/id/metropolitan-district-council/walsall,WC64-506,31/01/2016,Childrens,BRITISH GAS BUSINESS,14/01/2016,408.30,42000-GAS-ENERGY COSTS,CLUSTER 5 DARLASTON,Premises,Revenue
Walsall Council,http://opendatacommunities.org/id/metropolitan-district-council/walsall,WC64-507,31/01/2016,Change and Governance,BRITISH GAS BUSINESS,07/01/2016,"1,004.83",42000-GAS-ENERGY COSTS,CENTRALISED ENERGY,Premises,Revenue
Walsall Council,http://opendatacommunities.org/id/metropolitan-district-council/walsall,WC64-508,31/01/2016,Childrens,BRITISH GAS BUSINESS,15/01/2016,"5,663.47",42000-GAS-ENERGY COSTS,PELSALL EDC,Premises,Revenue
Walsall Council,http://opendatacommunities.org/id/metropolitan-district-council/walsall,WC64-509,31/01/2016,Economy & Environment,BRITISH TELECOMMUNICATIONS LTD,06/01/2016,"32,080.07",01028-OTHER PURCHASE COSTS,CFR 1037 ACTIVE LIVING EXTERNALLY FUNDED,Capital,Capital
Walsall Council,http://opendatacommunities.org/id/metropolitan-district-council/walsall,WC64-510,31/01/2016,Childrens,BROADWAY TRAVEL CONNECTIONS,20/01/2016,"1,875.00",52000-WITH DRIVER-HIRE OF VEHICLES,SCHOOL TRANSPORT,Transport,Revenue
Walsall Council,http://opendatacommunities.org/id/metropolitan-district-council/walsall,WC64-511,31/01/2016,Economy & Environment,BROWNHILLS ASPHALT & TARMAC LIMITED,01/01/2016,248.00,60500-GENERAL MATERIALS,INFRASTRUCTURE MAINTENANCE,Supplies & Services,Revenue
Walsall Council,http://opendatacommunities.org/id/metropolitan-district-council/walsall,WC64-512,31/01/2016,Economy & Environment,BROWNHILLS ASPHALT & TARMAC LIMITED,01/01/2016,488.00,60500-GENERAL MATERIALS,INFRASTRUCTURE MAINTENANCE,Supplies & Services,Revenue
Walsall Council,http://opendatacommunities.org/id/metropolitan-district-council/walsall,WC64-513,31/01/2016,Economy & Environment,BROWNHILLS ASPHALT & TARMAC LIMITED,12/01/2016,780.00,60500-GENERAL MATERIALS,CEMETERIES CENTRAL ADMINISTRATION,Supplies & Services,Revenue
Walsall Council,http://opendatacommunities.org/id/metropolitan-district-council/walsall,WC64-514,31/01/2016,Childrens,BROWNHILLS CARS,01/01/2016,600.00,52001-HIRE OF VEHICLES,CHILDRENS TAXI BUDGET,Transport,Revenue
Walsall Council,http://opendatacommunities.org/id/metropolitan-district-council/walsall,WC64-515,31/01/2016,Childrens,BROWNHILLS CARS,01/01/2016,"1,400.00",52001-HIRE OF VEHICLES,CHILDRENS TAXI BUDGET,Transport,Revenue
Walsall Council,http://opendatacommunities.org/id/metropolitan-district-council/walsall,WC64-516,31/01/2016,Change and Governance,BROWNHILLS COMMUNITY ASSOCIATION,27/01/2016,"2,500.00",62515-MISCELLANEOUS SUPPLIES,AREA 1 - BROWNHILLS,Supplies & Services,Revenue
Walsall Council,http://opendatacommunities.org/id/metropolitan-district-council/walsall,WC64-517,31/01/2016,Childrens,BROWNHILLS COMMUNITY ASSOCIATION,08/01/2016,"5,647.95",66505-OTHER-GRANTS TO OTHER ORGS,EARLY YEARS - 2 YR OLDS,Third Party Payments,Revenue
Walsall Council,http://opendatacommunities.org/id/metropolitan-district-council/walsall,WC64-518,31/01/2016,Change and Governance,BROWNHILLS COMMUNITY ASSOCIATION,01/01/2016,"6,666.68",66500-GRANTS TO OTHER ORGS,BROWNHILLS COMMUNITY ASSOCIATION,Third Party Payments,Revenue
Walsall Council,http://opendatacommunities.org/id/metropolitan-district-council/walsall,WC64-519,31/01/2016,Childrens,BROWNHILLS COMMUNITY ASSOCIATION,07/01/2016,"10,346.59",66505-OTHER-GRANTS TO OTHER ORGS,EARLY YEARS - 3 YR OLDS,Third Party Payments,Revenue
Walsall Council,http://opendatacommunities.org/id/metropolitan-district-council/walsall,WC64-520,31/01/2016,Social Care & Inclusion,REDACTED,11/01/2016,"1,445.00",76422-DIRECT PAYMENTS TO SOCIAL SERVICES CLIENTS,LD COMMISSIONING,Transfer Payments,Revenue
Walsall Council,http://opendatacommunities.org/id/metropolitan-district-council/walsall,WC64-521,31/01/2016,Economy & Environment,REDACTED,01/01/2016,"2,081.25",63000-PROFESSIONAL FEES AND SERVICES,EXTL FUNDED CREATIVE PROJECT MANAGEMENT,Supplies & Services,Revenue
Walsall Council,http://opendatacommunities.org/id/metropolitan-district-council/walsall,WC64-522,31/01/2016,Change and Governance,B-SURE SECURITY SERVICES LTD,13/01/2016,337.00,"40000-REPAIRS,ALTERATIONS & MAINTENANCE-PREM",WALSALL TOWN HALL,Premises,Revenue
Walsall Council,http://opendatacommunities.org/id/metropolitan-district-council/walsall,WC64-523,31/01/2016,Change and Governance,BT PLC,06/01/2016,"1,120.00",63603-COST OF CALLS-TELEPHONES,PROCESSING,Supplies & Services,Revenue
Walsall Council,http://opendatacommunities.org/id/metropolitan-district-council/walsall,WC64-524,31/01/2016,Change and Governance,BT PLC,25/01/2016,"17,992.41",63601-COSTS (NOT INTERNAL RECHARGES)-TELEPHONES,CENTRAL COMMUNICATIONS RECHARGES,Supplies & Services,Revenue
Walsall Council,http://opendatacommunities.org/id/metropolitan-district-council/walsall,WC64-525,31/01/2016,Change and Governance,BT PLC,25/01/2016,"20,285.22",63601-COSTS (NOT INTERNAL RECHARGES)-TELEPHONES,CENTRAL COMMUNICATIONS RECHARGES,Supplies & Services,Revenue
Walsall Council,http://opendatacommunities.org/id/metropolitan-district-council/walsall,WC64-526,31/01/2016,Change and Governance,BUILDING RECRUITMENT COMPANY,11/01/2016,973.00,73025-PROFESSIONAL SERVICES-PRIV CONTRACTOR & OTHER AGENCIES,INTEGRATED FACILITIES MANAGEMENT,Third Party Payments,Revenue
Walsall Council,http://opendatacommunities.org/id/metropolitan-district-council/walsall,WC64-527,31/01/2016,Change and Governance,BUILDING RECRUITMENT COMPANY,11/01/2016,"1,022.00",73025-PROFESSIONAL SERVICES-PRIV CONTRACTOR & OTHER AGENCIES,INTEGRATED FACILITIES MANAGEMENT,Third Party Payments,Revenue
Walsall Council,http://opendatacommunities.org/id/metropolitan-district-council/walsall,WC64-528,31/01/2016,Change and Governance,BUILDING RECRUITMENT COMPANY,01/01/2016,"1,036.00",73025-PROFESSIONAL SERVICES-PRIV CONTRACTOR & OTHER AGENCIES,INTEGRATED FACILITIES MANAGEMENT,Third Party Payments,Revenue
Walsall Council,http://opendatacommunities.org/id/metropolitan-district-council/walsall,WC64-529,31/01/2016,Change and Governance,BUILDING RECRUITMENT COMPANY,22/01/2016,"1,048.35",73025-PROFESSIONAL SERVICES-PRIV CONTRACTOR & OTHER AGENCIES,INTEGRATED FACILITIES MANAGEMENT,Third Party Payments,Revenue
Walsall Council,http://opendatacommunities.org/id/metropolitan-district-council/walsall,WC64-530,31/01/2016,Change and Governance,BUILDING RECRUITMENT COMPANY,01/01/2016,"1,052.90",73025-PROFESSIONAL SERVICES-PRIV CONTRACTOR & OTHER AGENCIES,INTEGRATED FACILITIES MANAGEMENT,Third Party Payments,Revenue
Walsall Council,http://opendatacommunities.org/id/metropolitan-district-council/walsall,WC64-531,31/01/2016,Change and Governance,BUILDING RECRUITMENT COMPANY,01/01/2016,"1,093.00",73025-PROFESSIONAL SERVICES-PRIV CONTRACTOR & OTHER AGENCIES,INTEGRATED FACILITIES MANAGEMENT,Third Party Payments,Revenue
Walsall Council,http://opendatacommunities.org/id/metropolitan-district-council/walsall,WC64-532,31/01/2016,Change and Governance,BUILDING RECRUITMENT COMPANY,01/01/2016,"1,101.50",73025-PROFESSIONAL SERVICES-PRIV CONTRACTOR & OTHER AGENCIES,INTEGRATED FACILITIES MANAGEMENT,Third Party Payments,Revenue
Walsall Council,http://opendatacommunities.org/id/metropolitan-district-council/walsall,WC64-533,31/01/2016,Change and Governance,BUILDING RECRUITMENT COMPANY,22/01/2016,"1,110.00",73025-PROFESSIONAL SERVICES-PRIV CONTRACTOR & OTHER AGENCIES,INTEGRATED FACILITIES MANAGEMENT,Third Party Payments,Revenue
Walsall Council,http://opendatacommunities.org/id/metropolitan-district-council/walsall,WC64-534,31/01/2016,Change and Governance,BUILDING RECRUITMENT COMPANY,22/01/2016,"1,126.25",73025-PROFESSIONAL SERVICES-PRIV CONTRACTOR & OTHER AGENCIES,INTEGRATED FACILITIES MANAGEMENT,Third Party Payments,Revenue
Walsall Council,http://opendatacommunities.org/id/metropolitan-district-council/walsall,WC64-535,31/01/2016,Change and Governance,BUILDING RECRUITMENT COMPANY,22/01/2016,"1,131.50",73025-PROFESSIONAL SERVICES-PRIV CONTRACTOR & OTHER AGENCIES,INTEGRATED FACILITIES MANAGEMENT,Third Party Payments,Revenue
Walsall Council,http://opendatacommunities.org/id/metropolitan-district-council/walsall,WC64-536,31/01/2016,Change and Governance,BUILDING RECRUITMENT COMPANY,11/01/2016,"1,138.00",73025-PROFESSIONAL SERVICES-PRIV CONTRACTOR & OTHER AGENCIES,INTEGRATED FACILITIES MANAGEMENT,Third Party Payments,Revenue
Walsall Council,http://opendatacommunities.org/id/metropolitan-district-council/walsall,WC64-537,31/01/2016,Change and Governance,BUILDING RECRUITMENT COMPANY,18/01/2016,"1,138.00",73025-PROFESSIONAL SERVICES-PRIV CONTRACTOR & OTHER AGENCIES,INTEGRATED FACILITIES MANAGEMENT,Third Party Payments,Revenue
Walsall Council,http://opendatacommunities.org/id/metropolitan-district-council/walsall,WC64-538,31/01/2016,Change and Governance,BUILDING RECRUITMENT COMPANY,18/01/2016,"1,183.00",73025-PROFESSIONAL SERVICES-PRIV CONTRACTOR & OTHER AGENCIES,INTEGRATED FACILITIES MANAGEMENT,Third Party Payments,Revenue
Walsall Council,http://opendatacommunities.org/id/metropolitan-district-council/walsall,WC64-539,31/01/2016,Social Care & Inclusion,BUPA CARE HOMES (CFHCARE) LTD,20/01/2016,"1,490.80",73373-RESIDENTIAL & NURSING CARE PLACEMENTS,OP COMMISSIONING,Third Party Payments,Revenue
Walsall Council,http://opendatacommunities.org/id/metropolitan-district-council/walsall,WC64-540,31/01/2016,Social Care & Inclusion,BUPA CARE HOMES (CFHCARE) LTD,20/01/2016,"1,527.60",73373-RESIDENTIAL & NURSING CARE PLACEMENTS,OP COMMISSIONING,Third Party Payments,Revenue
Walsall Council,http://opendatacommunities.org/id/metropolitan-district-council/walsall,WC64-541,31/01/2016,Social Care & Inclusion,BUPA CARE HOMES (CFHCARE) LTD,20/01/2016,"1,533.16",73373-RESIDENTIAL & NURSING CARE PLACEMENTS,MH COMMISSIONING,Third Party Payments,Revenue
Walsall Council,http://opendatacommunities.org/id/metropolitan-district-council/walsall,WC64-542,31/01/2016,Social Care & Inclusion,BUPA CARE HOMES (CFHCARE) LTD,20/01/2016,"1,755.68",73373-RESIDENTIAL & NURSING CARE PLACEMENTS,MH COMMISSIONING,Third Party Payments,Revenue
Walsall Council,http://opendatacommunities.org/id/metropolitan-district-council/walsall,WC64-543,31/01/2016,Social Care & Inclusion,BUPA CARE HOMES (CFHCARE) LTD,20/01/2016,"3,129.80",73373-RESIDENTIAL & NURSING CARE PLACEMENTS,OP COMMISSIONING,Third Party Payments,Revenue
Walsall Council,http://opendatacommunities.org/id/metropolitan-district-council/walsall,WC64-544,31/01/2016,Economy & Environment,BURTON ADDICTION CENTRE,25/01/2016,"1,350.00",63000-PROFESSIONAL FEES AND SERVICES,ALCOHOL & DRUGS MISUSE/TOBACCO CONTROL,Supplies & Services,Revenue
Walsall Council,http://opendatacommunities.org/id/metropolitan-district-council/walsall,WC64-545,31/01/2016,Social Care & Inclusion,BUSH HOME LTD,26/01/2016,-0.01,73373-RESIDENTIAL & NURSING CARE PLACEMENTS,MH COMMISSIONING,Third Party Payments,Revenue
Walsall Council,http://opendatacommunities.org/id/metropolitan-district-council/walsall,WC64-546,31/01/2016,Social Care & Inclusion,BUSH HOME LTD,12/01/2016,0.02,73373-RESIDENTIAL & NURSING CARE PLACEMENTS,OP COMMISSIONING,Third Party Payments,Revenue
Walsall Council,http://opendatacommunities.org/id/metropolitan-district-council/walsall,WC64-547,31/01/2016,Social Care & Inclusion,BUSH HOME LTD,06/01/2016,"1,400.57",73373-RESIDENTIAL & NURSING CARE PLACEMENTS,MH COMMISSIONING,Third Party Payments,Revenue
Walsall Council,http://opendatacommunities.org/id/metropolitan-district-council/walsall,WC64-548,31/01/2016,Social Care & Inclusion,BUSH HOME LTD,12/01/2016,"1,490.96",73373-RESIDENTIAL & NURSING CARE PLACEMENTS,OP COMMISSIONING,Third Party Payments,Revenue
Walsall Council,http://opendatacommunities.org/id/metropolitan-district-council/walsall,WC64-549,31/01/2016,Social Care & Inclusion,BUSH HOME LTD,12/01/2016,"1,493.24",73373-RESIDENTIAL & NURSING CARE PLACEMENTS,OP COMMISSIONING,Third Party Payments,Revenue
Walsall Council,http://opendatacommunities.org/id/metropolitan-district-council/walsall,WC64-550,31/01/2016,Social Care & Inclusion,BUSH HOME LTD,12/01/2016,"1,493.24",73373-RESIDENTIAL & NURSING CARE PLACEMENTS,OP COMMISSIONING,Third Party Payments,Revenue
Walsall Council,http://opendatacommunities.org/id/metropolitan-district-council/walsall,WC64-551,31/01/2016,Social Care & Inclusion,BUSH HOME LTD,12/01/2016,"1,493.24",73373-RESIDENTIAL & NURSING CARE PLACEMENTS,OP COMMISSIONING,Third Party Payments,Revenue
Walsall Council,http://opendatacommunities.org/id/metropolitan-district-council/walsall,WC64-552,31/01/2016,Social Care & Inclusion,BUSH HOME LTD,12/01/2016,"1,493.24",73373-RESIDENTIAL & NURSING CARE PLACEMENTS,OP COMMISSIONING,Third Party Payments,Revenue
Walsall Council,http://opendatacommunities.org/id/metropolitan-district-council/walsall,WC64-553,31/01/2016,Social Care & Inclusion,BUSH HOME LTD,12/01/2016,"1,493.24",73373-RESIDENTIAL & NURSING CARE PLACEMENTS,OP COMMISSIONING,Third Party Payments,Revenue
Walsall Council,http://opendatacommunities.org/id/metropolitan-district-council/walsall,WC64-554,31/01/2016,Social Care & Inclusion,BUSH HOME LTD,06/01/2016,"1,557.60",73373-RESIDENTIAL & NURSING CARE PLACEMENTS,OP COMMISSIONING,Third Party Payments,Revenue
Walsall Council,http://opendatacommunities.org/id/metropolitan-district-council/walsall,WC64-555,31/01/2016,Social Care & Inclusion,BUSH HOME LTD,06/01/2016,"1,568.64",73373-RESIDENTIAL & NURSING CARE PLACEMENTS,OP COMMISSIONING,Third Party Payments,Revenue
Walsall Council,http://opendatacommunities.org/id/metropolitan-district-council/walsall,WC64-556,31/01/2016,Social Care & Inclusion,BUSH HOME LTD,06/01/2016,"1,568.64",73373-RESIDENTIAL & NURSING CARE PLACEMENTS,MH COMMISSIONING,Third Party Payments,Revenue
Walsall Council,http://opendatacommunities.org/id/metropolitan-district-council/walsall,WC64-557,31/01/2016,Social Care & Inclusion,BUSH HOME LTD,12/01/2016,"1,568.64",73373-RESIDENTIAL & NURSING CARE PLACEMENTS,OP COMMISSIONING,Third Party Payments,Revenue
Walsall Council,http://opendatacommunities.org/id/metropolitan-district-council/walsall,WC64-558,31/01/2016,Social Care & Inclusion,BUSH HOME LTD,12/01/2016,"1,568.64",73373-RESIDENTIAL & NURSING CARE PLACEMENTS,OP COMMISSIONING,Third Party Payments,Revenue
Walsall Council,http://opendatacommunities.org/id/metropolitan-district-council/walsall,WC64-559,31/01/2016,Social Care & Inclusion,BUSH HOME LTD,12/01/2016,"1,568.64",73373-RESIDENTIAL & NURSING CARE PLACEMENTS,OP COMMISSIONING,Third Party Payments,Revenue
Walsall Council,http://opendatacommunities.org/id/metropolitan-district-council/walsall,WC64-560,31/01/2016,Social Care & Inclusion,BUSH HOME LTD,12/01/2016,"1,568.64",73373-RESIDENTIAL & NURSING CARE PLACEMENTS,MH COMMISSIONING,Third Party Payments,Revenue
Walsall Council,http://opendatacommunities.org/id/metropolitan-district-council/walsall,WC64-561,31/01/2016,Social Care & Inclusion,BUSH HOME LTD,12/01/2016,"1,568.64",73373-RESIDENTIAL & NURSING CARE PLACEMENTS,MH COMMISSIONING,Third Party Payments,Revenue
Walsall Council,http://opendatacommunities.org/id/metropolitan-district-council/walsall,WC64-562,31/01/2016,Social Care & Inclusion,BUSH HOME LTD,12/01/2016,"1,568.64",73373-RESIDENTIAL & NURSING CARE PLACEMENTS,OP COMMISSIONING,Third Party Payments,Revenue
Walsall Council,http://opendatacommunities.org/id/metropolitan-district-council/walsall,WC64-563,31/01/2016,Social Care & Inclusion,BUSH HOME LTD,12/01/2016,"1,568.64",73373-RESIDENTIAL & NURSING CARE PLACEMENTS,MH COMMISSIONING,Third Party Payments,Revenue
Walsall Council,http://opendatacommunities.org/id/metropolitan-district-council/walsall,WC64-564,31/01/2016,Social Care & Inclusion,BUSH HOME LTD,12/01/2016,"1,568.64",73373-RESIDENTIAL & NURSING CARE PLACEMENTS,OP COMMISSIONING,Third Party Payments,Revenue
Walsall Council,http://opendatacommunities.org/id/metropolitan-district-council/walsall,WC64-565,31/01/2016,Social Care & Inclusion,BUSH HOME LTD,12/01/2016,"1,568.64",73373-RESIDENTIAL & NURSING CARE PLACEMENTS,MH COMMISSIONING,Third Party Payments,Revenue
Walsall Council,http://opendatacommunities.org/id/metropolitan-district-council/walsall,WC64-566,31/01/2016,Social Care & Inclusion,BUSH HOME LTD,12/01/2016,"1,568.64",73373-RESIDENTIAL & NURSING CARE PLACEMENTS,OP COMMISSIONING,Third Party Payments,Revenue
Walsall Council,http://opendatacommunities.org/id/metropolitan-district-council/walsall,WC64-567,31/01/2016,Social Care & Inclusion,BUSH HOME LTD,12/01/2016,"1,568.64",73373-RESIDENTIAL & NURSING CARE PLACEMENTS,OP COMMISSIONING,Third Party Payments,Revenue
Walsall Council,http://opendatacommunities.org/id/metropolitan-district-council/walsall,WC64-568,31/01/2016,Social Care & Inclusion,BUSH HOME LTD,26/01/2016,"1,568.64",73373-RESIDENTIAL & NURSING CARE PLACEMENTS,MH COMMISSIONING,Third Party Payments,Revenue
Walsall Council,http://opendatacommunities.org/id/metropolitan-district-council/walsall,WC64-569,31/01/2016,Social Care & Inclusion,BUSH HOME LTD,12/01/2016,"1,592.64",73373-RESIDENTIAL & NURSING CARE PLACEMENTS,OP COMMISSIONING,Third Party Payments,Revenue
Walsall Council,http://opendatacommunities.org/id/metropolitan-district-council/walsall,WC64-570,31/01/2016,Childrens,BUSY BEES CHILDCARE LTD,07/01/2016,"5,348.23",66505-OTHER-GRANTS TO OTHER ORGS,EARLY YEARS - 3 YR OLDS,Third Party Payments,Revenue
Walsall Council,http://opendatacommunities.org/id/metropolitan-district-council/walsall,WC64-571,31/01/2016,Childrens,BY THE BRIDGE,05/01/2016,"-4,018.57",74037-INDEPENDENT FOSTER CARE-OTH AGENCY PROVISION,EXTERNAL FOSTER CARE PROVISION,Third Party Payments,Revenue
Walsall Council,http://opendatacommunities.org/id/metropolitan-district-council/walsall,WC64-572,31/01/2016,Childrens,BY THE BRIDGE,05/01/2016,"4,988.57",74037-INDEPENDENT FOSTER CARE-OTH AGENCY PROVISION,EXTERNAL FOSTER CARE PROVISION,Third Party Payments,Revenue
Walsall Council,http://opendatacommunities.org/id/metropolitan-district-council/walsall,WC64-573,31/01/2016,Childrens,BY THE BRIDGE,13/01/2016,"6,121.39",74037-INDEPENDENT FOSTER CARE-OTH AGENCY PROVISION,EXTERNAL FOSTER CARE PROVISION,Third Party Payments,Revenue
Walsall Council,http://opendatacommunities.org/id/metropolitan-district-council/walsall,WC64-574,31/01/2016,Childrens,BY THE BRIDGE,22/01/2016,"6,121.39",74037-INDEPENDENT FOSTER CARE-OTH AGENCY PROVISION,EXTERNAL FOSTER CARE PROVISION,Third Party Payments,Revenue
Walsall Council,http://opendatacommunities.org/id/metropolitan-district-council/walsall,WC64-575,31/01/2016,Social Care & Inclusion,C & V ORCHARD MANOR LTD,20/01/2016,"1,104.12",73373-RESIDENTIAL & NURSING CARE PLACEMENTS,OP COMMISSIONING,Third Party Payments,Revenue
Walsall Council,http://opendatacommunities.org/id/metropolitan-district-council/walsall,WC64-576,31/01/2016,Social Care & Inclusion,C & V ORCHARD MANOR LTD,06/01/2016,"1,472.16",73373-RESIDENTIAL & NURSING CARE PLACEMENTS,LD COMMISSIONING,Third Party Payments,Revenue
Walsall Council,http://opendatacommunities.org/id/metropolitan-district-council/walsall,WC64-577,31/01/2016,Social Care & Inclusion,C & V ORCHARD MANOR LTD,20/01/2016,"1,472.16",73373-RESIDENTIAL & NURSING CARE PLACEMENTS,LD COMMISSIONING,Third Party Payments,Revenue
Walsall Council,http://opendatacommunities.org/id/metropolitan-district-council/walsall,WC64-578,31/01/2016,Social Care & Inclusion,C & V ORCHARD MANOR LTD,20/01/2016,"1,472.16",73373-RESIDENTIAL & NURSING CARE PLACEMENTS,OP COMMISSIONING,Third Party Payments,Revenue
Walsall Council,http://opendatacommunities.org/id/metropolitan-district-council/walsall,WC64-579,31/01/2016,Social Care & Inclusion,C & V ORCHARD MANOR LTD,20/01/2016,"1,493.24",73373-RESIDENTIAL & NURSING CARE PLACEMENTS,OP COMMISSIONING,Third Party Payments,Revenue
Walsall Council,http://opendatacommunities.org/id/metropolitan-district-council/walsall,WC64-580,31/01/2016,Social Care & Inclusion,C & V ORCHARD MANOR LTD,20/01/2016,"1,493.24",73373-RESIDENTIAL & NURSING CARE PLACEMENTS,OP COMMISSIONING,Third Party Payments,Revenue
Walsall Council,http://opendatacommunities.org/id/metropolitan-district-council/walsall,WC64-581,31/01/2016,Social Care & Inclusion,C & V ORCHARD MANOR LTD,20/01/2016,"1,493.32",73373-RESIDENTIAL & NURSING CARE PLACEMENTS,LD COMMISSIONING,Third Party Payments,Revenue
Walsall Council,http://opendatacommunities.org/id/metropolitan-district-council/walsall,WC64-582,31/01/2016,Social Care & Inclusion,C & V ORCHARD MANOR LTD,20/01/2016,"1,493.32",73373-RESIDENTIAL & NURSING CARE PLACEMENTS,OP COMMISSIONING,Third Party Payments,Revenue
Walsall Council,http://opendatacommunities.org/id/metropolitan-district-council/walsall,WC64-583,31/01/2016,Social Care & Inclusion,C & V ORCHARD MANOR LTD,20/01/2016,"1,566.20",73373-RESIDENTIAL & NURSING CARE PLACEMENTS,OP COMMISSIONING,Third Party Payments,Revenue
Walsall Council,http://opendatacommunities.org/id/metropolitan-district-council/walsall,WC64-584,31/01/2016,Social Care & Inclusion,C & V ORCHARD MANOR LTD,20/01/2016,"1,568.60",73373-RESIDENTIAL & NURSING CARE PLACEMENTS,OP COMMISSIONING,Third Party Payments,Revenue
Walsall Council,http://opendatacommunities.org/id/metropolitan-district-council/walsall,WC64-585,31/01/2016,Social Care & Inclusion,C & V ORCHARD MANOR LTD,20/01/2016,"1,568.64",73373-RESIDENTIAL & NURSING CARE PLACEMENTS,OP COMMISSIONING,Third Party Payments,Revenue
Walsall Council,http://opendatacommunities.org/id/metropolitan-district-council/walsall,WC64-586,31/01/2016,Social Care & Inclusion,C & V ORCHARD MANOR LTD,26/01/2016,"2,181.55",73373-RESIDENTIAL & NURSING CARE PLACEMENTS,OP COMMISSIONING,Third Party Payments,Revenue
Walsall Council,http://opendatacommunities.org/id/metropolitan-district-council/walsall,WC64-587,31/01/2016,Social Care & Inclusion,C & V ORCHARD RESIDENTIAL LTD,06/01/2016,373.33,73373-RESIDENTIAL & NURSING CARE PLACEMENTS,OP COMMISSIONING,Third Party Payments,Revenue
Walsall Council,http://opendatacommunities.org/id/metropolitan-district-council/walsall,WC64-588,31/01/2016,Social Care & Inclusion,C & V ORCHARD RESIDENTIAL LTD,20/01/2016,"1,493.24",73373-RESIDENTIAL & NURSING CARE PLACEMENTS,OP COMMISSIONING,Third Party Payments,Revenue
Walsall Council,http://opendatacommunities.org/id/metropolitan-district-council/walsall,WC64-589,31/01/2016,Social Care & Inclusion,C & V ORCHARD RESIDENTIAL LTD,20/01/2016,"1,493.24",73373-RESIDENTIAL & NURSING CARE PLACEMENTS,OP COMMISSIONING,Third Party Payments,Revenue
Walsall Council,http://opendatacommunities.org/id/metropolitan-district-council/walsall,WC64-590,31/01/2016,Social Care & Inclusion,C & V ORCHARD RESIDENTIAL LTD,06/01/2016,"1,566.16",73373-RESIDENTIAL & NURSING CARE PLACEMENTS,OP COMMISSIONING,Third Party Payments,Revenue
Walsall Council,http://opendatacommunities.org/id/metropolitan-district-council/walsall,WC64-591,31/01/2016,Social Care & Inclusion,C & V ORCHARD RESIDENTIAL LTD,20/01/2016,"1,566.16",73373-RESIDENTIAL & NURSING CARE PLACEMENTS,OP COMMISSIONING,Third Party Payments,Revenue
Walsall Council,http://opendatacommunities.org/id/metropolitan-district-council/walsall,WC64-592,31/01/2016,Social Care & Inclusion,C & V ORCHARD RESIDENTIAL LTD,20/01/2016,"1,566.20",73373-RESIDENTIAL & NURSING CARE PLACEMENTS,OP COMMISSIONING,Third Party Payments,Revenue
Walsall Council,http://opendatacommunities.org/id/metropolitan-district-council/walsall,WC64-593,31/01/2016,Social Care & Inclusion,C & V ORCHARD RESIDENTIAL LTD,20/01/2016,"1,566.20",73373-RESIDENTIAL & NURSING CARE PLACEMENTS,OP COMMISSIONING,Third Party Payments,Revenue
Walsall Council,http://opendatacommunities.org/id/metropolitan-district-council/walsall,WC64-594,31/01/2016,Social Care & Inclusion,C & V ORCHARD RESIDENTIAL LTD,20/01/2016,"1,566.20",73373-RESIDENTIAL & NURSING CARE PLACEMENTS,OP COMMISSIONING,Third Party Payments,Revenue
Walsall Council,http://opendatacommunities.org/id/metropolitan-district-council/walsall,WC64-595,31/01/2016,Social Care & Inclusion,C & V ORCHARD RESIDENTIAL LTD,20/01/2016,"1,566.20",73373-RESIDENTIAL & NURSING CARE PLACEMENTS,OP COMMISSIONING,Third Party Payments,Revenue
Walsall Council,http://opendatacommunities.org/id/metropolitan-district-council/walsall,WC64-596,31/01/2016,Social Care & Inclusion,C & V ORCHARD RESIDENTIAL LTD,20/01/2016,"1,568.60",73373-RESIDENTIAL & NURSING CARE PLACEMENTS,OP COMMISSIONING,Third Party Payments,Revenue
Walsall Council,http://opendatacommunities.org/id/metropolitan-district-council/walsall,WC64-597,31/01/2016,Social Care & Inclusion,C & V ORCHARD RESIDENTIAL LTD,20/01/2016,"1,568.60",73373-RESIDENTIAL & NURSING CARE PLACEMENTS,OP COMMISSIONING,Third Party Payments,Revenue
Walsall Council,http://opendatacommunities.org/id/metropolitan-district-council/walsall,WC64-598,31/01/2016,Social Care & Inclusion,C & V ORCHARD RESIDENTIAL LTD,20/01/2016,"1,568.60",73373-RESIDENTIAL & NURSING CARE PLACEMENTS,OP COMMISSIONING,Third Party Payments,Revenue
Walsall Council,http://opendatacommunities.org/id/metropolitan-district-council/walsall,WC64-599,31/01/2016,Social Care & Inclusion,C & V ORCHARD RESIDENTIAL LTD,20/01/2016,"1,568.60",73373-RESIDENTIAL & NURSING CARE PLACEMENTS,OP COMMISSIONING,Third Party Payments,Revenue
Walsall Council,http://opendatacommunities.org/id/metropolitan-district-council/walsall,WC64-600,31/01/2016,Social Care & Inclusion,C & V ORCHARD RESIDENTIAL LTD,20/01/2016,"1,568.64",73373-RESIDENTIAL & NURSING CARE PLACEMENTS,OP COMMISSIONING,Third Party Payments,Revenue
Walsall Council,http://opendatacommunities.org/id/metropolitan-district-council/walsall,WC64-601,31/01/2016,Social Care & Inclusion,C & V ORCHARD RESIDENTIAL LTD,20/01/2016,"1,568.64",73373-RESIDENTIAL & NURSING CARE PLACEMENTS,OP COMMISSIONING,Third Party Payments,Revenue
Walsall Council,http://opendatacommunities.org/id/metropolitan-district-council/walsall,WC64-602,31/01/2016,Childrens,REDACTED,04/01/2016,"4,317.64",62515-MISCELLANEOUS SUPPLIES,INTERNAL FOSTER CARE PROVISION,Supplies & Services,Revenue
Walsall Council,http://opendatacommunities.org/id/metropolitan-district-council/walsall,WC64-603,31/01/2016,Childrens,REDACTED,04/01/2016,"4,847.67",74006-HOLIDAY/CHRISTMAS ALLOWANCE-FOSTER CARERS-OTH AGENCY PROVISION,INTERNAL FOSTER CARE PROVISION,Third Party Payments,Revenue
Walsall Council,http://opendatacommunities.org/id/metropolitan-district-council/walsall,WC64-604,31/01/2016,Childrens,REDACTED,04/01/2016,"1,445.32",62515-MISCELLANEOUS SUPPLIES,INTERNAL FOSTER CARE PROVISION,Supplies & Services,Revenue
Walsall Council,http://opendatacommunities.org/id/metropolitan-district-council/walsall,WC64-605,31/01/2016,Childrens,REDACTED,04/01/2016,"2,213.68",74006-HOLIDAY/CHRISTMAS ALLOWANCE-FOSTER CARERS-OTH AGENCY PROVISION,INTERNAL FOSTER CARE PROVISION,Third Party Payments,Revenue
Walsall Council,http://opendatacommunities.org/id/metropolitan-district-council/walsall,WC64-606,31/01/2016,Economy & Environment,C P DAVIDSON & SONS LTD,27/01/2016,237.29,60514-MATERIALS TO STORES,FLEET PARTS STOCK ACCOUNT,Supplies & Services,Revenue
Walsall Council,http://opendatacommunities.org/id/metropolitan-district-council/walsall,WC64-607,31/01/2016,Economy & Environment,C P DAVIDSON & SONS LTD,18/01/2016,884.67,60514-MATERIALS TO STORES,FLEET PARTS STOCK ACCOUNT,Supplies & Services,Revenue
Walsall Council,http://opendatacommunities.org/id/metropolitan-district-council/walsall,WC64-608,31/01/2016,Economy & Environment,C P DAVIDSON & SONS LTD,01/01/2016,"2,100.00",52003-OPERATING LEASES-VEHICLES,LEASING,Central,Revenue
Walsall Council,http://opendatacommunities.org/id/metropolitan-district-council/walsall,WC64-609,31/01/2016,Economy & Environment,C P DAVIDSON & SONS LTD,01/01/2016,"2,250.00",52003-OPERATING LEASES-VEHICLES,LEASING,Central,Revenue
Walsall Council,http://opendatacommunities.org/id/metropolitan-district-council/walsall,WC64-610,31/01/2016,Economy & Environment,C P DAVIDSON & SONS LTD,11/01/2016,"2,250.00",52003-OPERATING LEASES-VEHICLES,LEASING,Central,Revenue
Walsall Council,http://opendatacommunities.org/id/metropolitan-district-council/walsall,WC64-611,31/01/2016,Economy & Environment,C P DAVIDSON & SONS LTD,01/01/2016,"5,700.00",52003-OPERATING LEASES-VEHICLES,LEASING,Central,Revenue
Walsall Council,http://opendatacommunities.org/id/metropolitan-district-council/walsall,WC64-612,31/01/2016,Childrens,REDACTED,18/01/2016,"1,142.88",74006-HOLIDAY/CHRISTMAS ALLOWANCE-FOSTER CARERS-OTH AGENCY PROVISION,INTERNAL FOSTER CARE PROVISION,Third Party Payments,Revenue
Walsall Council,http://opendatacommunities.org/id/metropolitan-district-council/walsall,WC64-613,31/01/2016,Social Care & Inclusion,CALDMORE AREA HOUSING ASS LTD,06/01/2016,361.86,73373-RESIDENTIAL & NURSING CARE PLACEMENTS,MH COMMISSIONING,Third Party Payments,Revenue
Walsall Council,http://opendatacommunities.org/id/metropolitan-district-council/walsall,WC64-614,31/01/2016,Social Care & Inclusion,CALDMORE AREA HOUSING ASS LTD,13/01/2016,394.63,73372-DOMICILIARY CARE,MH COMMISSIONING,Third Party Payments,Revenue
Walsall Council,http://opendatacommunities.org/id/metropolitan-district-council/walsall,WC64-615,31/01/2016,Social Care & Inclusion,CALDMORE AREA HOUSING ASS LTD,06/01/2016,542.79,73373-RESIDENTIAL & NURSING CARE PLACEMENTS,MH COMMISSIONING,Third Party Payments,Revenue
Walsall Council,http://opendatacommunities.org/id/metropolitan-district-council/walsall,WC64-616,31/01/2016,Social Care & Inclusion,CALDMORE AREA HOUSING ASS LTD,06/01/2016,542.79,73373-RESIDENTIAL & NURSING CARE PLACEMENTS,MH COMMISSIONING,Third Party Payments,Revenue
Walsall Council,http://opendatacommunities.org/id/metropolitan-district-council/walsall,WC64-617,31/01/2016,Social Care & Inclusion,CALDMORE AREA HOUSING ASS LTD,06/01/2016,542.79,73373-RESIDENTIAL & NURSING CARE PLACEMENTS,MH COMMISSIONING,Third Party Payments,Revenue
Walsall Council,http://opendatacommunities.org/id/metropolitan-district-council/walsall,WC64-618,31/01/2016,Social Care & Inclusion,CALDMORE AREA HOUSING ASS LTD,01/01/2016,576.80,73374-SUPPORTED & OTHER ACCOMMODATION,MH COMMISSIONING,Third Party Payments,Revenue
Walsall Council,http://opendatacommunities.org/id/metropolitan-district-council/walsall,WC64-619,31/01/2016,Social Care & Inclusion,CALDMORE AREA HOUSING ASS LTD,01/01/2016,576.80,73374-SUPPORTED & OTHER ACCOMMODATION,MH COMMISSIONING,Third Party Payments,Revenue
Walsall Council,http://opendatacommunities.org/id/metropolitan-district-council/walsall,WC64-620,31/01/2016,Social Care & Inclusion,CALDMORE AREA HOUSING ASS LTD,01/01/2016,576.80,73374-SUPPORTED & OTHER ACCOMMODATION,MH COMMISSIONING,Third Party Payments,Revenue
Walsall Council,http://opendatacommunities.org/id/metropolitan-district-council/walsall,WC64-621,31/01/2016,Social Care & Inclusion,CALDMORE AREA HOUSING ASS LTD,27/01/2016,576.80,73374-SUPPORTED & OTHER ACCOMMODATION,MH COMMISSIONING,Third Party Payments,Revenue
Walsall Council,http://opendatacommunities.org/id/metropolitan-district-council/walsall,WC64-622,31/01/2016,Social Care & Inclusion,CALDMORE AREA HOUSING ASS LTD,27/01/2016,576.80,73374-SUPPORTED & OTHER ACCOMMODATION,MH COMMISSIONING,Third Party Payments,Revenue
Walsall Council,http://opendatacommunities.org/id/metropolitan-district-council/walsall,WC64-623,31/01/2016,Social Care & Inclusion,CALDMORE AREA HOUSING ASS LTD,27/01/2016,579.28,73374-SUPPORTED & OTHER ACCOMMODATION,MH COMMISSIONING,Third Party Payments,Revenue
Walsall Council,http://opendatacommunities.org/id/metropolitan-district-council/walsall,WC64-624,31/01/2016,Social Care & Inclusion,CALDMORE AREA HOUSING ASS LTD,27/01/2016,579.28,73374-SUPPORTED & OTHER ACCOMMODATION,MH COMMISSIONING,Third Party Payments,Revenue
Walsall Council,http://opendatacommunities.org/id/metropolitan-district-council/walsall,WC64-625,31/01/2016,Social Care & Inclusion,CALDMORE AREA HOUSING ASS LTD,06/01/2016,633.26,73373-RESIDENTIAL & NURSING CARE PLACEMENTS,MH COMMISSIONING,Third Party Payments,Revenue
Walsall Council,http://opendatacommunities.org/id/metropolitan-district-council/walsall,WC64-626,31/01/2016,Social Care & Inclusion,CALDMORE AREA HOUSING ASS LTD,06/01/2016,633.26,73373-RESIDENTIAL & NURSING CARE PLACEMENTS,MH COMMISSIONING,Third Party Payments,Revenue
Walsall Council,http://opendatacommunities.org/id/metropolitan-district-council/walsall,WC64-627,31/01/2016,Social Care & Inclusion,CALDMORE AREA HOUSING ASS LTD,06/01/2016,633.26,73373-RESIDENTIAL & NURSING CARE PLACEMENTS,MH COMMISSIONING,Third Party Payments,Revenue
Walsall Council,http://opendatacommunities.org/id/metropolitan-district-council/walsall,WC64-628,31/01/2016,Social Care & Inclusion,CALDMORE AREA HOUSING ASS LTD,13/01/2016,706.78,73374-SUPPORTED & OTHER ACCOMMODATION,MH COMMISSIONING,Third Party Payments,Revenue
Walsall Council,http://opendatacommunities.org/id/metropolitan-district-council/walsall,WC64-629,31/01/2016,Social Care & Inclusion,CALDMORE AREA HOUSING ASS LTD,13/01/2016,721.00,73374-SUPPORTED & OTHER ACCOMMODATION,MH COMMISSIONING,Third Party Payments,Revenue
Walsall Council,http://opendatacommunities.org/id/metropolitan-district-council/walsall,WC64-630,31/01/2016,Social Care & Inclusion,CALDMORE AREA HOUSING ASS LTD,13/01/2016,721.00,73374-SUPPORTED & OTHER ACCOMMODATION,MH COMMISSIONING,Third Party Payments,Revenue
Walsall Council,http://opendatacommunities.org/id/metropolitan-district-council/walsall,WC64-631,31/01/2016,Social Care & Inclusion,CALDMORE AREA HOUSING ASS LTD,13/01/2016,721.00,73374-SUPPORTED & OTHER ACCOMMODATION,MH COMMISSIONING,Third Party Payments,Revenue
Walsall Council,http://opendatacommunities.org/id/metropolitan-district-council/walsall,WC64-632,31/01/2016,Social Care & Inclusion,CALDMORE AREA HOUSING ASS LTD,13/01/2016,724.10,73374-SUPPORTED & OTHER ACCOMMODATION,MH COMMISSIONING,Third Party Payments,Revenue
Walsall Council,http://opendatacommunities.org/id/metropolitan-district-council/walsall,WC64-633,31/01/2016,Social Care & Inclusion,CALDMORE AREA HOUSING ASS LTD,13/01/2016,724.12,73374-SUPPORTED & OTHER ACCOMMODATION,MH COMMISSIONING,Third Party Payments,Revenue
Walsall Council,http://opendatacommunities.org/id/metropolitan-district-council/walsall,WC64-634,31/01/2016,Social Care & Inclusion,CALDMORE AREA HOUSING ASS LTD,13/01/2016,724.12,73374-SUPPORTED & OTHER ACCOMMODATION,MH COMMISSIONING,Third Party Payments,Revenue
Walsall Council,http://opendatacommunities.org/id/metropolitan-district-council/walsall,WC64-635,31/01/2016,Social Care & Inclusion,CALDMORE AREA HOUSING ASS LTD,27/01/2016,"1,095.62",73374-SUPPORTED & OTHER ACCOMMODATION,MH COMMISSIONING,Third Party Payments,Revenue
Walsall Council,http://opendatacommunities.org/id/metropolitan-district-council/walsall,WC64-636,31/01/2016,Social Care & Inclusion,CALDMORE AREA HOUSING ASS LTD,13/01/2016,"1,149.73",73374-SUPPORTED & OTHER ACCOMMODATION,MH COMMISSIONING,Third Party Payments,Revenue
Walsall Council,http://opendatacommunities.org/id/metropolitan-district-council/walsall,WC64-637,31/01/2016,Social Care & Inclusion,CALDMORE AREA HOUSING ASS LTD,13/01/2016,"1,369.53",73374-SUPPORTED & OTHER ACCOMMODATION,MH COMMISSIONING,Third Party Payments,Revenue
Walsall Council,http://opendatacommunities.org/id/metropolitan-district-council/walsall,WC64-638,31/01/2016,Social Care & Inclusion,CALDMORE AREA HOUSING ASS LTD,27/01/2016,"1,473.42",73374-SUPPORTED & OTHER ACCOMMODATION,MH COMMISSIONING,Third Party Payments,Revenue
Walsall Council,http://opendatacommunities.org/id/metropolitan-district-council/walsall,WC64-639,31/01/2016,Social Care & Inclusion,CALDMORE AREA HOUSING ASS LTD,27/01/2016,"1,492.31",73374-SUPPORTED & OTHER ACCOMMODATION,MH COMMISSIONING,Third Party Payments,Revenue
Walsall Council,http://opendatacommunities.org/id/metropolitan-district-council/walsall,WC64-640,31/01/2016,Social Care & Inclusion,CALDMORE AREA HOUSING ASS LTD,13/01/2016,"1,841.78",73374-SUPPORTED & OTHER ACCOMMODATION,MH COMMISSIONING,Third Party Payments,Revenue
Walsall Council,http://opendatacommunities.org/id/metropolitan-district-council/walsall,WC64-641,31/01/2016,Social Care & Inclusion,CALDMORE AREA HOUSING ASS LTD,13/01/2016,"1,865.39",73374-SUPPORTED & OTHER ACCOMMODATION,MH COMMISSIONING,Third Party Payments,Revenue
Walsall Council,http://opendatacommunities.org/id/metropolitan-district-council/walsall,WC64-642,31/01/2016,Social Care & Inclusion,CALDMORE AREA HOUSING ASS LTD,06/01/2016,"1,899.78",73373-RESIDENTIAL & NURSING CARE PLACEMENTS,MH COMMISSIONING,Third Party Payments,Revenue
Walsall Council,http://opendatacommunities.org/id/metropolitan-district-council/walsall,WC64-643,31/01/2016,Social Care & Inclusion,CALDMORE AREA HOUSING ASS LTD,06/01/2016,"2,533.04",73373-RESIDENTIAL & NURSING CARE PLACEMENTS,MH COMMISSIONING,Third Party Payments,Revenue
Walsall Council,http://opendatacommunities.org/id/metropolitan-district-council/walsall,WC64-644,31/01/2016,Social Care & Inclusion,CALDMORE AREA HOUSING ASS LTD,06/01/2016,"2,533.04",73373-RESIDENTIAL & NURSING CARE PLACEMENTS,MH COMMISSIONING,Third Party Payments,Revenue
Walsall Council,http://opendatacommunities.org/id/metropolitan-district-council/walsall,WC64-645,31/01/2016,Social Care & Inclusion,CALDMORE AREA HOUSING ASS LTD,14/01/2016,"2,751.58",73374-SUPPORTED & OTHER ACCOMMODATION,MH COMMISSIONING,Third Party Payments,Revenue
Walsall Council,http://opendatacommunities.org/id/metropolitan-district-council/walsall,WC64-646,31/01/2016,Social Care & Inclusion,CALDMORE AREA HOUSING ASS LTD,06/01/2016,"3,166.30",73373-RESIDENTIAL & NURSING CARE PLACEMENTS,MH COMMISSIONING,Third Party Payments,Revenue
Walsall Council,http://opendatacommunities.org/id/metropolitan-district-council/walsall,WC64-647,31/01/2016,Social Care & Inclusion,CALDMORE AREA HOUSING ASS LTD,06/01/2016,"3,166.30",73373-RESIDENTIAL & NURSING CARE PLACEMENTS,MH COMMISSIONING,Third Party Payments,Revenue
Walsall Council,http://opendatacommunities.org/id/metropolitan-district-council/walsall,WC64-648,31/01/2016,Social Care & Inclusion,CALDMORE AREA HOUSING ASS LTD,06/01/2016,"3,166.30",73373-RESIDENTIAL & NURSING CARE PLACEMENTS,MH COMMISSIONING,Third Party Payments,Revenue
Walsall Council,http://opendatacommunities.org/id/metropolitan-district-council/walsall,WC64-649,31/01/2016,Social Care & Inclusion,CALDMORE AREA HOUSING ASS LTD,06/01/2016,"3,166.30",73373-RESIDENTIAL & NURSING CARE PLACEMENTS,MH COMMISSIONING,Third Party Payments,Revenue
Walsall Council,http://opendatacommunities.org/id/metropolitan-district-council/walsall,WC64-650,31/01/2016,Social Care & Inclusion,CALDMORE AREA HOUSING ASS LTD,06/01/2016,"3,166.30",73373-RESIDENTIAL & NURSING CARE PLACEMENTS,MH COMMISSIONING,Third Party Payments,Revenue
Walsall Council,http://opendatacommunities.org/id/metropolitan-district-council/walsall,WC64-651,31/01/2016,Social Care & Inclusion,CALDMORE AREA HOUSING ASS LTD,06/01/2016,"3,166.30",73373-RESIDENTIAL & NURSING CARE PLACEMENTS,MH COMMISSIONING,Third Party Payments,Revenue
Walsall Council,http://opendatacommunities.org/id/metropolitan-district-council/walsall,WC64-652,31/01/2016,Social Care & Inclusion,CALDMORE AREA HOUSING ASS LTD,06/01/2016,"3,166.30",73373-RESIDENTIAL & NURSING CARE PLACEMENTS,MH COMMISSIONING,Third Party Payments,Revenue
Walsall Council,http://opendatacommunities.org/id/metropolitan-district-council/walsall,WC64-653,31/01/2016,Change and Governance,CALDMORE VILLAGE FESTIVAL GROUP,12/01/2016,"1,500.00",62515-MISCELLANEOUS SUPPLIES,AREA 4 - WALSALL SOUTH,Supplies & Services,Revenue
Walsall Council,http://opendatacommunities.org/id/metropolitan-district-council/walsall,WC64-654,31/01/2016,Change and Governance,CALDMORE VILLAGE FESTIVAL GROUP,20/01/2016,"2,389.00",62515-MISCELLANEOUS SUPPLIES,AREA 4 - WALSALL SOUTH,Supplies & Services,Revenue
Walsall Council,http://opendatacommunities.org/id/metropolitan-district-council/walsall,WC64-655,31/01/2016,Childrens,REDACTED,18/01/2016,373.76,74006-HOLIDAY/CHRISTMAS ALLOWANCE-FOSTER CARERS-OTH AGENCY PROVISION,INTERNAL FOSTER CARE PROVISION,Third Party Payments,Revenue
Walsall Council,http://opendatacommunities.org/id/metropolitan-district-council/walsall,WC64-656,31/01/2016,Childrens,REDACTED,11/01/2016,287.70,76422-DIRECT PAYMENTS TO SOCIAL SERVICES CLIENTS,FAMILY SUPPORT - DIRECT PAYMENTS,Transfer Payments,Revenue
Walsall Council,http://opendatacommunities.org/id/metropolitan-district-council/walsall,WC64-657,31/01/2016,Childrens,CAMBIAN CHILDCARE LIMITED,01/01/2016,692.83,74037-INDEPENDENT FOSTER CARE-OTH AGENCY PROVISION,EXTERNAL FOSTER CARE PROVISION,Third Party Payments,Revenue
Walsall Council,http://opendatacommunities.org/id/metropolitan-district-council/walsall,WC64-658,31/01/2016,Childrens,CAMBIAN CHILDCARE LIMITED,11/01/2016,"2,657.01",74036-EXTERNAL RESIDENTIAL CARE-OTH AGENCY PROVISION,INDEPENDENT RESIDENTIAL HOMES,Third Party Payments,Revenue
Walsall Council,http://opendatacommunities.org/id/metropolitan-district-council/walsall,WC64-659,31/01/2016,Childrens,CAMBIAN CHILDCARE LIMITED,20/01/2016,"2,657.01",74036-EXTERNAL RESIDENTIAL CARE-OTH AGENCY PROVISION,INDEPENDENT RESIDENTIAL HOMES,Third Party Payments,Revenue
Walsall Council,http://opendatacommunities.org/id/metropolitan-district-council/walsall,WC64-660,31/01/2016,Childrens,CAMBIAN CHILDCARE LIMITED,01/01/2016,"3,003.00",74037-INDEPENDENT FOSTER CARE-OTH AGENCY PROVISION,EXTERNAL FOSTER CARE PROVISION,Third Party Payments,Revenue
Walsall Council,http://opendatacommunities.org/id/metropolitan-district-council/walsall,WC64-661,31/01/2016,Childrens,CAMBIAN CHILDCARE LIMITED,01/01/2016,"3,081.90",74037-INDEPENDENT FOSTER CARE-OTH AGENCY PROVISION,EXTERNAL FOSTER CARE PROVISION,Third Party Payments,Revenue
Walsall Council,http://opendatacommunities.org/id/metropolitan-district-council/walsall,WC64-662,31/01/2016,Childrens,CAMBIAN CHILDCARE LIMITED,22/01/2016,"3,103.10",74037-INDEPENDENT FOSTER CARE-OTH AGENCY PROVISION,EXTERNAL FOSTER CARE PROVISION,Third Party Payments,Revenue
Walsall Council,http://opendatacommunities.org/id/metropolitan-district-council/walsall,WC64-663,31/01/2016,Childrens,CAMBIAN CHILDCARE LIMITED,22/01/2016,"3,184.63",74037-INDEPENDENT FOSTER CARE-OTH AGENCY PROVISION,EXTERNAL FOSTER CARE PROVISION,Third Party Payments,Revenue
Walsall Council,http://opendatacommunities.org/id/metropolitan-district-council/walsall,WC64-664,31/01/2016,Childrens,CAMBIAN CHILDCARE LIMITED,01/01/2016,"3,253.20",74037-INDEPENDENT FOSTER CARE-OTH AGENCY PROVISION,EXTERNAL FOSTER CARE PROVISION,Third Party Payments,Revenue
Walsall Council,http://opendatacommunities.org/id/metropolitan-district-council/walsall,WC64-665,31/01/2016,Childrens,CAMBIAN CHILDCARE LIMITED,22/01/2016,"3,361.64",74037-INDEPENDENT FOSTER CARE-OTH AGENCY PROVISION,EXTERNAL FOSTER CARE PROVISION,Third Party Payments,Revenue
Walsall Council,http://opendatacommunities.org/id/metropolitan-district-council/walsall,WC64-666,31/01/2016,Childrens,CAMBIAN CHILDCARE LIMITED,11/01/2016,"14,339.67",74036-EXTERNAL RESIDENTIAL CARE-OTH AGENCY PROVISION,INDEPENDENT RESIDENTIAL HOMES,Third Party Payments,Revenue
Walsall Council,http://opendatacommunities.org/id/metropolitan-district-council/walsall,WC64-667,31/01/2016,Childrens,CAMBIAN CHILDCARE LIMITED,20/01/2016,"14,339.67",74036-EXTERNAL RESIDENTIAL CARE-OTH AGENCY PROVISION,INDEPENDENT RESIDENTIAL HOMES,Third Party Payments,Revenue
Walsall Council,http://opendatacommunities.org/id/metropolitan-district-council/walsall,WC64-668,31/01/2016,Social Care & Inclusion,CAMBIAN LEARNING DISABILITES MIDLANDS LIMITED,20/01/2016,"10,908.90",73375-IN PATIENT BEDS,LD COMMISSIONING,Third Party Payments,Revenue
Walsall Council,http://opendatacommunities.org/id/metropolitan-district-council/walsall,WC64-669,31/01/2016,Childrens,CAMBIAN WHINFELL SCHOOLS LTD,01/01/2016,"13,510.50",63000-PROFESSIONAL FEES AND SERVICES,INDEPENDENT PROVIDERS - SPECIAL & AP,Supplies & Services,Revenue
Walsall Council,http://opendatacommunities.org/id/metropolitan-district-council/walsall,WC64-670,31/01/2016,Childrens,CAMBIAN WHINFELL SCHOOLS LTD,01/01/2016,"13,510.50",63000-PROFESSIONAL FEES AND SERVICES,INDEPENDENT PROVIDERS - SPECIAL & AP,Supplies & Services,Revenue
Walsall Council,http://opendatacommunities.org/id/metropolitan-district-council/walsall,WC64-671,31/01/2016,Childrens,CAMBIAN WHINFELL SCHOOLS LTD,01/01/2016,"25,938.13",63000-PROFESSIONAL FEES AND SERVICES,INDEPENDENT PROVIDERS - SPECIAL & AP,Supplies & Services,Revenue
Walsall Council,http://opendatacommunities.org/id/metropolitan-district-council/walsall,WC64-672,31/01/2016,Economy & Environment,CAMERA ONE LIMITED,22/01/2016,352.00,73025-PROFESSIONAL SERVICES-PRIV CONTRACTOR & OTHER AGENCIES,DEPOT,Third Party Payments,Revenue
Walsall Council,http://opendatacommunities.org/id/metropolitan-district-council/walsall,WC64-673,31/01/2016,Economy & Environment,CAMERA ONE LIMITED,01/01/2016,650.00,73025-PROFESSIONAL SERVICES-PRIV CONTRACTOR & OTHER AGENCIES,DEPOT,Third Party Payments,Revenue
Walsall Council,http://opendatacommunities.org/id/metropolitan-district-council/walsall,WC64-674,31/01/2016,Economy & Environment,CAMERA ONE LIMITED,01/01/2016,795.00,73025-PROFESSIONAL SERVICES-PRIV CONTRACTOR & OTHER AGENCIES,DEPOT,Third Party Payments,Revenue
Walsall Council,http://opendatacommunities.org/id/metropolitan-district-council/walsall,WC64-675,31/01/2016,Childrens,CAMPION SCHOOL,12/01/2016,"1,000.00",77300-ISB-FORMULA ALLOCATION,OUT OF BOROUGH SCHOOLS,Transfer Payments,Revenue
Walsall Council,http://opendatacommunities.org/id/metropolitan-district-council/walsall,WC64-676,31/01/2016,Childrens,CAMPION SCHOOL,01/01/2016,"1,250.00",66502-TOP UP FUNDING -GRANTS TO SCHOOLS,INDEPENDENT PROVIDERS - SPECIAL & AP,Third Party Payments,Revenue
Walsall Council,http://opendatacommunities.org/id/metropolitan-district-council/walsall,WC64-677,31/01/2016,Economy & Environment,CANAL & RIVER TRUST,01/01/2016,249.42,43000-RENTS,ENVIRONMENTAL IMPROVEMENT SERVICE,Premises,Revenue
Walsall Council,http://opendatacommunities.org/id/metropolitan-district-council/walsall,WC64-678,31/01/2016,Childrens,CANNOCK CHASE HIGH SCHOOL,12/01/2016,"1,000.00",77300-ISB-FORMULA ALLOCATION,OUT OF BOROUGH SCHOOLS,Transfer Payments,Revenue
Walsall Council,http://opendatacommunities.org/id/metropolitan-district-council/walsall,WC64-679,31/01/2016,Childrens,CANON (UK) LTD 001,25/01/2016,133.31,60009-LEASING/HIRE/RENTAL-EQUIPMENT,EDUCATIONAL PSYCHOLOGISTS,Supplies & Services,Revenue
Walsall Council,http://opendatacommunities.org/id/metropolitan-district-council/walsall,WC64-680,31/01/2016,Childrens,CANON (UK) LTD 001,25/01/2016,133.32,60009-LEASING/HIRE/RENTAL-EQUIPMENT,SEN,Supplies & Services,Revenue
Walsall Council,http://opendatacommunities.org/id/metropolitan-district-council/walsall,WC64-681,31/01/2016,Childrens,CAPITA BUSINESS SERVICES LTD 001,07/01/2016,"-3,500.00",63114-OTHER FEES & LICENCES-SERVICES-FEES,WCS STATUTORY LICENCES,Supplies & Services,Revenue
Walsall Council,http://opendatacommunities.org/id/metropolitan-district-council/walsall,WC64-682,31/01/2016,Childrens,CAPITA BUSINESS SERVICES LTD 001,07/01/2016,-700.00,63114-OTHER FEES & LICENCES-SERVICES-FEES,WCS STATUTORY LICENCES,Supplies & Services,Revenue
Walsall Council,http://opendatacommunities.org/id/metropolitan-district-council/walsall,WC64-683,31/01/2016,Childrens,CAPITA BUSINESS SERVICES LTD 001,07/01/2016,"3,791.66",63114-OTHER FEES & LICENCES-SERVICES-FEES,WCS STATUTORY LICENCES,Supplies & Services,Revenue
Walsall Council,http://opendatacommunities.org/id/metropolitan-district-council/walsall,WC64-684,31/01/2016,Childrens,CAPITA BUSINESS SERVICES LTD 001,21/01/2016,"22,200.00",63804-COMPUTER-OTHER EXPENSES,INFORMATION SERVICES,Supplies & Services,Revenue
Walsall Council,http://opendatacommunities.org/id/metropolitan-district-council/walsall,WC64-685,31/01/2016,Childrens,CAPITA CHILDREN'S SERVICES,18/01/2016,"1,590.00",30030-EXTERNAL TRAINING,INFORMATION SERVICES,Employees,Revenue
Walsall Council,http://opendatacommunities.org/id/metropolitan-district-council/walsall,WC64-686,31/01/2016,Childrens,CAPITA IT SERVICES (BSF) LIMITED,22/01/2016,"1,435.98",64007-SPECIAL PROJECT-EXPENSES,INFORMATION SERVICES,Supplies & Services,Revenue
Walsall Council,http://opendatacommunities.org/id/metropolitan-district-council/walsall,WC64-687,31/01/2016,Change and Governance,CAPITA SPECIALIST INSURANCE SOLUTIONS,13/01/2016,288.20,67000-MISC INSURANCES - INSURANCE PREMIUMS,RISK & INSURANCE,Supplies & Services,Revenue
Walsall Council,http://opendatacommunities.org/id/metropolitan-district-council/walsall,WC64-688,31/01/2016,Childrens,CAPSTONE FOSTER CARE (SOUTH EAST) LIMITED,01/01/2016,350.10,74037-INDEPENDENT FOSTER CARE-OTH AGENCY PROVISION,EXTERNAL FOSTER CARE PROVISION,Third Party Payments,Revenue
Walsall Council,http://opendatacommunities.org/id/metropolitan-district-council/walsall,WC64-689,31/01/2016,Childrens,CAPSTONE FOSTER CARE (SOUTH EAST) LIMITED,14/01/2016,"2,553.50",74037-INDEPENDENT FOSTER CARE-OTH AGENCY PROVISION,EXTERNAL FOSTER CARE PROVISION,Third Party Payments,Revenue
Walsall Council,http://opendatacommunities.org/id/metropolitan-district-council/walsall,WC64-690,31/01/2016,Childrens,CAPSTONE FOSTER CARE (SOUTH EAST) LIMITED,13/01/2016,"2,770.65",74037-INDEPENDENT FOSTER CARE-OTH AGENCY PROVISION,EXTERNAL FOSTER CARE PROVISION,Third Party Payments,Revenue
Walsall Council,http://opendatacommunities.org/id/metropolitan-district-council/walsall,WC64-691,31/01/2016,Childrens,CAPSTONE FOSTER CARE (SOUTH EAST) LIMITED,13/01/2016,"2,770.65",74037-INDEPENDENT FOSTER CARE-OTH AGENCY PROVISION,EXTERNAL FOSTER CARE PROVISION,Third Party Payments,Revenue
Walsall Council,http://opendatacommunities.org/id/metropolitan-district-council/walsall,WC64-692,31/01/2016,Childrens,CAPSTONE FOSTER CARE (SOUTH EAST) LIMITED,13/01/2016,"3,161.56",74037-INDEPENDENT FOSTER CARE-OTH AGENCY PROVISION,EXTERNAL FOSTER CARE PROVISION,Third Party Payments,Revenue
Walsall Council,http://opendatacommunities.org/id/metropolitan-district-council/walsall,WC64-693,31/01/2016,Childrens,CAPSTONE FOSTER CARE (SOUTH EAST) LIMITED,01/01/2016,"3,492.90",74037-INDEPENDENT FOSTER CARE-OTH AGENCY PROVISION,EXTERNAL FOSTER CARE PROVISION,Third Party Payments,Revenue
Walsall Council,http://opendatacommunities.org/id/metropolitan-district-council/walsall,WC64-694,31/01/2016,Childrens,CAPSTONE FOSTER CARE (SOUTH EAST) LIMITED,01/01/2016,"3,609.33",74037-INDEPENDENT FOSTER CARE-OTH AGENCY PROVISION,EXTERNAL FOSTER CARE PROVISION,Third Party Payments,Revenue
Walsall Council,http://opendatacommunities.org/id/metropolitan-district-council/walsall,WC64-695,31/01/2016,Childrens,CAPSTONE FOSTER CARE (SOUTH EAST) LIMITED,13/01/2016,"3,780.10",74037-INDEPENDENT FOSTER CARE-OTH AGENCY PROVISION,EXTERNAL FOSTER CARE PROVISION,Third Party Payments,Revenue
Walsall Council,http://opendatacommunities.org/id/metropolitan-district-council/walsall,WC64-696,31/01/2016,Social Care & Inclusion,CARE 2 U LIMITED,04/01/2016,"33,622.20",73372-DOMICILIARY CARE,OP COMMISSIONING,Third Party Payments,Revenue
Walsall Council,http://opendatacommunities.org/id/metropolitan-district-council/walsall,WC64-697,31/01/2016,Social Care & Inclusion,CARE AVENUES LTD,11/01/2016,253.00,73372-DOMICILIARY CARE,OP COMMISSIONING,Third Party Payments,Revenue
Walsall Council,http://opendatacommunities.org/id/metropolitan-district-council/walsall,WC64-698,31/01/2016,Social Care & Inclusion,CARE AVENUES LTD,01/01/2016,402.50,73372-DOMICILIARY CARE,OP COMMISSIONING,Third Party Payments,Revenue
Walsall Council,http://opendatacommunities.org/id/metropolitan-district-council/walsall,WC64-699,31/01/2016,Social Care & Inclusion,CARE AVENUES LTD,01/01/2016,528.87,73372-DOMICILIARY CARE,OP COMMISSIONING,Third Party Payments,Revenue
Walsall Council,http://opendatacommunities.org/id/metropolitan-district-council/walsall,WC64-700,31/01/2016,Social Care & Inclusion,CARE AVENUES LTD,01/01/2016,529.00,73372-DOMICILIARY CARE,OP COMMISSIONING,Third Party Payments,Revenue
Walsall Council,http://opendatacommunities.org/id/metropolitan-district-council/walsall,WC64-701,31/01/2016,Social Care & Inclusion,CARE AVENUES LTD,01/01/2016,773.25,73372-DOMICILIARY CARE,OP COMMISSIONING,Third Party Payments,Revenue
Walsall Council,http://opendatacommunities.org/id/metropolitan-district-council/walsall,WC64-702,31/01/2016,Social Care & Inclusion,CARE AVENUES LTD,11/01/2016,989.00,73372-DOMICILIARY CARE,OP COMMISSIONING,Third Party Payments,Revenue
Walsall Council,http://opendatacommunities.org/id/metropolitan-district-council/walsall,WC64-703,31/01/2016,Social Care & Inclusion,CARE AVENUES LTD,11/01/2016,"2,093.00",73372-DOMICILIARY CARE,OP COMMISSIONING,Third Party Payments,Revenue
Walsall Council,http://opendatacommunities.org/id/metropolitan-district-council/walsall,WC64-704,31/01/2016,Social Care & Inclusion,CARE AVENUES LTD,05/01/2016,"15,582.50",73372-DOMICILIARY CARE,OP COMMISSIONING,Third Party Payments,Revenue
Walsall Council,http://opendatacommunities.org/id/metropolitan-district-council/walsall,WC64-705,31/01/2016,Social Care & Inclusion,CARE FIRST MANAGEMENT SERVICES LTD,22/01/2016,780.00,73372-DOMICILIARY CARE,YADS COMMISSIONING,Third Party Payments,Revenue
Walsall Council,http://opendatacommunities.org/id/metropolitan-district-council/walsall,WC64-706,31/01/2016,Childrens,CARE LEAVERS,27/01/2016,424.49,63114-OTHER FEES & LICENCES-SERVICES-FEES,TRANSITION AND LEAVING CARE,Supplies & Services,Revenue
Walsall Council,http://opendatacommunities.org/id/metropolitan-district-council/walsall,WC64-707,31/01/2016,Childrens,CARE LEAVERS,27/01/2016,"2,948.40",76400-RESIDENTS PERSONAL EXPENSES-ALLOWANCES TO S/S CLIENTS,TRANSITION AND LEAVING CARE,Transfer Payments,Revenue
Walsall Council,http://opendatacommunities.org/id/metropolitan-district-council/walsall,WC64-708,31/01/2016,Childrens,CARE LEAVERS,27/01/2016,"3,596.50",74500-CARE LEAVERS MTCE PAYMENTS,TRANSITION AND LEAVING CARE,Third Party Payments,Revenue
Walsall Council,http://opendatacommunities.org/id/metropolitan-district-council/walsall,WC64-709,31/01/2016,Childrens,CARE LEAVERS,27/01/2016,"5,082.86",64002-OTHER EXPENSES-EXPENSES,TRANSITION AND LEAVING CARE,Supplies & Services,Revenue
Walsall Council,http://opendatacommunities.org/id/metropolitan-district-council/walsall,WC64-710,31/01/2016,Social Care & Inclusion,CARE SHOP,18/01/2016,-259.60,60000-FURNITURE & EQUIPMENT,REABLEMENT TEAM - HOLLY BANK,Supplies & Services,Revenue
Walsall Council,http://opendatacommunities.org/id/metropolitan-district-council/walsall,WC64-711,31/01/2016,Social Care & Inclusion,CARE SHOP,25/01/2016,240.80,60539-CLEANING MATERIALS,COMMUNITY INTERMEDIATE CARE,Supplies & Services,Revenue
Walsall Council,http://opendatacommunities.org/id/metropolitan-district-council/walsall,WC64-712,31/01/2016,Social Care & Inclusion,CARE SHOP,15/01/2016,272.58,60000-FURNITURE & EQUIPMENT,REABLEMENT TEAM - HOLLY BANK,Supplies & Services,Revenue
Walsall Council,http://opendatacommunities.org/id/metropolitan-district-council/walsall,WC64-713,31/01/2016,Social Care & Inclusion,CARE SHOP,01/01/2016,334.28,60539-CLEANING MATERIALS,REABLEMENT TEAM - HOLLY BANK,Supplies & Services,Revenue
Walsall Council,http://opendatacommunities.org/id/metropolitan-district-council/walsall,WC64-714,31/01/2016,Social Care & Inclusion,CARE SHOP,01/01/2016,356.03,60500-GENERAL MATERIALS,FALLINGS HEATH,Supplies & Services,Revenue
Walsall Council,http://opendatacommunities.org/id/metropolitan-district-council/walsall,WC64-715,31/01/2016,Social Care & Inclusion,CARE SHOP,25/01/2016,650.78,60539-CLEANING MATERIALS,REABLEMENT TEAM - HOLLY BANK,Supplies & Services,Revenue
Walsall Council,http://opendatacommunities.org/id/metropolitan-district-council/walsall,WC64-716,31/01/2016,Childrens,CARE TODAY CHILDRENS SERVICES,27/01/2016,"11,492.01",74036-EXTERNAL RESIDENTIAL CARE-OTH AGENCY PROVISION,INDEPENDENT RESIDENTIAL HOMES,Third Party Payments,Revenue
Walsall Council,http://opendatacommunities.org/id/metropolitan-district-council/walsall,WC64-717,31/01/2016,Childrens,CARE TODAY CHILDRENS SERVICES,27/01/2016,"14,096.01",74036-EXTERNAL RESIDENTIAL CARE-OTH AGENCY PROVISION,INDEPENDENT RESIDENTIAL HOMES,Third Party Payments,Revenue
Walsall Council,http://opendatacommunities.org/id/metropolitan-district-council/walsall,WC64-718,31/01/2016,Social Care & Inclusion,CARE4HEALTH LTD.,18/01/2016,258.75,34305-AGENCY STAFF-EMPLOYEES,OCCUPATIONAL THERAPY SERVICES,Employees,Revenue
Walsall Council,http://opendatacommunities.org/id/metropolitan-district-council/walsall,WC64-719,31/01/2016,Social Care & Inclusion,CARE4HEALTH LTD.,18/01/2016,517.50,34305-AGENCY STAFF-EMPLOYEES,OCCUPATIONAL THERAPY SERVICES,Employees,Revenue
Walsall Council,http://opendatacommunities.org/id/metropolitan-district-council/walsall,WC64-720,31/01/2016,Social Care & Inclusion,CARE4HEALTH LTD.,18/01/2016,776.25,34305-AGENCY STAFF-EMPLOYEES,OCCUPATIONAL THERAPY SERVICES,Employees,Revenue
Walsall Council,http://opendatacommunities.org/id/metropolitan-district-council/walsall,WC64-721,31/01/2016,Social Care & Inclusion,CARE4HEALTH LTD.,20/01/2016,947.25,73019-PSE'S-PRIV CONTRACTOR FEES,TRANSITIONAL CARE SUPPORT TEAM,Third Party Payments,Revenue
Walsall Council,http://opendatacommunities.org/id/metropolitan-district-council/walsall,WC64-722,31/01/2016,Social Care & Inclusion,CARE4HEALTH LTD.,18/01/2016,"1,035.00",34305-AGENCY STAFF-EMPLOYEES,OCCUPATIONAL THERAPY SERVICES,Employees,Revenue
Walsall Council,http://opendatacommunities.org/id/metropolitan-district-council/walsall,WC64-723,31/01/2016,Social Care & Inclusion,CARE4HEALTH LTD.,20/01/2016,"1,035.00",34305-AGENCY STAFF-EMPLOYEES,OCCUPATIONAL THERAPY SERVICES,Employees,Revenue
Walsall Council,http://opendatacommunities.org/id/metropolitan-district-council/walsall,WC64-724,31/01/2016,Social Care & Inclusion,CARE4HEALTH LTD.,20/01/2016,"1,035.00",34305-AGENCY STAFF-EMPLOYEES,OCCUPATIONAL THERAPY SERVICES,Employees,Revenue
Walsall Council,http://opendatacommunities.org/id/metropolitan-district-council/walsall,WC64-725,31/01/2016,Social Care & Inclusion,CARE4HEALTH LTD.,20/01/2016,"1,042.20",34305-AGENCY STAFF-EMPLOYEES,OCCUPATIONAL THERAPY SERVICES,Employees,Revenue
Walsall Council,http://opendatacommunities.org/id/metropolitan-district-council/walsall,WC64-726,31/01/2016,Social Care & Inclusion,CARE4HEALTH LTD.,20/01/2016,"1,044.00",34305-AGENCY STAFF-EMPLOYEES,OCCUPATIONAL THERAPY SERVICES,Employees,Revenue
Walsall Council,http://opendatacommunities.org/id/metropolitan-district-council/walsall,WC64-727,31/01/2016,Social Care & Inclusion,CARE4HEALTH LTD.,18/01/2016,"1,176.08",73019-PSE'S-PRIV CONTRACTOR FEES,TRANSITIONAL CARE SUPPORT TEAM,Third Party Payments,Revenue
Walsall Council,http://opendatacommunities.org/id/metropolitan-district-council/walsall,WC64-728,31/01/2016,Childrens,CAREFIRST SERVICES LIMITED,05/01/2016,"1,757.40",76010-ACCOMMODATION AND RELATED COSTS-ASSISTANCE TO S/S CLIENTS,TRANSITION AND LEAVING CARE,Transfer Payments,Revenue
Walsall Council,http://opendatacommunities.org/id/metropolitan-district-council/walsall,WC64-729,31/01/2016,Childrens,CAREFIRST SERVICES LIMITED,05/01/2016,"1,795.80",74036-EXTERNAL RESIDENTIAL CARE-OTH AGENCY PROVISION,INDEPENDENT RESIDENTIAL HOMES,Third Party Payments,Revenue
Walsall Council,http://opendatacommunities.org/id/metropolitan-district-council/walsall,WC64-730,31/01/2016,Childrens,CAREFIRST SERVICES LIMITED,18/01/2016,"1,885.66",76010-ACCOMMODATION AND RELATED COSTS-ASSISTANCE TO S/S CLIENTS,TRANSITION AND LEAVING CARE,Transfer Payments,Revenue
Walsall Council,http://opendatacommunities.org/id/metropolitan-district-council/walsall,WC64-731,31/01/2016,Childrens,CAREFIRST SERVICES LIMITED,05/01/2016,"1,885.80",76010-ACCOMMODATION AND RELATED COSTS-ASSISTANCE TO S/S CLIENTS,TRANSITION AND LEAVING CARE,Transfer Payments,Revenue
Walsall Council,http://opendatacommunities.org/id/metropolitan-district-council/walsall,WC64-732,31/01/2016,Childrens,CAREFIRST SERVICES LIMITED,18/01/2016,"1,933.66",74036-EXTERNAL RESIDENTIAL CARE-OTH AGENCY PROVISION,INDEPENDENT RESIDENTIAL HOMES,Third Party Payments,Revenue
Walsall Council,http://opendatacommunities.org/id/metropolitan-district-council/walsall,WC64-733,31/01/2016,Childrens,CAREFIRST SERVICES LIMITED,18/01/2016,"2,046.16",76010-ACCOMMODATION AND RELATED COSTS-ASSISTANCE TO S/S CLIENTS,TRANSITION AND LEAVING CARE,Transfer Payments,Revenue
Walsall Council,http://opendatacommunities.org/id/metropolitan-district-council/walsall,WC64-734,31/01/2016,Childrens,CAREFIRST SERVICES LIMITED,05/01/2016,"2,207.40",76010-ACCOMMODATION AND RELATED COSTS-ASSISTANCE TO S/S CLIENTS,TRANSITION AND LEAVING CARE,Transfer Payments,Revenue
Walsall Council,http://opendatacommunities.org/id/metropolitan-district-council/walsall,WC64-735,31/01/2016,Childrens,CAREFIRST SERVICES LIMITED,05/01/2016,"2,255.26",76010-ACCOMMODATION AND RELATED COSTS-ASSISTANCE TO S/S CLIENTS,TRANSITION AND LEAVING CARE,Transfer Payments,Revenue
Walsall Council,http://opendatacommunities.org/id/metropolitan-district-council/walsall,WC64-736,31/01/2016,Social Care & Inclusion,CARETECH COMMUNITY SERVICE,27/01/2016,"1,210.42",73374-SUPPORTED & OTHER ACCOMMODATION,LD COMMISSIONING,Third Party Payments,Revenue
Walsall Council,http://opendatacommunities.org/id/metropolitan-district-council/walsall,WC64-737,31/01/2016,Social Care & Inclusion,CARETECH COMMUNITY SERVICE,27/01/2016,"5,048.57",73374-SUPPORTED & OTHER ACCOMMODATION,OP COMMISSIONING,Third Party Payments,Revenue
Walsall Council,http://opendatacommunities.org/id/metropolitan-district-council/walsall,WC64-738,31/01/2016,Social Care & Inclusion,CAREVIEW SERVICES LTD,12/01/2016,"6,802.80",73373-RESIDENTIAL & NURSING CARE PLACEMENTS,LD COMMISSIONING,Third Party Payments,Revenue
Walsall Council,http://opendatacommunities.org/id/metropolitan-district-council/walsall,WC64-739,31/01/2016,Social Care & Inclusion,CARING CARE LIMITED,27/01/2016,276.00,73025-PROFESSIONAL SERVICES-PRIV CONTRACTOR & OTHER AGENCIES,CARERS SERVICES,Third Party Payments,Revenue
Walsall Council,http://opendatacommunities.org/id/metropolitan-district-council/walsall,WC64-740,31/01/2016,Social Care & Inclusion,CARING CARE LIMITED,27/01/2016,828.00,73025-PROFESSIONAL SERVICES-PRIV CONTRACTOR & OTHER AGENCIES,CARERS SERVICES,Third Party Payments,Revenue
Walsall Council,http://opendatacommunities.org/id/metropolitan-district-council/walsall,WC64-741,31/01/2016,Social Care & Inclusion,CARING CARE LIMITED,27/01/2016,828.00,73025-PROFESSIONAL SERVICES-PRIV CONTRACTOR & OTHER AGENCIES,CARERS SERVICES,Third Party Payments,Revenue
Walsall Council,http://opendatacommunities.org/id/metropolitan-district-council/walsall,WC64-742,31/01/2016,Social Care & Inclusion,CARING CARE LIMITED,27/01/2016,"1,374.25",73025-PROFESSIONAL SERVICES-PRIV CONTRACTOR & OTHER AGENCIES,CARERS SERVICES,Third Party Payments,Revenue
Walsall Council,http://opendatacommunities.org/id/metropolitan-district-council/walsall,WC64-743,31/01/2016,Social Care & Inclusion,CARING CARE LIMITED,27/01/2016,"1,621.50",73025-PROFESSIONAL SERVICES-PRIV CONTRACTOR & OTHER AGENCIES,CARERS SERVICES,Third Party Payments,Revenue
Walsall Council,http://opendatacommunities.org/id/metropolitan-district-council/walsall,WC64-744,31/01/2016,Social Care & Inclusion,CARING CARE LIMITED,04/01/2016,"59,350.38",73372-DOMICILIARY CARE,OP COMMISSIONING,Third Party Payments,Revenue
Walsall Council,http://opendatacommunities.org/id/metropolitan-district-council/walsall,WC64-745,31/01/2016,Social Care & Inclusion,CARING HANDS LIMITED,04/01/2016,"50,077.83",73372-DOMICILIARY CARE,OP COMMISSIONING,Third Party Payments,Revenue
Walsall Council,http://opendatacommunities.org/id/metropolitan-district-council/walsall,WC64-746,31/01/2016,Social Care & Inclusion,REDACTED,13/01/2016,844.58,73374-SUPPORTED & OTHER ACCOMMODATION,LD COMMISSIONING,Third Party Payments,Revenue
Walsall Council,http://opendatacommunities.org/id/metropolitan-district-council/walsall,WC64-747,31/01/2016,Social Care & Inclusion,REDACTED,21/01/2016,"3,274.80",73374-SUPPORTED & OTHER ACCOMMODATION,LD COMMISSIONING,Third Party Payments,Revenue
Walsall Council,http://opendatacommunities.org/id/metropolitan-district-council/walsall,WC64-748,31/01/2016,Social Care & Inclusion,REDACTED,01/01/2016,"3,625.67",73374-SUPPORTED & OTHER ACCOMMODATION,LD COMMISSIONING,Third Party Payments,Revenue
Walsall Council,http://opendatacommunities.org/id/metropolitan-district-council/walsall,WC64-749,31/01/2016,Social Care & Inclusion,REDACTED,11/01/2016,450.00,76422-DIRECT PAYMENTS TO SOCIAL SERVICES CLIENTS,YADS COMMISSIONING,Transfer Payments,Revenue
Walsall Council,http://opendatacommunities.org/id/metropolitan-district-council/walsall,WC64-750,31/01/2016,Childrens,REDACTED,04/01/2016,469.80,74006-HOLIDAY/CHRISTMAS ALLOWANCE-FOSTER CARERS-OTH AGENCY PROVISION,INTERNAL FOSTER CARE PROVISION,Third Party Payments,Revenue
Walsall Council,http://opendatacommunities.org/id/metropolitan-district-council/walsall,WC64-751,31/01/2016,Childrens,REDACTED,04/01/2016,540.20,62515-MISCELLANEOUS SUPPLIES,INTERNAL FOSTER CARE PROVISION,Supplies & Services,Revenue
Walsall Council,http://opendatacommunities.org/id/metropolitan-district-council/walsall,WC64-752,31/01/2016,Childrens,REDACTED,18/01/2016,365.60,74006-HOLIDAY/CHRISTMAS ALLOWANCE-FOSTER CARERS-OTH AGENCY PROVISION,INTERNAL FOSTER CARE PROVISION,Third Party Payments,Revenue
Walsall Council,http://opendatacommunities.org/id/metropolitan-district-council/walsall,WC64-753,31/01/2016,Childrens,REDACTED,12/01/2016,"2,705.10",73014-LEGAL FEES-PRIV CONTRACTOR FEES,GENERAL MANAGEMENT SUPPORT (INC LEGAL),Third Party Payments,Revenue
Walsall Council,http://opendatacommunities.org/id/metropolitan-district-council/walsall,WC64-754,31/01/2016,Childrens,CARTER BROWN LTD T/A CARTER BROWN THE EXPERT SERVICE,06/01/2016,287.34,73014-LEGAL FEES-PRIV CONTRACTOR FEES,GENERAL MANAGEMENT SUPPORT (INC LEGAL),Third Party Payments,Revenue
Walsall Council,http://opendatacommunities.org/id/metropolitan-district-council/walsall,WC64-755,31/01/2016,Economy & Environment,CARTER SYNERGY LTD,01/01/2016,846.00,"40000-REPAIRS,ALTERATIONS & MAINTENANCE-PREM",NAG - MAINTENANCE,Premises,Revenue
Walsall Council,http://opendatacommunities.org/id/metropolitan-district-council/walsall,WC64-756,31/01/2016,Economy & Environment,CARTER SYNERGY LTD,01/01/2016,950.00,"40000-REPAIRS,ALTERATIONS & MAINTENANCE-PREM",NAG - MAINTENANCE,Premises,Revenue
Walsall Council,http://opendatacommunities.org/id/metropolitan-district-council/walsall,WC64-757,31/01/2016,Economy & Environment,CARTER SYNERGY LTD,20/01/2016,"4,102.00",40012-FIRE SYSTEM-OP MTCE,NAG - MAINTENANCE,Premises,Revenue
Walsall Council,http://opendatacommunities.org/id/metropolitan-district-council/walsall,WC64-758,31/01/2016,Economy & Environment,CARTER SYNERGY LTD,01/01/2016,"8,480.00",01044-PURCHASE OF FURNITURE & EQUIPMENT,CFR 1045 GALLERY-ACE SMALL CAPITAL PROJECT,Capital,Capital
Walsall Council,http://opendatacommunities.org/id/metropolitan-district-council/walsall,WC64-759,31/01/2016,Economy & Environment,CARTER SYNERGY LTD,13/01/2016,"9,939.41",40216-OTHER-PLAN MTCE,NAG - MAINTENANCE,Premises,Revenue
Walsall Council,http://opendatacommunities.org/id/metropolitan-district-council/walsall,WC64-760,31/01/2016,Economy & Environment,CARWOOD MOTOR UNITS LIMITED,15/01/2016,230.12,73025-PROFESSIONAL SERVICES-PRIV CONTRACTOR & OTHER AGENCIES,FLEET,Third Party Payments,Revenue
Walsall Council,http://opendatacommunities.org/id/metropolitan-district-council/walsall,WC64-761,31/01/2016,Economy & Environment,CARWOOD MOTOR UNITS LIMITED,19/01/2016,295.00,73025-PROFESSIONAL SERVICES-PRIV CONTRACTOR & OTHER AGENCIES,FLEET,Third Party Payments,Revenue
Walsall Council,http://opendatacommunities.org/id/metropolitan-district-council/walsall,WC64-762,31/01/2016,Economy & Environment,CARWOOD MOTOR UNITS LIMITED,25/01/2016,508.27,73025-PROFESSIONAL SERVICES-PRIV CONTRACTOR & OTHER AGENCIES,FLEET,Third Party Payments,Revenue
Walsall Council,http://opendatacommunities.org/id/metropolitan-district-council/walsall,WC64-763,31/01/2016,Childrens,CASTLE BROMWICH JUNIOR SCHOOL,13/01/2016,"1,000.00",77300-ISB-FORMULA ALLOCATION,OUT OF BOROUGH SCHOOLS,Transfer Payments,Revenue
